{"text_format":"1","workbook":"xlsx","n_sheets":13,"sheets":["(0)作業受付票","個人情報の取扱いについて","(1)ProRes(MOV)","(2)MXF","(3)Avid","(4)特殊変換","(5)ダビング","(6)データコピー","(7)素材用デジタルカット","(8)納品用デジタルカット","(9)オプション作業","(10)その他","(11)アーカイブ"],"not_rendered":{"charts":0,"images":172,"macros":1,"external_links":0,"defined_names":0,"comments":0,"pivot_tables":0},"unopened":[],"bounds":{"document_bytes":16777216,"sheet_cells":100000,"rows_first":2000,"rows_last":500,"rows_between":2000,"halvings":0,"cell_chars":16384,"cell_head_chars":4096},"cells_cut":0,"cells_raw":0,"read":"whole","date_system":"1900"}

{"sheet":"(0)作業受付票","index":0,"n_rows":63,"n_cols":71,"rows_kept":63,"cut":false,"hidden":false,"merged":[[43,6,44,12],[43,13,44,13],[43,14,44,17],[43,24,44,30],[43,31,44,31],[43,32,44,35],[43,42,44,48],[43,49,44,49],[43,50,44,53],[44,18,44,20],[43,36,43,37],[43,38,43,39],[43,18,43,19],[43,20,43,21],[43,22,43,23],[44,21,44,23],[43,40,43,41],[44,36,44,38],[44,39,44,41],[41,6,42,12],[41,13,42,13],[41,14,42,17],[41,24,42,30],[41,31,42,31],[41,32,42,35],[41,42,42,48],[41,49,42,49],[41,50,42,53],[41,20,41,21],[41,22,41,23],[41,18,41,19],[42,18,42,20],[42,21,42,23],[39,6,40,12],[39,13,40,13],[39,14,40,17],[39,24,40,30],[39,31,40,31],[39,32,40,35],[39,42,40,48],[39,49,40,49],[39,50,40,53],[39,36,39,37],[39,38,39,39],[39,40,39,41],[40,36,40,38],[40,39,40,41],[40,18,40,20],[39,18,39,19],[39,20,39,21],[39,22,39,23],[35,50,36,53],[37,6,38,12],[37,13,38,13],[37,14,38,17],[37,24,38,30],[37,31,38,31],[37,32,38,35],[37,42,38,48],[37,49,38,49],[37,50,38,53],[38,18,38,20],[38,21,38,23],[38,36,38,38],[38,39,38,41],[35,18,35,19],[35,20,35,21],[35,22,35,23],[31,31,32,31],[31,32,32,35],[31,42,32,48],[31,49,32,49],[31,50,32,53],[33,6,34,12],[33,13,34,13],[33,14,34,17],[33,24,34,30],[33,31,34,31],[33,32,34,35],[33,42,34,48],[33,49,34,49],[33,50,34,53],[33,22,33,23],[34,18,34,20],[34,21,34,23],[49,51,50,53],[49,54,49,55],[49,58,50,59],[49,60,50,62],[49,63,49,64],[50,48,50,50],[50,54,50,55],[50,63,50,64],[55,19,56,20],[55,21,56,25],[53,26,54,33],[53,34,54,35],[53,36,54,43],[53,44,54,47],[53,48,53,50],[53,51,54,53],[54,48,54,50],[55,26,56,33],[55,34,56,35],[55,36,56,43],[55,44,56,47],[55,48,55,50],[55,51,56,53],[56,48,56,50],[57,0,58,12],[57,13,58,18],[57,19,58,20],[57,21,58,25],[59,0,60,12],[59,13,60,18],[59,19,60,20],[59,21,60,25],[47,51,48,53],[48,48,48,50],[57,26,58,33],[57,34,58,35],[57,36,58,43],[57,44,58,47],[57,48,57,50],[57,51,58,53],[58,48,58,50],[59,26,60,33],[59,34,60,35],[59,36,60,43],[59,44,60,47],[59,48,59,50],[59,51,60,53],[60,48,60,50],[45,40,46,53],[45,0,46,1],[45,2,46,8],[45,9,46,25],[47,0,48,12],[47,19,48,20],[47,21,48,25],[47,13,48,18],[45,38,46,39],[45,28,46,37],[45,26,46,27],[47,26,48,33],[47,36,48,43],[47,44,48,47],[47,48,47,50],[57,70,58,71],[59,54,60,55],[59,56,60,61],[59,62,60,64],[59,65,60,69],[59,70,60,71],[51,51,52,53],[51,48,51,50],[52,48,52,50],[54,54,54,62],[54,63,54,71],[55,54,56,55],[55,56,56,61],[55,62,56,69],[55,70,56,71],[57,54,58,55],[57,56,58,61],[57,62,58,69],[47,67,48,68],[47,69,48,71],[48,54,48,55],[48,63,48,64],[51,54,52,55],[51,56,52,61],[51,62,52,69],[51,70,52,71],[53,54,53,62],[53,63,53,71],[47,60,48,62],[47,63,47,64],[43,54,43,55],[43,58,44,59],[43,60,44,62],[43,63,43,64],[43,67,44,68],[43,69,44,71],[44,54,44,55],[44,63,44,64],[45,54,45,55],[45,58,46,59],[45,60,46,62],[45,63,45,64],[45,67,46,68],[45,69,46,71],[46,54,46,55],[46,63,46,64],[39,67,40,68],[39,69,40,71],[40,63,40,64],[41,54,41,55],[41,58,42,59],[41,60,42,62],[41,63,41,64],[41,67,42,68],[41,69,42,71],[42,54,42,55],[42,63,42,64],[37,18,37,19],[37,20,37,21],[37,22,37,23],[37,36,37,37],[37,38,37,39],[37,40,37,41],[35,0,35,1],[35,2,35,3],[35,4,35,5],[36,3,36,5],[37,0,37,1],[37,2,37,3],[37,4,37,5],[35,13,36,13],[35,14,36,17],[35,24,36,30],[35,31,36,31],[35,32,36,35],[38,0,38,2],[38,3,38,5],[39,0,39,1],[39,2,39,3],[39,4,39,5],[43,4,43,5],[31,0,31,1],[31,2,31,3],[31,4,31,5],[32,0,32,2],[32,3,32,5],[33,0,33,1],[33,2,33,3],[33,4,33,5],[34,0,34,2],[34,3,34,5],[41,0,41,1],[41,2,41,3],[41,4,41,5],[42,0,42,2],[42,3,42,5],[43,0,43,1],[43,2,43,3],[36,0,36,2],[36,21,36,23],[31,20,31,21],[31,18,31,19],[36,18,36,20],[31,6,32,12],[31,13,32,13],[31,14,32,17],[35,6,36,12],[29,0,30,1],[29,2,30,29],[31,22,31,23],[32,18,32,20],[32,21,32,23],[33,18,33,19],[33,20,33,21],[31,24,32,30],[22,0,23,9],[18,57,18,59],[16,46,17,47],[18,0,18,5],[12,47,13,71],[14,47,15,71],[4,4,7,9],[8,4,11,9],[12,4,15,9],[4,47,5,71],[8,70,9,71],[10,70,11,71],[20,52,23,61],[20,0,21,9],[10,42,11,46],[12,42,13,46],[14,42,15,46],[19,62,19,71],[17,57,17,71],[0,0,3,5],[0,6,3,29],[2,36,3,41],[19,0,19,9],[19,10,19,31],[19,32,19,41],[19,42,19,51],[19,52,19,61],[16,4,17,9],[4,0,17,3],[4,10,7,35],[8,10,11,35],[12,10,15,35],[4,36,7,41],[8,36,9,41],[13,36,15,41],[10,36,12,41],[4,42,5,46],[6,42,7,46],[8,42,9,46],[16,10,17,45],[18,6,18,12],[16,57,16,71],[6,47,7,71],[16,48,17,56],[18,13,18,18],[18,19,18,24],[18,25,18,34],[18,51,18,56],[18,45,18,50],[18,35,18,39],[18,40,18,44],[0,65,0,71],[1,69,3,71],[1,68,3,68],[1,65,3,67],[0,36,1,41],[0,30,0,35],[1,30,3,35],[0,42,1,64],[2,42,3,64],[8,47,9,69],[10,47,11,69],[18,70,18,71],[18,60,18,69],[20,62,23,71],[20,10,21,16],[20,17,21,23],[20,24,21,31],[22,10,23,16],[22,17,23,31],[20,32,23,41],[20,42,23,51],[29,56,30,71],[29,30,30,31],[29,32,30,41],[29,42,30,43],[29,44,30,53],[29,54,30,55],[31,54,32,58],[31,59,32,62],[31,63,32,67],[31,68,32,71],[33,54,34,58],[33,59,34,62],[33,63,34,67],[33,68,34,71],[40,0,40,2],[40,3,40,5],[40,21,40,23],[32,36,32,38],[32,39,32,41],[33,36,33,37],[33,38,33,39],[33,40,33,41],[34,36,34,38],[34,39,34,41],[36,39,36,41],[31,36,31,37],[31,38,31,39],[31,40,31,41],[35,63,36,67],[35,68,36,71],[24,0,24,9],[24,10,24,71],[25,20,28,29],[25,30,26,35],[25,36,26,71],[27,30,28,35],[27,36,28,41],[27,42,28,47],[27,48,28,53],[25,0,28,9],[25,10,28,19],[27,69,28,71],[27,66,28,68],[27,63,28,65],[27,60,28,62],[27,57,28,59],[27,54,28,56],[35,54,36,58],[35,59,36,62],[41,36,41,37],[41,38,41,39],[41,40,41,41],[42,36,42,38],[42,39,42,41],[37,54,37,55],[38,54,38,55],[37,56,37,59],[38,56,38,59],[37,60,37,61],[38,60,38,61],[37,62,37,65],[38,62,38,65],[35,36,35,37],[35,38,35,39],[35,40,35,41],[36,36,36,38],[39,60,40,62],[39,58,40,59],[39,63,39,64],[35,42,36,48],[35,49,36,49],[37,66,38,67],[37,68,38,71],[39,54,39,55],[40,54,40,55],[44,0,44,2],[44,3,44,5],[51,0,52,12],[51,13,52,18],[51,19,52,20],[51,21,52,25],[49,67,50,68],[49,69,50,71],[51,44,52,47],[51,36,52,43],[51,34,52,35],[51,26,52,33],[49,26,50,33],[49,34,50,35],[49,36,50,43],[49,44,50,47],[49,48,49,50],[47,34,48,35],[47,54,47,55],[47,58,48,59],[53,0,54,12],[53,13,54,18],[53,19,54,20],[53,21,54,25],[49,0,50,12],[49,13,50,18],[49,19,50,20],[49,21,50,25],[55,0,56,12],[55,13,56,18],[61,53,62,71],[61,48,61,49],[62,48,62,49],[61,42,61,43],[62,42,62,43],[61,11,61,12],[62,11,62,12],[62,13,62,16],[61,13,61,16],[61,23,61,24],[62,23,62,24],[61,25,61,26],[62,25,62,26],[61,2,61,10],[62,0,62,10],[61,17,61,22],[62,17,62,22],[61,27,61,41],[62,27,62,41],[61,44,61,47],[62,44,62,47],[61,50,62,52],[61,0,61,1]]}
[0,null,null,null,null,null,"作業受付票(表紙)",null,null,null,null,null,null,null,null,null,null,null,null,null,null,null,null,null,null,null,null,null,null,null,"受付店",null,null,null,null,null,"受付番号",null,null,null,null,null,"",null,null,null,null,null,null,null,null,null,null,null,null,null,null,null,null,null,null,null,null,null,null,"受付枚数"]
[null,null,null,null,null,null,null,null,null,null,null,null,null,null,null,null,null,null,null,null,null,null,null,null,null,null,null,null,null,null,"　"]
[null,null,null,null,null,null,null,null,null,null,null,null,null,null,null,null,null,null,null,null,null,null,null,null,null,null,null,null,null,null,null,null,null,null,null,null,"受付日時",null,null,null,null,null,{"$f":"NOW()","v":"2021-06-01T11:04:59.900"}]
[]
["お客様記入欄",null,null,null,"会社名\n(部署名)",null,null,null,null,null,"",null,null,null,null,null,null,null,null,null,null,null,null,null,null,null,null,null,null,null,null,null,null,null,null,null,"\nご請求先",null,null,null,null,null,"会社名",null,null,null,null,""]
[]
[null,null,null,null,null,null,null,null,null,null,null,null,null,null,null,null,null,null,null,null,null,null,null,null,null,null,null,null,null,null,null,null,null,null,null,null,null,null,null,null,null,null,"部署名",null,null,null,null,""]
[]
[null,null,null,null,"番組名\n作品名",null,null,null,null,null,"",null,null,null,null,null,null,null,null,null,null,null,null,null,null,null,null,null,null,null,null,null,null,null,null,null,"ご指定が\nある場合のみ",null,null,null,null,null,"お名前\nフルネーム必須",null,null,null,null,"",null,null,null,null,null,null,null,null,null,null,null,null,null,null,null,null,null,null,null,null,null,null,"様"]
[]
[null,null,null,null,null,null,null,null,null,null,null,null,null,null,null,null,null,null,null,null,null,null,null,null,null,null,null,null,null,null,null,null,null,null,null,null,"あなたの\nご連絡先",null,null,null,null,null,"お名前",null,null,null,null,"",null,null,null,null,null,null,null,null,null,null,null,null,null,null,null,null,null,null,null,null,null,null,"様"]
[]
[null,null,null,null,"副題名",null,null,null,null,null,"",null,null,null,null,null,null,null,null,null,null,null,null,null,null,null,null,null,null,null,null,null,null,null,null,null,null,null,null,null,null,null,"電話番号\nご連絡が\n取れる番号",null,null,null,null,""]
[null,null,null,null,null,null,null,null,null,null,null,null,null,null,null,null,null,null,null,null,null,null,null,null,null,null,null,null,null,null,null,null,null,null,null,null,"E-mailは\n連絡を希望される\n場合のみ"]
[null,null,null,null,null,null,null,null,null,null,null,null,null,null,null,null,null,null,null,null,null,null,null,null,null,null,null,null,null,null,null,null,null,null,null,null,null,null,null,null,null,null,"E-mail",null,null,null,null,""]
[]
[null,null,null,null,"免責事項",null,null,null,null,null,"・個人情報の取扱いについて同意する(「個人情報の取扱いについて」をご覧ください)\n・弊社では、作業トラブルによる事後の損害については一切のご負担を致しかねます。\n  また、お預かり中のメディア、HDD、SSD等の不具合につきましても同様とさせて頂きます。",null,null,null,null,null,null,null,null,null,null,null,null,null,null,null,null,null,null,null,null,null,null,null,null,null,null,null,null,null,null,null,null,null,null,null,null,null,"同意して申し込む",null,null,null,null,null,null,null,null,"サイン"]
[]
["決済方法",null,null,null,null,null,"請求書以外を\n希望される場合",null,null,null,null,null,null,"【店頭】\nクレジットカード",null,null,null,null,null,"【店頭】\n交通系IC",null,null,null,null,null,"【店頭】\nApplePay/ID/QUICpay",null,null,null,null,null,null,null,null,null,"【店頭】\nQRコード",null,null,null,null,"【WEB】\n銀行振込",null,null,null,null,"【WEB】\nクレジットカード",null,null,null,null,null,"【WEB】\nコンビニ(現金)",null,null,null,null,null,"税込",null,null,null,null,null,null,null,null,null,null,null,null,"円"]
["納期",null,null,null,null,null,null,null,null,null,"終了連絡",null,null,null,null,null,null,null,null,null,null,null,null,null,null,null,null,null,null,null,null,null,"受付者",null,null,null,null,null,null,null,null,null,"集計者",null,null,null,null,null,null,null,null,null,"お客様引取サイン",null,null,null,null,null,null,null,null,null,"引渡者"]
["/",null,null,null,null,null,null,null,null,null,"不要",null,null,null,null,null,null,"E-mail",null,null,null,null,null,null,"電話(24h可)"]
[]
[":",null,null,null,null,null,null,null,null,null,"電話\n(時間指定)"]
[]
["手順納期認証印",null,null,null,null,null,null,null,null,null,"作業完了後の引取方法"]
[null,null,null,null,null,null,null,null,null,null,"店頭引取",null,null,null,null,null,null,null,null,null,"作業後配送",null,null,null,null,null,null,null,null,null,"配送先"]
[]
[null,null,null,null,null,null,null,null,null,null,null,null,null,null,null,null,null,null,null,null,null,null,null,null,null,null,null,null,null,null,"配送区分",null,null,null,null,null,"月",null,null,null,null,null,"日",null,null,null,null,null,"時間指定なし",null,null,null,null,null,"10～13",null,null,"13～18",null,null,"18～21",null,null,"21～24",null,null,"24～34",null,null,"30分"]
[]
["□",null,"変換作業 ・ プロキシ作成 (MOV/MXF/Avid)",null,null,null,null,null,null,null,null,null,null,null,null,null,null,null,null,null,null,null,null,null,null,null,null,null,null,null,"□",null,"プロキシ先行納品",null,null,null,null,null,null,null,null,null,"□",null,"プロキシ同時納品",null,null,null,null,null,null,null,null,null,"□",null,"メディアバックアップ"]
[]
["A",null,"B",null,"P",null,"( SD / mSD / MS )",null,null,null,null,null,null,"×",null,null,null,null,"A",null,"B",null,"P",null,"( SD / mSD / MS )",null,null,null,null,null,null,"×",null,null,null,null,"A",null,"B",null,"P",null,"( SD / mSD / MS )",null,null,null,null,null,null,"×",null,null,null,null,"64GB ×",null,null,null,null,null,null,null,null,"100GB ×"]
["B(SSD)",null,null,"P(SSD)",null,null,null,null,null,null,null,null,null,null,null,null,null,null,"B(SSD)",null,null,"P(SSD)",null,null,null,null,null,null,null,null,null,null,null,null,null,null,"B(SSD)",null,null,"P(SSD)"]
["A",null,"B",null,"P",null,"( SD / mSD / MS )",null,null,null,null,null,null,"×",null,null,null,null,"A",null,"B",null,"P",null,"( SD / mSD / MS )",null,null,null,null,null,null,"×",null,null,null,null,"A",null,"B",null,"P",null,"( SD / mSD / MS )",null,null,null,null,null,null,"×",null,null,null,null,"128GB ×",null,null,null,null,null,null,null,null,"GB ×"]
["B(SSD)",null,null,"P(SSD)",null,null,null,null,null,null,null,null,null,null,null,null,null,null,"B(SSD)",null,null,"P(SSD)",null,null,null,null,null,null,null,null,null,null,null,null,null,null,"B(SSD)",null,null,"P(SSD)"]
["A",null,"B",null,"P",null,"( SD / mSD / MS )",null,null,null,null,null,null,"×",null,null,null,null,"A",null,"B",null,"P",null,"( SD / mSD / MS )",null,null,null,null,null,null,"×",null,null,null,null,"A",null,"B",null,"P",null,"( SD / mSD / MS )",null,null,null,null,null,null,"×",null,null,null,null,"GB ×",null,null,null,null,null,null,null,null,"GB ×"]
["B(SSD)",null,null,"P(SSD)",null,null,null,null,null,null,null,null,null,null,null,null,null,null,"B(SSD)",null,null,"P(SSD)",null,null,null,null,null,null,null,null,null,null,null,null,null,null,"B(SSD)",null,null,"P(SSD)"]
["A",null,"B",null,"P",null,"( SD / mSD / MS )",null,null,null,null,null,null,"×",null,null,null,null,"A",null,"B",null,"P",null,"( SD / mSD / MS )",null,null,null,null,null,null,"×",null,null,null,null,"A",null,"B",null,"P",null,"( SD / mSD / MS )",null,null,null,null,null,null,"×",null,null,null,null,"□",null,"特殊変換",null,null,null,"□",null,"オプション",null,null,null,"□",null,"その他"]
["B(SSD)",null,null,"P(SSD)",null,null,null,null,null,null,null,null,null,null,null,null,null,null,"B(SSD)",null,null,"P(SSD)",null,null,null,null,null,null,null,null,null,null,null,null,null,null,"B(SSD)",null,null,"P(SSD)",null,null,null,null,null,null,null,null,null,null,null,null,null,null,"□",null,"素材用DC",null,null,null,"□",null,"納品用DC"]
["A",null,"B",null,"P",null,"( SD / mSD / MS )",null,null,null,null,null,null,"×",null,null,null,null,"A",null,"B",null,"P",null,"( SD / mSD / MS )",null,null,null,null,null,null,"×",null,null,null,null,"A",null,"B",null,"P",null,"( SD / mSD / MS )",null,null,null,null,null,null,"×",null,null,null,null,"A",null,null,null,"×",null,null,null,null,"A",null,null,null,"×"]
["B(SSD)",null,null,"P(SSD)",null,null,null,null,null,null,null,null,null,null,null,null,null,null,"B(SSD)",null,null,"P(SSD)",null,null,null,null,null,null,null,null,null,null,null,null,null,null,"B(SSD)",null,null,"P(SSD)",null,null,null,null,null,null,null,null,null,null,null,null,null,null,"B",null,null,null,null,null,null,null,null,"B"]
["A",null,"B",null,"P",null,"( SD / mSD / MS )",null,null,null,null,null,null,"×",null,null,null,null,"A",null,"B",null,"P",null,"( SD / mSD / MS )",null,null,null,null,null,null,"×",null,null,null,null,"A",null,"B",null,"P",null,"( SD / mSD / MS )",null,null,null,null,null,null,"×",null,null,null,null,"A",null,null,null,"×",null,null,null,null,"A",null,null,null,"×"]
["B(SSD)",null,null,"P(SSD)",null,null,null,null,null,null,null,null,null,null,null,null,null,null,"B(SSD)",null,null,"P(SSD)",null,null,null,null,null,null,null,null,null,null,null,null,null,null,"B(SSD)",null,null,"P(SSD)",null,null,null,null,null,null,null,null,null,null,null,null,null,null,"B",null,null,null,null,null,null,null,null,"B"]
["A",null,"B",null,"P",null,"( SD / mSD / MS )",null,null,null,null,null,null,"×",null,null,null,null,"A",null,"B",null,"P",null,"( SD / mSD / MS )",null,null,null,null,null,null,"×",null,null,null,null,"A",null,"B",null,"P",null,"( SD / mSD / MS )",null,null,null,null,null,null,"×",null,null,null,null,"A",null,null,null,"×",null,null,null,null,"A",null,null,null,"×"]
["B(SSD)",null,null,"P(SSD)",null,null,null,null,null,null,null,null,null,null,null,null,null,null,"B(SSD)",null,null,"P(SSD)",null,null,null,null,null,null,null,null,null,null,null,null,null,null,"B(SSD)",null,null,"P(SSD)",null,null,null,null,null,null,null,null,null,null,null,null,null,null,"B",null,null,null,null,null,null,null,null,"B"]
["□",null,"デジタイズ",null,null,null,null,null,null,"XDCAMデータコピー及びリラップの場合は\nテープの種類に【XDCAMデータ】と記入してください",null,null,null,null,null,null,null,null,null,null,null,null,null,null,null,null,"□",null,"ダビング(ワーク)",null,null,null,null,null,null,null,null,null,"□",null,"アーカイブ",null,null,null,null,null,null,null,null,null,null,null,null,null,"A",null,null,null,"×",null,null,null,null,"A",null,null,null,"×"]
[null,null,null,null,null,null,null,null,null,null,null,null,null,null,null,null,null,null,null,null,null,null,null,null,null,null,null,null,null,null,null,null,null,null,null,null,null,null,null,null,null,null,null,null,null,null,null,null,null,null,null,null,null,null,"B",null,null,null,null,null,null,null,null,"B"]
["テープの種類",null,null,null,null,null,null,null,null,null,null,null,null,null,null,null,null,null,null,"分×",null,"本",null,null,null,null,"出し",null,null,null,null,null,null,null,"⇒",null,"受け",null,null,null,null,null,null,null,null,null,null,null,"分×",null,null,null,null,null,"A",null,null,null,"×",null,null,null,null,"A",null,null,null,"×"]
[null,null,null,null,null,null,null,null,null,null,null,null,null,null,null,null,null,null,null,null,null,null,null,null,null,null,null,null,null,null,null,null,null,null,null,null,null,null,null,null,null,null,null,null,null,null,null,null,"GB×",null,null,null,null,null,"B",null,null,null,null,null,null,null,null,"B"]
["テープの種類",null,null,null,null,null,null,null,null,null,null,null,null,null,null,null,null,null,null,"分×",null,"本",null,null,null,null,"出し",null,null,null,null,null,null,null,"⇒",null,"受け",null,null,null,null,null,null,null,null,null,null,null,"分×",null,null,null,null,null,"A",null,null,null,"×",null,null,null,null,"A",null,null,null,"×"]
[null,null,null,null,null,null,null,null,null,null,null,null,null,null,null,null,null,null,null,null,null,null,null,null,null,null,null,null,null,null,null,null,null,null,null,null,null,null,null,null,null,null,null,null,null,null,null,null,"GB×",null,null,null,null,null,"B",null,null,null,null,null,null,null,null,"B"]
["テープの種類",null,null,null,null,null,null,null,null,null,null,null,null,null,null,null,null,null,null,"分×",null,"本",null,null,null,null,"出し",null,null,null,null,null,null,null,"⇒",null,"受け",null,null,null,null,null,null,null,null,null,null,null,"分×",null,null,null,null,null,"□",null,"データコピー",null,null,null,null,null,"【合計容量】",null,null,null,null,null,null,null,"GB"]
[null,null,null,null,null,null,null,null,null,null,null,null,null,null,null,null,null,null,null,null,null,null,null,null,null,null,null,null,null,null,null,null,null,null,null,null,null,null,null,null,null,null,null,null,null,null,null,null,"GB×"]
["テープの種類",null,null,null,null,null,null,null,null,null,null,null,null,null,null,null,null,null,null,"分×",null,"本",null,null,null,null,"出し",null,null,null,null,null,null,null,"⇒",null,"受け",null,null,null,null,null,null,null,null,null,null,null,"分×",null,null,null,null,null,"【内訳】SSD割適用分",null,null,null,null,null,null,null,null,"【内訳】SSD割適用外"]
[null,null,null,null,null,null,null,null,null,null,null,null,null,null,null,null,null,null,null,null,null,null,null,null,null,null,null,null,null,null,null,null,null,null,null,null,null,null,null,null,null,null,null,null,null,null,null,null,"GB×",null,null,null,null,null,"GB",null,null,null,null,null,null,null,null,"GB"]
["テープの種類",null,null,null,null,null,null,null,null,null,null,null,null,null,null,null,null,null,null,"分×",null,"本",null,null,null,null,"出し",null,null,null,null,null,null,null,"⇒",null,"受け",null,null,null,null,null,null,null,null,null,null,null,"分×",null,null,null,null,null,"□",null,"DVD複製",null,null,null,null,null,null,null,null,null,null,null,null,null,"枚"]
[null,null,null,null,null,null,null,null,null,null,null,null,null,null,null,null,null,null,null,null,null,null,null,null,null,null,null,null,null,null,null,null,null,null,null,null,null,null,null,null,null,null,null,null,null,null,null,null,"GB×"]
["テープの種類",null,null,null,null,null,null,null,null,null,null,null,null,null,null,null,null,null,null,"分×",null,"本",null,null,null,null,"出し",null,null,null,null,null,null,null,"⇒",null,"受け",null,null,null,null,null,null,null,null,null,null,null,"分×",null,null,null,null,null,"□",null,"Blu-ray複製",null,null,null,null,null,null,null,null,null,null,null,null,null,"枚"]
[null,null,null,null,null,null,null,null,null,null,null,null,null,null,null,null,null,null,null,null,null,null,null,null,null,null,null,null,null,null,null,null,null,null,null,null,null,null,null,null,null,null,null,null,null,null,null,null,"GB×"]
["テープの種類",null,null,null,null,null,null,null,null,null,null,null,null,null,null,null,null,null,null,"分×",null,"本",null,null,null,null,"出し",null,null,null,null,null,null,null,"⇒",null,"受け",null,null,null,null,null,null,null,null,null,null,null,"分×",null,null,null,null,null,"□",null,"キューシート",null,null,null,null,null,"作成",null,null,null,null,null,null,null,"枚"]
[null,null,null,null,null,null,null,null,null,null,null,null,null,null,null,null,null,null,null,null,null,null,null,null,null,null,null,null,null,null,null,null,null,null,null,null,null,null,null,null,null,null,null,null,null,null,null,null,"GB×"]
["□",null,"販売物",null,null,null,null,null,null,null,null,"□",null,"DVD-R",null,null,null,null,null,null,null,null,null,"枚",null,"□",null,null,null,null,null,null,null,null,null,null,null,null,null,null,null,null,"×",null,null,null,null,null,"本",null,"備考"]
["□ 販売のみ\n(販売のみの場合にチェックすること)",null,null,null,null,null,null,null,null,null,null,"□",null,"Blu-ray\n25GB",null,null,null,null,null,null,null,null,null,"枚",null,"□",null,null,null,null,null,null,null,null,null,null,null,null,null,null,null,null,"×",null,null,null,null,null,"本"]

{"sheet":"個人情報の取扱いについて","index":1,"n_rows":1,"n_cols":1,"rows_kept":1,"cut":false,"hidden":false,"merged":[[0,0,0,18]]}
["必ずご確認ください"]

{"sheet":"(1)ProRes(MOV)","index":2,"n_rows":59,"n_cols":71,"rows_kept":59,"cut":false,"hidden":false,"merged":[[11,40,11,47],[13,26,14,31],[13,34,14,39],[13,32,14,33],[33,59,34,60],[37,59,38,60],[41,59,42,60],[45,59,46,60],[33,45,33,50],[34,45,35,50],[32,33,35,42],[32,43,32,44],[32,45,32,50],[32,51,33,56],[32,57,33,58],[33,43,35,44],[24,16,27,27],[24,28,27,32],[24,33,27,42],[24,43,24,44],[24,45,24,50],[24,51,25,56],[24,57,25,58],[15,32,15,33],[24,0,27,1],[24,2,27,7],[24,8,27,15],[28,0,31,1],[28,2,31,7],[28,8,31,15],[4,70,4,71],[4,54,4,69],[56,0,59,1],[56,2,59,7],[56,8,59,15],[52,0,55,1],[52,2,55,7],[52,8,55,15],[57,66,58,68],[57,69,58,71],[59,66,59,68],[59,69,59,71],[56,67,56,68],[56,69,56,71],[53,66,54,68],[53,69,54,71],[55,66,55,68],[55,69,55,71],[52,67,52,68],[52,69,52,71],[52,16,55,27],[52,28,55,32],[5,0,6,23],[5,24,6,31],[52,33,55,42],[52,43,52,44],[48,69,48,71],[40,0,43,1],[40,2,43,7],[40,8,43,15],[48,0,51,1],[48,2,51,7],[48,8,51,15],[44,0,47,1],[44,2,47,7],[44,8,47,15],[49,66,50,68],[49,69,50,71],[51,66,51,68],[51,69,51,71],[48,67,48,68],[44,67,44,68],[44,69,44,71],[40,67,40,68],[40,69,40,71],[45,69,46,71],[47,66,47,68],[47,69,47,71],[41,69,42,71],[43,69,43,71],[32,0,35,1],[32,2,35,7],[32,8,35,15],[36,0,39,1],[36,2,39,7],[36,8,39,15],[36,67,36,68],[36,69,36,71],[37,69,38,71],[39,66,39,68],[39,69,39,71],[37,66,38,68],[33,61,33,62],[35,69,35,71],[32,16,35,27],[32,28,35,32],[32,67,32,68],[32,69,32,71],[29,66,30,68],[25,69,26,71],[24,67,24,68],[24,69,24,71],[27,66,27,68],[27,69,27,71],[28,67,28,68],[28,69,28,71],[28,59,28,66],[31,66,31,68],[31,69,31,71],[25,59,26,60],[29,59,30,60],[26,61,26,62],[25,66,26,68],[15,40,15,41],[15,42,15,47],[15,48,15,49],[24,59,24,66],[17,45,18,50],[19,45,19,50],[17,51,18,56],[19,51,19,56],[16,28,17,32],[18,28,19,32],[20,57,21,58],[21,59,22,60],[22,57,23,58],[20,59,20,66],[22,61,22,62],[21,63,21,65],[22,63,22,65],[21,45,21,50],[20,45,20,50],[22,45,23,50],[20,51,21,56],[22,51,23,56],[16,33,17,44],[18,33,19,44],[12,42,14,47],[12,40,14,41],[15,34,15,39],[15,24,15,25],[15,26,15,31],[11,24,11,31],[12,24,12,25],[12,0,12,1],[12,2,12,7],[11,0,11,7],[14,10,15,15],[14,8,15,9],[15,2,15,7],[15,0,15,1],[13,2,14,7],[13,0,14,1],[13,24,14,25],[12,16,13,17],[12,18,13,23],[11,8,11,23],[12,8,13,9],[11,32,11,39],[12,32,12,33],[12,34,12,39],[5,32,6,39],[7,32,7,33],[7,34,7,39],[7,8,8,9],[12,26,12,31],[7,10,8,15],[7,18,8,23],[9,16,10,17],[9,18,10,23],[12,10,13,15],[8,32,9,33],[8,34,9,39],[10,32,10,33],[10,34,10,39],[7,24,10,25],[7,26,10,31],[9,0,10,1],[7,2,8,7],[9,2,10,7],[7,0,8,1],[9,8,10,9],[9,10,10,15],[7,16,8,17],[20,0,23,1],[20,2,23,7],[14,16,15,23],[16,0,19,1],[16,2,19,7],[16,16,17,27],[18,16,19,27],[18,8,19,15],[16,8,17,15],[12,64,12,65],[11,56,11,63],[12,48,12,49],[12,50,12,55],[13,66,14,71],[13,64,14,65],[12,58,12,63],[15,50,15,55],[12,56,12,57],[15,64,15,65],[15,66,15,71],[13,58,14,63],[13,56,14,57],[12,66,12,71],[13,50,14,55],[13,48,14,49],[11,48,11,55],[15,56,15,57],[15,58,15,63],[11,64,11,71],[0,6,1,29],[2,6,3,29],[2,36,3,41],[2,42,3,64],[0,0,3,5],[0,30,0,35],[0,36,1,41],[0,42,1,64],[0,65,0,71],[1,30,3,35],[1,65,3,67],[1,68,3,68],[1,69,3,71],[4,0,4,5],[4,6,4,23],[4,24,4,29],[4,30,4,47],[4,48,4,53],[19,66,19,68],[20,8,23,15],[48,33,51,42],[19,69,19,71],[23,59,23,65],[23,66,23,68],[23,69,23,71],[19,59,19,65],[33,66,34,68],[33,69,34,71],[26,63,26,65],[27,59,27,65],[29,61,29,62],[29,63,29,65],[30,61,30,62],[30,63,30,65],[31,59,31,65],[32,59,32,66],[29,69,30,71],[48,16,51,27],[44,16,47,27],[44,28,47,32],[44,33,47,42],[44,43,44,44],[44,45,44,50],[44,51,45,56],[44,57,45,58],[44,59,44,66],[45,43,47,44],[45,45,45,50],[46,45,47,50],[46,51,47,56],[46,57,47,58],[45,61,45,62],[45,63,45,65],[49,59,50,60],[48,28,51,32],[34,51,35,56],[34,57,35,58],[33,63,33,65],[34,61,34,62],[34,63,34,65],[35,59,35,65],[35,66,35,68],[49,43,51,44],[49,45,49,50],[50,57,51,58],[50,61,50,62],[50,63,50,65],[51,59,51,65],[20,67,20,68],[21,66,22,68],[21,61,21,62],[25,61,25,62],[28,16,31,27],[28,28,31,32],[28,33,31,42],[28,43,28,44],[28,45,28,50],[28,51,29,56],[28,57,29,58],[29,43,31,44],[29,45,29,50],[30,45,31,50],[30,51,31,56],[30,57,31,58],[25,43,27,44],[25,45,25,50],[26,45,27,50],[26,51,27,56],[26,57,27,58],[20,16,23,27],[20,28,23,32],[20,43,20,44],[36,16,39,27],[36,28,39,32],[36,33,39,42],[36,43,36,44],[36,45,36,50],[36,51,37,56],[36,57,37,58],[36,59,36,66],[37,43,39,44],[37,45,37,50],[38,45,39,50],[38,51,39,56],[38,57,39,58],[37,61,37,62],[37,63,37,65],[38,61,38,62],[38,63,38,65],[39,59,39,65],[40,16,43,27],[40,28,43,32],[40,33,43,42],[40,43,40,44],[40,45,40,50],[40,51,41,56],[40,57,41,58],[40,59,40,66],[41,43,43,44],[41,45,41,50],[42,45,43,50],[42,51,43,56],[42,57,43,58],[41,61,41,62],[41,63,41,65],[42,61,42,62],[42,63,42,65],[43,59,43,65],[43,66,43,68],[41,66,42,68],[56,16,59,27],[56,28,59,32],[56,33,59,42],[56,43,56,44],[56,45,56,50],[56,51,57,56],[56,57,57,58],[56,59,56,66],[57,43,59,44],[57,45,57,50],[58,45,59,50],[58,51,59,56],[58,57,59,58],[57,61,57,62],[57,63,57,65],[58,61,58,62],[58,63,58,65],[59,59,59,65],[57,59,58,60],[52,57,53,58],[52,59,52,66],[53,43,55,44],[53,45,53,50],[54,45,55,50],[54,51,55,56],[54,57,55,58],[53,61,53,62],[53,63,53,65],[54,61,54,62],[54,63,54,65],[55,59,55,65],[53,59,54,60],[52,45,52,50],[52,51,53,56],[21,43,23,44],[20,33,23,42],[16,45,16,71],[17,59,18,71],[17,57,19,58],[50,45,51,50],[50,51,51,56],[5,40,6,55],[5,56,6,71],[7,40,10,71],[48,43,48,44],[48,45,48,50],[48,51,49,56],[48,57,49,58],[48,59,48,66],[49,61,49,62],[49,63,49,65],[46,61,46,62],[46,63,46,65],[47,59,47,65],[45,66,46,68],[20,69,20,71],[21,69,22,71],[25,63,25,65]]}
[1,null,null,null,null,null,"ProRes / プロキシ変換",null,null,null,null,null,null,null,null,null,null,null,null,null,null,null,null,null,null,null,null,null,null,null,"受付店",null,null,null,null,null,"受付番号",null,null,null,null,null,{"$f":"INDEX('(0)作業受付票'!$AQ$1,)","v":""},null,null,null,null,null,null,null,null,null,null,null,null,null,null,null,null,null,null,null,null,null,null,"受付枚数"]
[null,null,null,null,null,null,null,null,null,null,null,null,null,null,null,null,null,null,null,null,null,null,null,null,null,null,null,null,null,null,{"$f":"INDEX('(0)作業受付票'!$AE$2,)","v":"　"}]
[null,null,null,null,null,null,"(MOV)",null,null,null,null,null,null,null,null,null,null,null,null,null,null,null,null,null,null,null,null,null,null,null,null,null,null,null,null,null,"受付日時",null,null,null,null,null,{"$f":"NOW()","v":"2021-06-01T11:04:59.900"}]
[]
["会社名",null,null,null,null,null,{"$f":"INDEX('(0)作業受付票'!$K$5,)","v":""},null,null,null,null,null,null,null,null,null,null,null,null,null,null,null,null,null,"番組名",null,null,null,null,null,{"$f":"INDEX('(0)作業受付票'!$K$9,)","v":""},null,null,null,null,null,null,null,null,null,null,null,null,null,null,null,null,null,"担当者名",null,null,null,null,null,{"$f":"INDEX('(0)作業受付票'!$AV$11,)","v":""},null,null,null,null,null,null,null,null,null,null,null,null,null,null,null,"様"]
["HD作成コーデック",null,null,null,null,null,null,null,null,null,null,null,null,null,null,null,null,null,null,null,null,null,null,null,"作業内容(D作業)",null,null,null,null,null,null,null,"取込音声",null,null,null,null,null,null,null,"その他設定・備考",null,null,null,null,null,null,null,null,null,null,null,null,null,null,null,"お預かり品"]
[]
[null,null,"ProRes422\n(ノーマル)",null,null,null,null,null,null,null,"ProRes422\n(HQ)",null,null,null,null,null,null,null,"HDV圧縮",null,null,null,null,null,null,null,"テープ等(HDCAMなど)からのプレビュー用データ変換\n【D料金】",null,null,null,null,null,null,null,"1・2chのみ"]
[null,null,null,null,null,null,null,null,null,null,null,null,null,null,null,null,null,null,null,null,null,null,null,null,null,null,null,null,null,null,null,null,null,null,"4chパラ"]
[null,null,"ProRes422\n(LT)",null,null,null,null,null,null,null,"DVCPRO\nHD圧縮",null,null,null,null,null,null,null,"その他"]
[null,null,null,null,null,null,null,null,null,null,null,null,null,null,null,null,null,null,null,null,null,null,null,null,null,null,null,null,null,null,null,null,null,null,"8chパラ"]
["プロキシ作成",null,null,null,null,null,null,null,"プロキシコーデック",null,null,null,null,null,null,null,null,null,null,null,null,null,null,null,"ダウンコンバート形式",null,null,null,null,null,null,null,"タイムコードの焼付",null,null,null,null,null,null,null,"メディアバックアップ",null,null,null,null,null,null,null,"受けSSD/HDD",null,null,null,null,null,null,null,"フォーマット形式",null,null,null,null,null,null,null,"TOCレンタル\nメディアの処理"]
[null,null,"プロキシ先行",null,null,null,null,null,null,null,"DV圧縮",null,null,null,null,null,null,null,"ProRes422\n(Proxy)",null,null,null,null,null,null,null,"レターボックス",null,null,null,null,null,null,null,"あり(中上)",null,null,null,null,null,null,null,"取る\n(推奨)",null,null,null,null,null,null,null,"新規レンタル",null,null,null,null,null,null,null,"Mac(HFS+)",null,null,null,null,null,null,null,"作業後返却"]
[null,null,"同時納品",null,null,null,null,null,null,null,null,null,null,null,null,null,null,null,null,null,null,null,null,null,null,null,"サイドカット",null,null,null,null,null,null,null,"あり(中下)",null,null,null,null,null,null,null,null,null,null,null,null,null,null,null,"消去NG(持込)",null,null,null,null,null,null,null,"Win(NTFS)",null,null,null,null,null,null,null,"レンタル継続"]
[null,null,null,null,null,null,null,null,null,null,"その他"]
[null,null,"作成しない",null,null,null,null,null,null,null,null,null,null,null,null,null,null,null,null,null,null,null,null,null,null,null,"スクイーズ",null,null,null,null,null,null,null,"なし",null,null,null,null,null,null,null,"不要",null,null,null,null,null,null,null,"消去OK(持込)",null,null,null,null,null,null,null,"exFAT",null,null,null,null,null,null,null,"不明"]
[null,null,"メディア・テープの種類名",null,null,null,null,null,"メディア・テープの名称",null,null,null,null,null,null,null,"取込クリップ名",null,null,null,null,null,null,null,null,null,null,null,"EDL No.",null,null,null,null,"備考",null,null,null,null,null,null,null,null,null,null,null,"▼　▼　▼　弊社使用欄　▼　▼　▼"]
[null,null,null,null,null,null,null,null,null,null,null,null,null,null,null,null,null,null,null,null,null,null,null,null,null,null,null,null,null,null,null,null,null,null,null,null,null,null,null,null,null,null,null,null,null,"尺(分)",null,null,null,null,null,"保存先(ﾒｲﾝ)",null,null,null,null,null,"プロキシ\n納品",null,"メディアバックアップ(係数)"]
[null,null,null,null,null,null,null,null,"(作業者が判別できる範囲で)\nTOCメディアの場合は号機",null,null,null,null,null,null,null,"(ファイル名)",null,null,null,null,null,null,null,null,null,null,null,"(英数6桁)",null,null,null,null,"(MBU実施時の実容量)"]
[null,null,null,null,null,null,null,null,null,null,null,null,null,null,null,null,null,null,null,null,null,null,null,null,null,null,null,null,null,null,null,null,null,null,null,null,null,null,null,null,null,null,null,null,null,"一時保存先",null,null,null,null,null,"保存先(ﾌﾟﾛｷｼ)",null,null,null,null,null,null,null,"作業料金(係数)",null,null,null,null,null,null,"メイン",null,null,"プロキシ"]
[1,null,null,null,null,null,null,null,null,null,null,null,null,null,null,null,null,null,null,null,null,null,null,null,null,null,null,null,null,null,null,null,null,null,null,null,null,null,null,null,null,null,null,"GB",null,null,null,null,null,null,null,null,null,null,null,null,null,"先行",null,null,null,null,null,null,null,null,null,"GB"]
[null,null,null,null,null,null,null,null,null,null,null,null,null,null,null,null,null,null,null,null,null,null,null,null,null,null,null,null,null,null,null,null,null,null,null,null,null,null,null,null,null,null,null,null,null,"分",null,null,null,null,null,null,null,null,null,null,null,null,null,"D",null,"B",null,"P"]
[null,null,null,null,null,null,null,null,null,null,null,null,null,null,null,null,null,null,null,null,null,null,null,null,null,null,null,null,null,null,null,null,null,null,null,null,null,null,null,null,null,null,null,null,null,null,null,null,null,null,null,null,null,null,null,null,null,"同時",null,null,null,"B(S)",null,"P(S)"]
[]
[2,null,null,null,null,null,null,null,null,null,null,null,null,null,null,null,null,null,null,null,null,null,null,null,null,null,null,null,null,null,null,null,null,null,null,null,null,null,null,null,null,null,null,"GB",null,null,null,null,null,null,null,null,null,null,null,null,null,"先行",null,null,null,null,null,null,null,null,null,"GB"]
[null,null,null,null,null,null,null,null,null,null,null,null,null,null,null,null,null,null,null,null,null,null,null,null,null,null,null,null,null,null,null,null,null,null,null,null,null,null,null,null,null,null,null,null,null,"分",null,null,null,null,null,null,null,null,null,null,null,null,null,"D",null,"B",null,"P"]
[null,null,null,null,null,null,null,null,null,null,null,null,null,null,null,null,null,null,null,null,null,null,null,null,null,null,null,null,null,null,null,null,null,null,null,null,null,null,null,null,null,null,null,null,null,null,null,null,null,null,null,null,null,null,null,null,null,"同時",null,null,null,"B(S)",null,"P(S)"]
[]
[3,null,null,null,null,null,null,null,null,null,null,null,null,null,null,null,null,null,null,null,null,null,null,null,null,null,null,null,null,null,null,null,null,null,null,null,null,null,null,null,null,null,null,"GB",null,null,null,null,null,null,null,null,null,null,null,null,null,"先行",null,null,null,null,null,null,null,null,null,"GB"]
[null,null,null,null,null,null,null,null,null,null,null,null,null,null,null,null,null,null,null,null,null,null,null,null,null,null,null,null,null,null,null,null,null,null,null,null,null,null,null,null,null,null,null,null,null,"分",null,null,null,null,null,null,null,null,null,null,null,null,null,"D",null,"B",null,"P"]
[null,null,null,null,null,null,null,null,null,null,null,null,null,null,null,null,null,null,null,null,null,null,null,null,null,null,null,null,null,null,null,null,null,null,null,null,null,null,null,null,null,null,null,null,null,null,null,null,null,null,null,null,null,null,null,null,null,"同時",null,null,null,"B(S)",null,"P(S)"]
[]
[4,null,null,null,null,null,null,null,null,null,null,null,null,null,null,null,null,null,null,null,null,null,null,null,null,null,null,null,null,null,null,null,null,null,null,null,null,null,null,null,null,null,null,"GB",null,null,null,null,null,null,null,null,null,null,null,null,null,"先行",null,null,null,null,null,null,null,null,null,"GB"]
[null,null,null,null,null,null,null,null,null,null,null,null,null,null,null,null,null,null,null,null,null,null,null,null,null,null,null,null,null,null,null,null,null,null,null,null,null,null,null,null,null,null,null,null,null,"分",null,null,null,null,null,null,null,null,null,null,null,null,null,"D",null,"B",null,"P"]
[null,null,null,null,null,null,null,null,null,null,null,null,null,null,null,null,null,null,null,null,null,null,null,null,null,null,null,null,null,null,null,null,null,null,null,null,null,null,null,null,null,null,null,null,null,null,null,null,null,null,null,null,null,null,null,null,null,"同時",null,null,null,"B(S)",null,"P(S)"]
[]
[5,null,null,null,null,null,null,null,null,null,null,null,null,null,null,null,null,null,null,null,null,null,null,null,null,null,null,null,null,null,null,null,null,null,null,null,null,null,null,null,null,null,null,"GB",null,null,null,null,null,null,null,null,null,null,null,null,null,"先行",null,null,null,null,null,null,null,null,null,"GB"]
[null,null,null,null,null,null,null,null,null,null,null,null,null,null,null,null,null,null,null,null,null,null,null,null,null,null,null,null,null,null,null,null,null,null,null,null,null,null,null,null,null,null,null,null,null,"分",null,null,null,null,null,null,null,null,null,null,null,null,null,"D",null,"B",null,"P"]
[null,null,null,null,null,null,null,null,null,null,null,null,null,null,null,null,null,null,null,null,null,null,null,null,null,null,null,null,null,null,null,null,null,null,null,null,null,null,null,null,null,null,null,null,null,null,null,null,null,null,null,null,null,null,null,null,null,"同時",null,null,null,"B(S)",null,"P(S)"]
[]
[6,null,null,null,null,null,null,null,null,null,null,null,null,null,null,null,null,null,null,null,null,null,null,null,null,null,null,null,null,null,null,null,null,null,null,null,null,null,null,null,null,null,null,"GB",null,null,null,null,null,null,null,null,null,null,null,null,null,"先行",null,null,null,null,null,null,null,null,null,"GB"]
[null,null,null,null,null,null,null,null,null,null,null,null,null,null,null,null,null,null,null,null,null,null,null,null,null,null,null,null,null,null,null,null,null,null,null,null,null,null,null,null,null,null,null,null,null,"分",null,null,null,null,null,null,null,null,null,null,null,null,null,"D",null,"B",null,"P"]
[null,null,null,null,null,null,null,null,null,null,null,null,null,null,null,null,null,null,null,null,null,null,null,null,null,null,null,null,null,null,null,null,null,null,null,null,null,null,null,null,null,null,null,null,null,null,null,null,null,null,null,null,null,null,null,null,null,"同時",null,null,null,"B(S)",null,"P(S)"]
[]
[7,null,null,null,null,null,null,null,null,null,null,null,null,null,null,null,null,null,null,null,null,null,null,null,null,null,null,null,null,null,null,null,null,null,null,null,null,null,null,null,null,null,null,"GB",null,null,null,null,null,null,null,null,null,null,null,null,null,"先行",null,null,null,null,null,null,null,null,null,"GB"]
[null,null,null,null,null,null,null,null,null,null,null,null,null,null,null,null,null,null,null,null,null,null,null,null,null,null,null,null,null,null,null,null,null,null,null,null,null,null,null,null,null,null,null,null,null,"分",null,null,null,null,null,null,null,null,null,null,null,null,null,"D",null,"B",null,"P"]
[null,null,null,null,null,null,null,null,null,null,null,null,null,null,null,null,null,null,null,null,null,null,null,null,null,null,null,null,null,null,null,null,null,null,null,null,null,null,null,null,null,null,null,null,null,null,null,null,null,null,null,null,null,null,null,null,null,"同時",null,null,null,"B(S)",null,"P(S)"]
[]
[8,null,null,null,null,null,null,null,null,null,null,null,null,null,null,null,null,null,null,null,null,null,null,null,null,null,null,null,null,null,null,null,null,null,null,null,null,null,null,null,null,null,null,"GB",null,null,null,null,null,null,null,null,null,null,null,null,null,"先行",null,null,null,null,null,null,null,null,null,"GB"]
[null,null,null,null,null,null,null,null,null,null,null,null,null,null,null,null,null,null,null,null,null,null,null,null,null,null,null,null,null,null,null,null,null,null,null,null,null,null,null,null,null,null,null,null,null,"分",null,null,null,null,null,null,null,null,null,null,null,null,null,"D",null,"B",null,"P"]
[null,null,null,null,null,null,null,null,null,null,null,null,null,null,null,null,null,null,null,null,null,null,null,null,null,null,null,null,null,null,null,null,null,null,null,null,null,null,null,null,null,null,null,null,null,null,null,null,null,null,null,null,null,null,null,null,null,"同時",null,null,null,"B(S)",null,"P(S)"]
[]
[9,null,null,null,null,null,null,null,null,null,null,null,null,null,null,null,null,null,null,null,null,null,null,null,null,null,null,null,null,null,null,null,null,null,null,null,null,null,null,null,null,null,null,"GB",null,null,null,null,null,null,null,null,null,null,null,null,null,"先行",null,null,null,null,null,null,null,null,null,"GB"]
[null,null,null,null,null,null,null,null,null,null,null,null,null,null,null,null,null,null,null,null,null,null,null,null,null,null,null,null,null,null,null,null,null,null,null,null,null,null,null,null,null,null,null,null,null,"分",null,null,null,null,null,null,null,null,null,null,null,null,null,"D",null,"B",null,"P"]
[null,null,null,null,null,null,null,null,null,null,null,null,null,null,null,null,null,null,null,null,null,null,null,null,null,null,null,null,null,null,null,null,null,null,null,null,null,null,null,null,null,null,null,null,null,null,null,null,null,null,null,null,null,null,null,null,null,"同時",null,null,null,"B(S)",null,"P(S)"]
[]
[10,null,null,null,null,null,null,null,null,null,null,null,null,null,null,null,null,null,null,null,null,null,null,null,null,null,null,null,null,null,null,null,null,null,null,null,null,null,null,null,null,null,null,"GB",null,null,null,null,null,null,null,null,null,null,null,null,null,"先行",null,null,null,null,null,null,null,null,null,"GB"]
[null,null,null,null,null,null,null,null,null,null,null,null,null,null,null,null,null,null,null,null,null,null,null,null,null,null,null,null,null,null,null,null,null,null,null,null,null,null,null,null,null,null,null,null,null,"分",null,null,null,null,null,null,null,null,null,null,null,null,null,"D",null,"B",null,"P"]
[null,null,null,null,null,null,null,null,null,null,null,null,null,null,null,null,null,null,null,null,null,null,null,null,null,null,null,null,null,null,null,null,null,null,null,null,null,null,null,null,null,null,null,null,null,null,null,null,null,null,null,null,null,null,null,null,null,"同時",null,null,null,"B(S)",null,"P(S)"]

{"sheet":"(2)MXF","index":3,"n_rows":59,"n_cols":71,"rows_kept":59,"cut":false,"hidden":false,"merged":[[53,59,54,60],[57,59,58,60],[51,59,51,65],[34,63,34,65],[35,59,35,65],[37,61,37,62],[37,63,37,65],[52,59,52,66],[53,61,53,62],[53,63,53,65],[54,61,54,62],[54,63,54,65],[53,66,54,68],[55,59,55,65],[55,66,55,68],[36,67,36,68],[45,66,46,68],[56,59,56,66],[36,69,36,71],[52,67,52,68],[52,69,52,71],[40,67,40,68],[43,69,43,71],[25,69,26,71],[33,66,34,68],[27,69,27,71],[33,69,34,71],[35,66,35,68],[35,69,35,71],[29,69,30,71],[31,66,31,68],[31,69,31,71],[28,67,28,68],[28,69,28,71],[37,66,38,68],[37,69,38,71],[39,66,39,68],[40,69,40,71],[44,67,44,68],[44,69,44,71],[48,67,48,68],[48,69,48,71],[4,70,4,71],[32,67,32,68],[32,69,32,71],[20,69,20,71],[20,67,20,68],[24,67,24,68],[25,59,26,60],[29,59,30,60],[19,69,19,71],[16,0,19,1],[16,2,19,7],[16,8,17,15],[18,8,19,15],[13,0,14,1],[13,2,14,7],[24,2,27,7],[12,66,12,71],[9,16,10,17],[9,18,10,23],[24,69,24,71],[22,63,22,65],[23,59,23,65],[21,69,22,71],[23,66,23,68],[24,59,24,66],[11,56,11,63],[11,64,11,71],[12,56,12,57],[12,58,12,63],[10,34,10,39],[12,34,12,39],[12,40,14,41],[9,2,10,7],[20,0,23,1],[20,2,23,7],[12,42,14,47],[17,59,18,71],[19,45,19,50],[19,51,19,56],[19,59,19,65],[15,50,15,55],[15,56,15,57],[15,58,15,63],[15,64,15,65],[15,66,15,71],[20,33,23,42],[20,43,20,44],[20,45,20,50],[16,45,16,71],[17,45,18,50],[17,51,18,56],[17,57,19,58],[19,66,19,68],[20,51,21,56],[20,57,21,58],[20,59,20,66],[21,43,23,44],[28,0,31,1],[28,2,31,7],[24,0,27,1],[5,32,6,39],[7,32,7,33],[7,34,7,39],[8,32,9,33],[8,34,9,39],[10,32,10,33],[15,0,15,1],[15,2,15,7],[15,24,15,25],[12,16,13,17],[12,18,13,23],[12,24,12,25],[12,26,12,31],[12,32,12,33],[7,0,8,1],[7,2,8,7],[18,16,19,27],[18,28,19,32],[18,33,19,44],[20,16,23,27],[20,28,23,32],[32,0,35,1],[27,59,27,65],[25,61,25,62],[25,63,25,65],[32,2,35,7],[29,61,29,62],[29,63,29,65],[30,61,30,62],[30,63,30,65],[31,59,31,65],[24,8,27,15],[28,8,31,15],[32,8,35,15],[24,16,27,27],[24,28,27,32],[24,33,27,42],[24,43,24,44],[24,45,24,50],[24,51,25,56],[24,57,25,58],[32,59,32,66],[33,61,33,62],[33,63,33,65],[34,61,34,62],[57,69,58,71],[56,2,59,7],[59,66,59,68],[59,69,59,71],[56,67,56,68],[56,69,56,71],[45,61,45,62],[45,63,45,65],[46,61,46,62],[46,63,46,65],[47,59,47,65],[49,61,49,62],[49,63,49,65],[50,61,50,62],[53,69,54,71],[45,69,46,71],[47,66,47,68],[47,69,47,71],[49,66,50,68],[49,69,50,71],[55,69,55,71],[51,66,51,68],[51,69,51,71],[50,63,50,65],[39,69,39,71],[41,66,42,68],[41,69,42,71],[38,61,38,62],[38,63,38,65],[39,59,39,65],[48,45,48,50],[48,51,49,56],[48,57,49,58],[48,59,48,66],[49,45,49,50],[37,59,38,60],[41,59,42,60],[45,59,46,60],[49,59,50,60],[50,45,51,50],[50,51,51,56],[50,57,51,58],[44,16,47,27],[44,28,47,32],[44,33,47,42],[44,43,44,44],[48,16,51,27],[48,28,51,32],[48,33,51,42],[48,43,48,44],[49,43,51,44],[56,51,57,56],[56,57,57,58],[57,43,59,44],[57,45,57,50],[58,45,59,50],[58,51,59,56],[52,16,55,27],[52,28,55,32],[52,33,55,42],[52,43,52,44],[56,0,59,1],[52,0,55,1],[52,2,55,7],[52,8,55,15],[56,8,59,15],[56,16,59,27],[56,28,59,32],[56,33,59,42],[56,43,56,44],[44,0,47,1],[44,2,47,7],[40,0,43,1],[40,2,43,7],[36,0,39,1],[48,0,51,1],[48,2,51,7],[44,8,47,15],[48,8,51,15],[36,2,39,7],[40,8,43,15],[36,8,39,15],[23,69,23,71],[15,48,15,49],[15,40,15,41],[11,8,11,23],[11,24,11,31],[11,32,11,39],[11,40,11,47],[11,48,11,55],[12,8,13,9],[12,10,13,15],[16,16,17,27],[16,28,17,32],[16,33,17,44],[13,66,14,71],[13,48,14,49],[14,16,15,23],[12,48,12,49],[12,50,12,55],[13,56,14,57],[13,58,14,63],[13,64,14,65],[15,34,15,39],[21,66,22,68],[20,8,23,15],[0,0,3,5],[0,6,1,29],[0,30,0,35],[0,36,1,41],[0,42,1,64],[12,64,12,65],[12,0,12,1],[12,2,12,7],[11,0,11,7],[9,0,10,1],[0,65,0,71],[1,30,3,35],[1,65,3,67],[1,68,3,68],[1,69,3,71],[4,0,4,5],[4,6,4,23],[4,24,4,29],[5,0,6,7],[7,8,8,9],[4,30,4,47],[4,48,4,53],[9,8,10,9],[2,6,3,29],[2,36,3,41],[2,42,3,64],[15,42,15,47],[13,24,14,25],[13,26,14,31],[13,32,14,33],[13,34,14,39],[13,50,14,55],[14,8,15,9],[14,10,15,15],[15,26,15,31],[15,32,15,33],[5,24,6,31],[7,10,8,15],[5,8,6,23],[7,16,8,17],[9,10,10,15],[7,18,8,23],[7,24,8,25],[7,26,8,31],[9,24,10,25],[9,26,10,31],[4,54,4,69],[58,57,59,58],[57,61,57,62],[57,63,57,65],[58,61,58,62],[58,63,58,65],[59,59,59,65],[57,66,58,68],[36,16,39,27],[36,28,39,32],[36,43,36,44],[37,43,39,44],[37,45,37,50],[38,45,39,50],[38,51,39,56],[38,57,39,58],[52,45,52,50],[52,51,53,56],[52,57,53,58],[53,43,55,44],[53,45,53,50],[54,45,55,50],[54,51,55,56],[54,57,55,58],[56,45,56,50],[28,16,31,27],[28,28,31,32],[28,33,31,42],[28,43,28,44],[28,45,28,50],[28,51,29,56],[28,57,29,58],[28,59,28,66],[29,43,31,44],[29,45,29,50],[36,33,39,42],[32,28,35,32],[26,63,26,65],[21,45,21,50],[22,45,23,50],[22,51,23,56],[22,57,23,58],[21,61,21,62],[21,63,21,65],[22,61,22,62],[21,59,22,60],[34,57,35,58],[33,59,34,60],[32,33,35,42],[32,43,32,44],[32,45,32,50],[32,51,33,56],[32,57,33,58],[33,43,35,44],[33,45,33,50],[34,45,35,50],[34,51,35,56],[30,45,31,50],[30,51,31,56],[30,57,31,58],[29,66,30,68],[40,16,43,27],[40,28,43,32],[40,33,43,42],[40,43,40,44],[40,45,40,50],[40,51,41,56],[40,57,41,58],[40,59,40,66],[41,43,43,44],[41,45,41,50],[42,45,43,50],[42,51,43,56],[42,57,43,58],[43,66,43,68],[41,61,41,62],[41,63,41,65],[42,61,42,62],[42,63,42,65],[43,59,43,65],[32,16,35,27],[5,40,6,55],[5,56,6,71],[7,40,10,71],[44,45,44,50],[44,51,45,56],[44,57,45,58],[44,59,44,66],[45,43,47,44],[45,45,45,50],[46,45,47,50],[46,51,47,56],[46,57,47,58],[36,45,36,50],[36,51,37,56],[36,57,37,58],[36,59,36,66],[25,43,27,44],[25,45,25,50],[26,45,27,50],[26,51,27,56],[26,57,27,58],[27,66,27,68],[25,66,26,68],[26,61,26,62]]}
[2,null,null,null,null,null,"MXF / プロキシ変換",null,null,null,null,null,null,null,null,null,null,null,null,null,null,null,null,null,null,null,null,null,null,null,"受付店",null,null,null,null,null,"受付番号",null,null,null,null,null,{"$f":"INDEX('(0)作業受付票'!$AQ$1,)","v":""},null,null,null,null,null,null,null,null,null,null,null,null,null,null,null,null,null,null,null,null,null,null,"受付枚数"]
[null,null,null,null,null,null,null,null,null,null,null,null,null,null,null,null,null,null,null,null,null,null,null,null,null,null,null,null,null,null,{"$f":"INDEX('(0)作業受付票'!$AE$2,)","v":"　"}]
[null,null,null,null,null,null,"(XDCAMコーデック)",null,null,null,null,null,null,null,null,null,null,null,null,null,null,null,null,null,null,null,null,null,null,null,null,null,null,null,null,null,"受付日時",null,null,null,null,null,{"$f":"NOW()","v":"2021-06-01T11:04:59.900"}]
[]
["会社名",null,null,null,null,null,{"$f":"INDEX('(0)作業受付票'!$K$5,)","v":""},null,null,null,null,null,null,null,null,null,null,null,null,null,null,null,null,null,"番組名",null,null,null,null,null,{"$f":"INDEX('(0)作業受付票'!$K$9,)","v":""},null,null,null,null,null,null,null,null,null,null,null,null,null,null,null,null,null,"担当者名",null,null,null,null,null,{"$f":"INDEX('(0)作業受付票'!$AV$11,)","v":""},null,null,null,null,null,null,null,null,null,null,null,null,null,null,null,"様"]
["コンテナ",null,null,null,null,null,null,null,"HD作成コーデック(B作業)",null,null,null,null,null,null,null,null,null,null,null,null,null,null,null,"作業内容(D作業)",null,null,null,null,null,null,null,"取込音声",null,null,null,null,null,null,null,"その他設定・備考",null,null,null,null,null,null,null,null,null,null,null,null,null,null,null,"お預かり品"]
[]
[null,null,"MXF",null,null,null,null,null,null,null,"HD422\n(50Mbps)",null,null,null,null,null,null,null,"HD420\n(35Mbps)",null,null,null,null,null,null,null,"XDCAM\nデータコピー",null,null,null,null,null,null,null,"1・2chのみ"]
[null,null,null,null,null,null,null,null,null,null,null,null,null,null,null,null,null,null,null,null,null,null,null,null,null,null,null,null,null,null,null,null,null,null,"4chパラ"]
[null,null,"MOV",null,null,null,null,null,null,null,"XAVCintra\n(100Mbps)",null,null,null,null,null,null,null,"その他",null,null,null,null,null,null,null,"XDCAM\nリラップ"]
[null,null,null,null,null,null,null,null,null,null,null,null,null,null,null,null,null,null,null,null,null,null,null,null,null,null,null,null,null,null,null,null,null,null,"8chパラ"]
["プロキシ作成",null,null,null,null,null,null,null,"プロキシコーデック",null,null,null,null,null,null,null,null,null,null,null,null,null,null,null,"ダウンコンバート形式",null,null,null,null,null,null,null,"タイムコードの焼付",null,null,null,null,null,null,null,"メディアバックアップ",null,null,null,null,null,null,null,"受けSSD/HDD",null,null,null,null,null,null,null,"フォーマット形式",null,null,null,null,null,null,null,"TOCレンタル\nメディアの処理"]
[null,null,"プロキシ先行",null,null,null,null,null,null,null,"DV圧縮",null,null,null,null,null,null,null,"ProRes422\n(Proxy)",null,null,null,null,null,null,null,"レターボックス",null,null,null,null,null,null,null,"あり(中上)",null,null,null,null,null,null,null,"取る\n(推奨)",null,null,null,null,null,null,null,"新規レンタル",null,null,null,null,null,null,null,"Mac(HFS+)",null,null,null,null,null,null,null,"作業後返却"]
[null,null,"同時納品",null,null,null,null,null,null,null,null,null,null,null,null,null,null,null,null,null,null,null,null,null,null,null,"サイドカット",null,null,null,null,null,null,null,"あり(中下)",null,null,null,null,null,null,null,null,null,null,null,null,null,null,null,"消去NG(持込)",null,null,null,null,null,null,null,"Win(NTFS)",null,null,null,null,null,null,null,"レンタル継続"]
[null,null,null,null,null,null,null,null,null,null,"その他"]
[null,null,"作成しない",null,null,null,null,null,null,null,null,null,null,null,null,null,null,null,null,null,null,null,null,null,null,null,"スクイーズ",null,null,null,null,null,null,null,"なし",null,null,null,null,null,null,null,"不要",null,null,null,null,null,null,null,"消去OK(持込)",null,null,null,null,null,null,null,"exFAT",null,null,null,null,null,null,null,"不明"]
[null,null,"メディア・テープの種類名",null,null,null,null,null,"メディア・テープの名称",null,null,null,null,null,null,null,"取込クリップ名",null,null,null,null,null,null,null,null,null,null,null,"EDL No.",null,null,null,null,"備考",null,null,null,null,null,null,null,null,null,null,null,"▼　▼　▼　弊社使用欄　▼　▼　▼"]
[null,null,null,null,null,null,null,null,null,null,null,null,null,null,null,null,null,null,null,null,null,null,null,null,null,null,null,null,null,null,null,null,null,null,null,null,null,null,null,null,null,null,null,null,null,"尺(分)",null,null,null,null,null,"保存先(ﾒｲﾝ)",null,null,null,null,null,"プロキシ\n納品",null,"メディアバックアップ(係数)"]
[null,null,null,null,null,null,null,null,"(作業者が判別できる範囲で)\nTOCメディアの場合は号機",null,null,null,null,null,null,null,"(ファイル名)",null,null,null,null,null,null,null,null,null,null,null,"(英数6桁)",null,null,null,null,"(MBU実施時の実容量)"]
[null,null,null,null,null,null,null,null,null,null,null,null,null,null,null,null,null,null,null,null,null,null,null,null,null,null,null,null,null,null,null,null,null,null,null,null,null,null,null,null,null,null,null,null,null,"一時保存先",null,null,null,null,null,"保存先(ﾌﾟﾛｷｼ)",null,null,null,null,null,null,null,"作業料金(係数)",null,null,null,null,null,null,"メイン",null,null,"プロキシ"]
[1,null,null,null,null,null,null,null,null,null,null,null,null,null,null,null,null,null,null,null,null,null,null,null,null,null,null,null,null,null,null,null,null,null,null,null,null,null,null,null,null,null,null,"GB",null,null,null,null,null,null,null,null,null,null,null,null,null,"先行",null,null,null,null,null,null,null,null,null,"GB"]
[null,null,null,null,null,null,null,null,null,null,null,null,null,null,null,null,null,null,null,null,null,null,null,null,null,null,null,null,null,null,null,null,null,null,null,null,null,null,null,null,null,null,null,null,null,"分",null,null,null,null,null,null,null,null,null,null,null,null,null,"D",null,"B",null,"P"]
[null,null,null,null,null,null,null,null,null,null,null,null,null,null,null,null,null,null,null,null,null,null,null,null,null,null,null,null,null,null,null,null,null,null,null,null,null,null,null,null,null,null,null,null,null,null,null,null,null,null,null,null,null,null,null,null,null,"同時",null,null,null,"B(S)",null,"P(S)"]
[]
[2,null,null,null,null,null,null,null,null,null,null,null,null,null,null,null,null,null,null,null,null,null,null,null,null,null,null,null,null,null,null,null,null,null,null,null,null,null,null,null,null,null,null,"GB",null,null,null,null,null,null,null,null,null,null,null,null,null,"先行",null,null,null,null,null,null,null,null,null,"GB"]
[null,null,null,null,null,null,null,null,null,null,null,null,null,null,null,null,null,null,null,null,null,null,null,null,null,null,null,null,null,null,null,null,null,null,null,null,null,null,null,null,null,null,null,null,null,"分",null,null,null,null,null,null,null,null,null,null,null,null,null,"D",null,"B",null,"P"]
[null,null,null,null,null,null,null,null,null,null,null,null,null,null,null,null,null,null,null,null,null,null,null,null,null,null,null,null,null,null,null,null,null,null,null,null,null,null,null,null,null,null,null,null,null,null,null,null,null,null,null,null,null,null,null,null,null,"同時",null,null,null,"B(S)",null,"P(S)"]
[]
[3,null,null,null,null,null,null,null,null,null,null,null,null,null,null,null,null,null,null,null,null,null,null,null,null,null,null,null,null,null,null,null,null,null,null,null,null,null,null,null,null,null,null,"GB",null,null,null,null,null,null,null,null,null,null,null,null,null,"先行",null,null,null,null,null,null,null,null,null,"GB"]
[null,null,null,null,null,null,null,null,null,null,null,null,null,null,null,null,null,null,null,null,null,null,null,null,null,null,null,null,null,null,null,null,null,null,null,null,null,null,null,null,null,null,null,null,null,"分",null,null,null,null,null,null,null,null,null,null,null,null,null,"D",null,"B",null,"P"]
[null,null,null,null,null,null,null,null,null,null,null,null,null,null,null,null,null,null,null,null,null,null,null,null,null,null,null,null,null,null,null,null,null,null,null,null,null,null,null,null,null,null,null,null,null,null,null,null,null,null,null,null,null,null,null,null,null,"同時",null,null,null,"B(S)",null,"P(S)"]
[]
[4,null,null,null,null,null,null,null,null,null,null,null,null,null,null,null,null,null,null,null,null,null,null,null,null,null,null,null,null,null,null,null,null,null,null,null,null,null,null,null,null,null,null,"GB",null,null,null,null,null,null,null,null,null,null,null,null,null,"先行",null,null,null,null,null,null,null,null,null,"GB"]
[null,null,null,null,null,null,null,null,null,null,null,null,null,null,null,null,null,null,null,null,null,null,null,null,null,null,null,null,null,null,null,null,null,null,null,null,null,null,null,null,null,null,null,null,null,"分",null,null,null,null,null,null,null,null,null,null,null,null,null,"D",null,"B",null,"P"]
[null,null,null,null,null,null,null,null,null,null,null,null,null,null,null,null,null,null,null,null,null,null,null,null,null,null,null,null,null,null,null,null,null,null,null,null,null,null,null,null,null,null,null,null,null,null,null,null,null,null,null,null,null,null,null,null,null,"同時",null,null,null,"B(S)",null,"P(S)"]
[]
[5,null,null,null,null,null,null,null,null,null,null,null,null,null,null,null,null,null,null,null,null,null,null,null,null,null,null,null,null,null,null,null,null,null,null,null,null,null,null,null,null,null,null,"GB",null,null,null,null,null,null,null,null,null,null,null,null,null,"先行",null,null,null,null,null,null,null,null,null,"GB"]
[null,null,null,null,null,null,null,null,null,null,null,null,null,null,null,null,null,null,null,null,null,null,null,null,null,null,null,null,null,null,null,null,null,null,null,null,null,null,null,null,null,null,null,null,null,"分",null,null,null,null,null,null,null,null,null,null,null,null,null,"D",null,"B",null,"P"]
[null,null,null,null,null,null,null,null,null,null,null,null,null,null,null,null,null,null,null,null,null,null,null,null,null,null,null,null,null,null,null,null,null,null,null,null,null,null,null,null,null,null,null,null,null,null,null,null,null,null,null,null,null,null,null,null,null,"同時",null,null,null,"B(S)",null,"P(S)"]
[]
[6,null,null,null,null,null,null,null,null,null,null,null,null,null,null,null,null,null,null,null,null,null,null,null,null,null,null,null,null,null,null,null,null,null,null,null,null,null,null,null,null,null,null,"GB",null,null,null,null,null,null,null,null,null,null,null,null,null,"先行",null,null,null,null,null,null,null,null,null,"GB"]
[null,null,null,null,null,null,null,null,null,null,null,null,null,null,null,null,null,null,null,null,null,null,null,null,null,null,null,null,null,null,null,null,null,null,null,null,null,null,null,null,null,null,null,null,null,"分",null,null,null,null,null,null,null,null,null,null,null,null,null,"D",null,"B",null,"P"]
[null,null,null,null,null,null,null,null,null,null,null,null,null,null,null,null,null,null,null,null,null,null,null,null,null,null,null,null,null,null,null,null,null,null,null,null,null,null,null,null,null,null,null,null,null,null,null,null,null,null,null,null,null,null,null,null,null,"同時",null,null,null,"B(S)",null,"P(S)"]
[]
[7,null,null,null,null,null,null,null,null,null,null,null,null,null,null,null,null,null,null,null,null,null,null,null,null,null,null,null,null,null,null,null,null,null,null,null,null,null,null,null,null,null,null,"GB",null,null,null,null,null,null,null,null,null,null,null,null,null,"先行",null,null,null,null,null,null,null,null,null,"GB"]
[null,null,null,null,null,null,null,null,null,null,null,null,null,null,null,null,null,null,null,null,null,null,null,null,null,null,null,null,null,null,null,null,null,null,null,null,null,null,null,null,null,null,null,null,null,"分",null,null,null,null,null,null,null,null,null,null,null,null,null,"D",null,"B",null,"P"]
[null,null,null,null,null,null,null,null,null,null,null,null,null,null,null,null,null,null,null,null,null,null,null,null,null,null,null,null,null,null,null,null,null,null,null,null,null,null,null,null,null,null,null,null,null,null,null,null,null,null,null,null,null,null,null,null,null,"同時",null,null,null,"B(S)",null,"P(S)"]
[]
[8,null,null,null,null,null,null,null,null,null,null,null,null,null,null,null,null,null,null,null,null,null,null,null,null,null,null,null,null,null,null,null,null,null,null,null,null,null,null,null,null,null,null,"GB",null,null,null,null,null,null,null,null,null,null,null,null,null,"先行",null,null,null,null,null,null,null,null,null,"GB"]
[null,null,null,null,null,null,null,null,null,null,null,null,null,null,null,null,null,null,null,null,null,null,null,null,null,null,null,null,null,null,null,null,null,null,null,null,null,null,null,null,null,null,null,null,null,"分",null,null,null,null,null,null,null,null,null,null,null,null,null,"D",null,"B",null,"P"]
[null,null,null,null,null,null,null,null,null,null,null,null,null,null,null,null,null,null,null,null,null,null,null,null,null,null,null,null,null,null,null,null,null,null,null,null,null,null,null,null,null,null,null,null,null,null,null,null,null,null,null,null,null,null,null,null,null,"同時",null,null,null,"B(S)",null,"P(S)"]
[]
[9,null,null,null,null,null,null,null,null,null,null,null,null,null,null,null,null,null,null,null,null,null,null,null,null,null,null,null,null,null,null,null,null,null,null,null,null,null,null,null,null,null,null,"GB",null,null,null,null,null,null,null,null,null,null,null,null,null,"先行",null,null,null,null,null,null,null,null,null,"GB"]
[null,null,null,null,null,null,null,null,null,null,null,null,null,null,null,null,null,null,null,null,null,null,null,null,null,null,null,null,null,null,null,null,null,null,null,null,null,null,null,null,null,null,null,null,null,"分",null,null,null,null,null,null,null,null,null,null,null,null,null,"D",null,"B",null,"P"]
[null,null,null,null,null,null,null,null,null,null,null,null,null,null,null,null,null,null,null,null,null,null,null,null,null,null,null,null,null,null,null,null,null,null,null,null,null,null,null,null,null,null,null,null,null,null,null,null,null,null,null,null,null,null,null,null,null,"同時",null,null,null,"B(S)",null,"P(S)"]
[]
[10,null,null,null,null,null,null,null,null,null,null,null,null,null,null,null,null,null,null,null,null,null,null,null,null,null,null,null,null,null,null,null,null,null,null,null,null,null,null,null,null,null,null,"GB",null,null,null,null,null,null,null,null,null,null,null,null,null,"先行",null,null,null,null,null,null,null,null,null,"GB"]
[null,null,null,null,null,null,null,null,null,null,null,null,null,null,null,null,null,null,null,null,null,null,null,null,null,null,null,null,null,null,null,null,null,null,null,null,null,null,null,null,null,null,null,null,null,"分",null,null,null,null,null,null,null,null,null,null,null,null,null,"D",null,"B",null,"P"]
[null,null,null,null,null,null,null,null,null,null,null,null,null,null,null,null,null,null,null,null,null,null,null,null,null,null,null,null,null,null,null,null,null,null,null,null,null,null,null,null,null,null,null,null,null,null,null,null,null,null,null,null,null,null,null,null,null,"同時",null,null,null,"B(S)",null,"P(S)"]

{"sheet":"(3)Avid","index":4,"n_rows":59,"n_cols":71,"rows_kept":59,"cut":false,"hidden":false,"merged":[[57,59,58,60],[55,69,55,71],[56,67,56,68],[56,69,56,71],[57,66,58,68],[57,69,58,71],[59,66,59,68],[59,69,59,71],[20,67,20,68],[20,69,20,71],[24,67,24,68],[53,66,54,68],[53,69,54,71],[28,67,28,68],[28,69,28,71],[48,67,48,68],[52,67,52,68],[52,69,52,71],[32,67,32,68],[32,69,32,71],[43,66,43,68],[45,66,46,68],[45,69,46,71],[47,66,47,68],[47,69,47,71],[51,69,51,71],[33,66,34,68],[33,69,34,71],[35,66,35,68],[35,69,35,71],[36,67,36,68],[36,69,36,71],[40,67,40,68],[40,69,40,71],[41,66,42,68],[41,69,42,71],[48,69,48,71],[44,67,44,68],[44,69,44,71],[37,66,38,68],[37,69,38,71],[39,66,39,68],[39,69,39,71],[49,66,50,68],[49,69,50,71],[51,66,51,68],[43,69,43,71],[5,0,6,7],[5,8,6,15],[9,8,10,9],[9,10,10,15],[9,0,10,1],[11,64,11,71],[12,8,13,9],[12,10,13,15],[12,16,13,17],[12,18,13,23],[12,24,12,25],[12,26,12,31],[12,32,12,33],[12,34,12,39],[12,40,14,41],[12,42,14,47],[12,48,12,49],[12,50,12,55],[12,66,12,71],[5,32,6,39],[7,32,7,33],[13,34,14,39],[7,0,8,1],[7,2,8,7],[13,66,14,71],[15,56,15,57],[15,58,15,63],[15,64,15,65],[15,66,15,71],[23,66,23,68],[23,69,23,71],[19,59,19,65],[21,61,21,62],[21,63,21,65],[22,61,22,62],[22,63,22,65],[23,59,23,65],[17,57,19,58],[17,59,18,71],[21,59,22,60],[11,0,11,7],[9,2,10,7],[7,16,8,17],[7,18,8,23],[7,24,8,25],[7,26,8,31],[9,16,10,17],[9,18,10,23],[9,24,10,25],[9,26,10,31],[52,28,55,32],[56,14,59,19],[56,20,59,27],[56,28,59,32],[5,16,6,31],[19,69,19,71],[25,66,26,68],[25,69,26,71],[27,66,27,68],[24,69,24,71],[27,69,27,71],[19,66,19,68],[21,66,22,68],[21,69,22,71],[11,40,11,47],[15,42,15,47],[11,8,11,23],[11,24,11,31],[11,32,11,39],[15,24,15,25],[7,8,8,9],[7,10,8,15],[11,48,11,55],[29,69,30,71],[40,14,43,19],[44,14,47,19],[48,14,51,19],[48,20,51,27],[56,0,59,1],[56,2,59,7],[52,0,55,1],[52,2,55,7],[52,8,55,13],[56,8,59,13],[52,14,55,19],[52,20,55,27],[40,0,43,1],[44,0,47,1],[44,2,47,7],[44,8,47,13],[48,8,51,13],[48,0,51,1],[48,2,51,7],[40,8,43,13],[40,2,43,7],[40,20,43,27],[44,20,47,27],[16,33,17,44],[16,45,16,71],[17,45,18,50],[17,51,18,56],[36,0,39,1],[36,2,39,7],[36,8,39,13],[32,0,35,1],[32,2,35,7],[28,0,31,1],[28,2,31,7],[28,8,31,13],[32,8,35,13],[31,69,31,71],[29,66,30,68],[18,33,19,44],[19,45,19,50],[19,51,19,56],[20,33,23,42],[20,43,20,44],[20,45,20,50],[20,51,21,56],[20,57,21,58],[20,59,20,66],[13,24,14,25],[14,8,15,9],[14,10,15,15],[14,16,15,17],[14,18,15,23],[20,14,23,19],[20,20,23,27],[20,28,23,32],[16,14,19,19],[16,20,19,27],[16,28,17,32],[18,28,19,32],[12,2,12,7],[16,0,19,1],[16,2,19,7],[20,0,23,1],[15,0,15,1],[15,2,15,7],[24,8,27,13],[12,0,12,1],[24,0,27,1],[24,2,27,7],[20,2,23,7],[20,8,23,13],[13,0,14,1],[13,2,14,7],[0,0,3,5],[0,30,0,35],[0,36,1,41],[0,42,1,64],[4,0,4,5],[0,65,0,71],[1,30,3,35],[1,65,3,67],[1,68,3,68],[1,69,3,71],[4,48,4,53],[2,36,3,41],[2,42,3,64],[4,6,4,23],[4,24,4,29],[4,30,4,47],[0,6,3,29],[4,54,4,69],[4,70,4,71],[7,34,7,39],[12,56,12,57],[12,58,12,63],[13,48,14,49],[13,50,14,55],[15,50,15,55],[15,48,15,49],[13,26,14,31],[13,32,14,33],[15,34,15,39],[13,56,14,57],[13,58,14,63],[12,64,12,65],[15,26,15,31],[15,32,15,33],[15,40,15,41],[11,56,11,63],[8,34,9,39],[10,34,10,39],[8,32,9,33],[10,32,10,33],[13,64,14,65],[40,28,43,32],[40,33,43,42],[40,43,40,44],[40,45,40,50],[40,51,41,56],[40,57,41,58],[40,59,40,66],[41,43,43,44],[41,45,41,50],[42,45,43,50],[42,51,43,56],[42,57,43,58],[41,61,41,62],[41,63,41,65],[42,61,42,62],[42,63,42,65],[43,59,43,65],[41,59,42,60],[44,28,47,32],[44,33,47,42],[44,43,44,44],[44,45,44,50],[44,51,45,56],[44,57,45,58],[44,59,44,66],[45,43,47,44],[45,45,45,50],[46,45,47,50],[46,51,47,56],[46,57,47,58],[45,61,45,62],[45,63,45,65],[46,61,46,62],[46,63,46,65],[47,59,47,65],[45,59,46,60],[21,43,23,44],[21,45,21,50],[22,45,23,50],[22,51,23,56],[22,57,23,58],[24,14,27,19],[24,20,27,27],[24,28,27,32],[24,33,27,42],[24,43,24,44],[24,45,24,50],[24,51,25,56],[24,57,25,58],[24,59,24,66],[25,43,27,44],[25,45,25,50],[26,45,27,50],[26,51,27,56],[26,57,27,58],[25,61,25,62],[25,63,25,65],[26,61,26,62],[26,63,26,65],[27,59,27,65],[25,59,26,60],[28,14,31,19],[28,20,31,27],[28,28,31,32],[28,33,31,42],[28,43,28,44],[28,45,28,50],[28,51,29,56],[28,57,29,58],[28,59,28,66],[29,43,31,44],[29,45,29,50],[30,45,31,50],[30,51,31,56],[30,57,31,58],[29,61,29,62],[29,63,29,65],[30,61,30,62],[30,63,30,65],[31,59,31,65],[31,66,31,68],[29,59,30,60],[32,14,35,19],[32,20,35,27],[32,28,35,32],[32,33,35,42],[32,43,32,44],[32,45,32,50],[32,51,33,56],[32,57,33,58],[32,59,32,66],[33,43,35,44],[33,45,33,50],[34,45,35,50],[34,51,35,56],[34,57,35,58],[33,61,33,62],[33,63,33,65],[34,61,34,62],[34,63,34,65],[35,59,35,65],[33,59,34,60],[36,14,39,19],[36,20,39,27],[36,28,39,32],[36,33,39,42],[36,43,36,44],[36,45,36,50],[36,51,37,56],[36,57,37,58],[36,59,36,66],[37,43,39,44],[37,45,37,50],[38,45,39,50],[38,51,39,56],[38,57,39,58],[37,61,37,62],[37,63,37,65],[38,61,38,62],[38,63,38,65],[39,59,39,65],[37,59,38,60],[48,28,51,32],[48,33,51,42],[48,43,48,44],[48,45,48,50],[48,51,49,56],[48,57,49,58],[48,59,48,66],[49,43,51,44],[49,45,49,50],[50,45,51,50],[50,51,51,56],[50,57,51,58],[49,61,49,62],[49,63,49,65],[50,61,50,62],[50,63,50,65],[51,59,51,65],[49,59,50,60],[52,51,53,56],[52,57,53,58],[52,59,52,66],[53,43,55,44],[53,45,53,50],[54,45,55,50],[54,51,55,56],[54,57,55,58],[53,61,53,62],[53,63,53,65],[54,61,54,62],[54,63,54,65],[55,59,55,65],[55,66,55,68],[53,59,54,60],[5,40,6,55],[5,56,6,71],[7,40,10,71],[16,8,17,13],[18,8,19,13],[56,33,59,42],[56,43,56,44],[56,45,56,50],[56,51,57,56],[56,57,57,58],[56,59,56,66],[57,43,59,44],[57,45,57,50],[58,45,59,50],[58,51,59,56],[58,57,59,58],[57,61,57,62],[57,63,57,65],[58,61,58,62],[58,63,58,65],[59,59,59,65],[52,33,55,42],[52,43,52,44],[52,45,52,50]]}
[3,null,null,null,null,null,"Avid DNxHD変換",null,null,null,null,null,null,null,null,null,null,null,null,null,null,null,null,null,null,null,null,null,null,null,"受付店",null,null,null,null,null,"受付番号",null,null,null,null,null,{"$f":"INDEX('(0)作業受付票'!$AQ$1,)","v":""},null,null,null,null,null,null,null,null,null,null,null,null,null,null,null,null,null,null,null,null,null,null,"受付枚数"]
[null,null,null,null,null,null,null,null,null,null,null,null,null,null,null,null,null,null,null,null,null,null,null,null,null,null,null,null,null,null,{"$f":"INDEX('(0)作業受付票'!$AE$2,)","v":"　"}]
[null,null,null,null,null,null,null,null,null,null,null,null,null,null,null,null,null,null,null,null,null,null,null,null,null,null,null,null,null,null,null,null,null,null,null,null,"受付日時",null,null,null,null,null,{"$f":"NOW()","v":"2021-06-01T11:04:59.900"}]
[]
["会社名",null,null,null,null,null,{"$f":"INDEX('(0)作業受付票'!$K$5,)","v":""},null,null,null,null,null,null,null,null,null,null,null,null,null,null,null,null,null,"番組名",null,null,null,null,null,{"$f":"INDEX('(0)作業受付票'!$K$9,)","v":""},null,null,null,null,null,null,null,null,null,null,null,null,null,null,null,null,null,"担当者名",null,null,null,null,null,{"$f":"INDEX('(0)作業受付票'!$AV$11,)","v":""},null,null,null,null,null,null,null,null,null,null,null,null,null,null,null,"様"]
["使用OS",null,null,null,null,null,null,null,"コンテナ",null,null,null,null,null,null,null,"HD作成コーデック",null,null,null,null,null,null,null,null,null,null,null,null,null,null,null,"取込音声",null,null,null,null,null,null,null,"その他設定・備考",null,null,null,null,null,null,null,null,null,null,null,null,null,null,null,"お預かり品"]
[]
[null,null,"Windows",null,null,null,null,null,null,null,"OMF",null,null,null,null,null,null,null,"DNxHD\n145",null,null,null,null,null,null,null,"HDV圧縮",null,null,null,null,null,null,null,"1・2chのみ"]
[null,null,null,null,null,null,null,null,null,null,null,null,null,null,null,null,null,null,null,null,null,null,null,null,null,null,null,null,null,null,null,null,null,null,"4chパラ"]
[null,null,"macOS",null,null,null,null,null,null,null,"MXF",null,null,null,null,null,null,null,"DNxHD\n220",null,null,null,null,null,null,null,"DVCPRO\nHD圧縮"]
[null,null,null,null,null,null,null,null,null,null,null,null,null,null,null,null,null,null,null,null,null,null,null,null,null,null,null,null,null,null,null,null,null,null,"8chパラ"]
["プロキシ作成",null,null,null,null,null,null,null,"プロキシコーデック",null,null,null,null,null,null,null,null,null,null,null,null,null,null,null,"ダウンコンバート形式",null,null,null,null,null,null,null,"タイムコードの焼付",null,null,null,null,null,null,null,"メディアバックアップ",null,null,null,null,null,null,null,"受けSSD/HDD",null,null,null,null,null,null,null,"フォーマット形式",null,null,null,null,null,null,null,"TOCレンタル\nメディアの処理"]
[null,null,"プロキシ先行",null,null,null,null,null,null,null,"DV圧縮",null,null,null,null,null,null,null,"10:1",null,null,null,null,null,null,null,"レターボックス",null,null,null,null,null,null,null,"あり(中上)",null,null,null,null,null,null,null,"取る\n(推奨)",null,null,null,null,null,null,null,"新規レンタル",null,null,null,null,null,null,null,"Mac(HFS+)",null,null,null,null,null,null,null,"作業後返却"]
[null,null,"同時納品",null,null,null,null,null,null,null,null,null,null,null,null,null,null,null,null,null,null,null,null,null,null,null,"サイドカット",null,null,null,null,null,null,null,"あり(中下)",null,null,null,null,null,null,null,null,null,null,null,null,null,null,null,"消去NG(持込)",null,null,null,null,null,null,null,"Win(NTFS)",null,null,null,null,null,null,null,"レンタル継続"]
[null,null,null,null,null,null,null,null,null,null,"15:1s",null,null,null,null,null,null,null,"20:1"]
[null,null,"作成しない",null,null,null,null,null,null,null,null,null,null,null,null,null,null,null,null,null,null,null,null,null,null,null,"スクイーズ",null,null,null,null,null,null,null,"なし",null,null,null,null,null,null,null,"不要",null,null,null,null,null,null,null,"消去OK(持込)",null,null,null,null,null,null,null,"exFAT",null,null,null,null,null,null,null,"不明"]
[null,null,"メディア・テープの種類名",null,null,null,null,null,"メディア・テープの名称",null,null,null,null,null,"取込ビン名",null,null,null,null,null,"取込クリップ名",null,null,null,null,null,null,null,"EDL No.",null,null,null,null,"備考",null,null,null,null,null,null,null,null,null,null,null,"▼　▼　▼　弊社使用欄　▼　▼　▼"]
[null,null,null,null,null,null,null,null,null,null,null,null,null,null,null,null,null,null,null,null,null,null,null,null,null,null,null,null,null,null,null,null,null,null,null,null,null,null,null,null,null,null,null,null,null,"尺(分)",null,null,null,null,null,"保存先(ﾒｲﾝ)",null,null,null,null,null,"プロキシ\n納品",null,"メディアバックアップ(係数)"]
[null,null,null,null,null,null,null,null,"(作業者が判別できる範囲で)\nTOCメディアの場合は号機",null,null,null,null,null,null,null,null,null,null,null,null,null,null,null,null,null,null,null,"(英数6桁)",null,null,null,null,"(MBU実施時の実容量)"]
[null,null,null,null,null,null,null,null,null,null,null,null,null,null,null,null,null,null,null,null,null,null,null,null,null,null,null,null,null,null,null,null,null,null,null,null,null,null,null,null,null,null,null,null,null,"一時保存先",null,null,null,null,null,"保存先(ﾌﾟﾛｷｼ)",null,null,null,null,null,null,null,"作業料金(係数)",null,null,null,null,null,null,"メイン",null,null,"プロキシ"]
[1,null,null,null,null,null,null,null,null,null,null,null,null,null,null,null,null,null,null,null,null,null,null,null,null,null,null,null,null,null,null,null,null,null,null,null,null,null,null,null,null,null,null,"GB",null,null,null,null,null,null,null,null,null,null,null,null,null,"先行",null,null,null,null,null,null,null,null,null,"GB"]
[null,null,null,null,null,null,null,null,null,null,null,null,null,null,null,null,null,null,null,null,null,null,null,null,null,null,null,null,null,null,null,null,null,null,null,null,null,null,null,null,null,null,null,null,null,"分",null,null,null,null,null,null,null,null,null,null,null,null,null,"D",null,"B",null,"P"]
[null,null,null,null,null,null,null,null,null,null,null,null,null,null,null,null,null,null,null,null,null,null,null,null,null,null,null,null,null,null,null,null,null,null,null,null,null,null,null,null,null,null,null,null,null,null,null,null,null,null,null,null,null,null,null,null,null,"同時",null,null,null,"B(S)",null,"P(S)"]
[]
[2,null,null,null,null,null,null,null,null,null,null,null,null,null,null,null,null,null,null,null,null,null,null,null,null,null,null,null,null,null,null,null,null,null,null,null,null,null,null,null,null,null,null,"GB",null,null,null,null,null,null,null,null,null,null,null,null,null,"先行",null,null,null,null,null,null,null,null,null,"GB"]
[null,null,null,null,null,null,null,null,null,null,null,null,null,null,null,null,null,null,null,null,null,null,null,null,null,null,null,null,null,null,null,null,null,null,null,null,null,null,null,null,null,null,null,null,null,"分",null,null,null,null,null,null,null,null,null,null,null,null,null,"D",null,"B",null,"P"]
[null,null,null,null,null,null,null,null,null,null,null,null,null,null,null,null,null,null,null,null,null,null,null,null,null,null,null,null,null,null,null,null,null,null,null,null,null,null,null,null,null,null,null,null,null,null,null,null,null,null,null,null,null,null,null,null,null,"同時",null,null,null,"B(S)",null,"P(S)"]
[]
[3,null,null,null,null,null,null,null,null,null,null,null,null,null,null,null,null,null,null,null,null,null,null,null,null,null,null,null,null,null,null,null,null,null,null,null,null,null,null,null,null,null,null,"GB",null,null,null,null,null,null,null,null,null,null,null,null,null,"先行",null,null,null,null,null,null,null,null,null,"GB"]
[null,null,null,null,null,null,null,null,null,null,null,null,null,null,null,null,null,null,null,null,null,null,null,null,null,null,null,null,null,null,null,null,null,null,null,null,null,null,null,null,null,null,null,null,null,"分",null,null,null,null,null,null,null,null,null,null,null,null,null,"D",null,"B",null,"P"]
[null,null,null,null,null,null,null,null,null,null,null,null,null,null,null,null,null,null,null,null,null,null,null,null,null,null,null,null,null,null,null,null,null,null,null,null,null,null,null,null,null,null,null,null,null,null,null,null,null,null,null,null,null,null,null,null,null,"同時",null,null,null,"B(S)",null,"P(S)"]
[]
[4,null,null,null,null,null,null,null,null,null,null,null,null,null,null,null,null,null,null,null,null,null,null,null,null,null,null,null,null,null,null,null,null,null,null,null,null,null,null,null,null,null,null,"GB",null,null,null,null,null,null,null,null,null,null,null,null,null,"先行",null,null,null,null,null,null,null,null,null,"GB"]
[null,null,null,null,null,null,null,null,null,null,null,null,null,null,null,null,null,null,null,null,null,null,null,null,null,null,null,null,null,null,null,null,null,null,null,null,null,null,null,null,null,null,null,null,null,"分",null,null,null,null,null,null,null,null,null,null,null,null,null,"D",null,"B",null,"P"]
[null,null,null,null,null,null,null,null,null,null,null,null,null,null,null,null,null,null,null,null,null,null,null,null,null,null,null,null,null,null,null,null,null,null,null,null,null,null,null,null,null,null,null,null,null,null,null,null,null,null,null,null,null,null,null,null,null,"同時",null,null,null,"B(S)",null,"P(S)"]
[]
[5,null,null,null,null,null,null,null,null,null,null,null,null,null,null,null,null,null,null,null,null,null,null,null,null,null,null,null,null,null,null,null,null,null,null,null,null,null,null,null,null,null,null,"GB",null,null,null,null,null,null,null,null,null,null,null,null,null,"先行",null,null,null,null,null,null,null,null,null,"GB"]
[null,null,null,null,null,null,null,null,null,null,null,null,null,null,null,null,null,null,null,null,null,null,null,null,null,null,null,null,null,null,null,null,null,null,null,null,null,null,null,null,null,null,null,null,null,"分",null,null,null,null,null,null,null,null,null,null,null,null,null,"D",null,"B",null,"P"]
[null,null,null,null,null,null,null,null,null,null,null,null,null,null,null,null,null,null,null,null,null,null,null,null,null,null,null,null,null,null,null,null,null,null,null,null,null,null,null,null,null,null,null,null,null,null,null,null,null,null,null,null,null,null,null,null,null,"同時",null,null,null,"B(S)",null,"P(S)"]
[]
[6,null,null,null,null,null,null,null,null,null,null,null,null,null,null,null,null,null,null,null,null,null,null,null,null,null,null,null,null,null,null,null,null,null,null,null,null,null,null,null,null,null,null,"GB",null,null,null,null,null,null,null,null,null,null,null,null,null,"先行",null,null,null,null,null,null,null,null,null,"GB"]
[null,null,null,null,null,null,null,null,null,null,null,null,null,null,null,null,null,null,null,null,null,null,null,null,null,null,null,null,null,null,null,null,null,null,null,null,null,null,null,null,null,null,null,null,null,"分",null,null,null,null,null,null,null,null,null,null,null,null,null,"D",null,"B",null,"P"]
[null,null,null,null,null,null,null,null,null,null,null,null,null,null,null,null,null,null,null,null,null,null,null,null,null,null,null,null,null,null,null,null,null,null,null,null,null,null,null,null,null,null,null,null,null,null,null,null,null,null,null,null,null,null,null,null,null,"同時",null,null,null,"B(S)",null,"P(S)"]
[]
[7,null,null,null,null,null,null,null,null,null,null,null,null,null,null,null,null,null,null,null,null,null,null,null,null,null,null,null,null,null,null,null,null,null,null,null,null,null,null,null,null,null,null,"GB",null,null,null,null,null,null,null,null,null,null,null,null,null,"先行",null,null,null,null,null,null,null,null,null,"GB"]
[null,null,null,null,null,null,null,null,null,null,null,null,null,null,null,null,null,null,null,null,null,null,null,null,null,null,null,null,null,null,null,null,null,null,null,null,null,null,null,null,null,null,null,null,null,"分",null,null,null,null,null,null,null,null,null,null,null,null,null,"D",null,"B",null,"P"]
[null,null,null,null,null,null,null,null,null,null,null,null,null,null,null,null,null,null,null,null,null,null,null,null,null,null,null,null,null,null,null,null,null,null,null,null,null,null,null,null,null,null,null,null,null,null,null,null,null,null,null,null,null,null,null,null,null,"同時",null,null,null,"B(S)",null,"P(S)"]
[]
[8,null,null,null,null,null,null,null,null,null,null,null,null,null,null,null,null,null,null,null,null,null,null,null,null,null,null,null,null,null,null,null,null,null,null,null,null,null,null,null,null,null,null,"GB",null,null,null,null,null,null,null,null,null,null,null,null,null,"先行",null,null,null,null,null,null,null,null,null,"GB"]
[null,null,null,null,null,null,null,null,null,null,null,null,null,null,null,null,null,null,null,null,null,null,null,null,null,null,null,null,null,null,null,null,null,null,null,null,null,null,null,null,null,null,null,null,null,"分",null,null,null,null,null,null,null,null,null,null,null,null,null,"D",null,"B",null,"P"]
[null,null,null,null,null,null,null,null,null,null,null,null,null,null,null,null,null,null,null,null,null,null,null,null,null,null,null,null,null,null,null,null,null,null,null,null,null,null,null,null,null,null,null,null,null,null,null,null,null,null,null,null,null,null,null,null,null,"同時",null,null,null,"B(S)",null,"P(S)"]
[]
[9,null,null,null,null,null,null,null,null,null,null,null,null,null,null,null,null,null,null,null,null,null,null,null,null,null,null,null,null,null,null,null,null,null,null,null,null,null,null,null,null,null,null,"GB",null,null,null,null,null,null,null,null,null,null,null,null,null,"先行",null,null,null,null,null,null,null,null,null,"GB"]
[null,null,null,null,null,null,null,null,null,null,null,null,null,null,null,null,null,null,null,null,null,null,null,null,null,null,null,null,null,null,null,null,null,null,null,null,null,null,null,null,null,null,null,null,null,"分",null,null,null,null,null,null,null,null,null,null,null,null,null,"D",null,"B",null,"P"]
[null,null,null,null,null,null,null,null,null,null,null,null,null,null,null,null,null,null,null,null,null,null,null,null,null,null,null,null,null,null,null,null,null,null,null,null,null,null,null,null,null,null,null,null,null,null,null,null,null,null,null,null,null,null,null,null,null,"同時",null,null,null,"B(S)",null,"P(S)"]
[]
[10,null,null,null,null,null,null,null,null,null,null,null,null,null,null,null,null,null,null,null,null,null,null,null,null,null,null,null,null,null,null,null,null,null,null,null,null,null,null,null,null,null,null,"GB",null,null,null,null,null,null,null,null,null,null,null,null,null,"先行",null,null,null,null,null,null,null,null,null,"GB"]
[null,null,null,null,null,null,null,null,null,null,null,null,null,null,null,null,null,null,null,null,null,null,null,null,null,null,null,null,null,null,null,null,null,null,null,null,null,null,null,null,null,null,null,null,null,"分",null,null,null,null,null,null,null,null,null,null,null,null,null,"D",null,"B",null,"P"]
[null,null,null,null,null,null,null,null,null,null,null,null,null,null,null,null,null,null,null,null,null,null,null,null,null,null,null,null,null,null,null,null,null,null,null,null,null,null,null,null,null,null,null,null,null,null,null,null,null,null,null,null,null,null,null,null,null,"同時",null,null,null,"B(S)",null,"P(S)"]

{"sheet":"(4)特殊変換","index":5,"n_rows":58,"n_cols":71,"rows_kept":58,"cut":false,"hidden":false,"merged":[[4,54,4,69],[4,70,4,71],[45,69,46,71],[47,69,47,71],[48,61,48,66],[48,67,48,68],[48,69,48,71],[49,69,50,71],[51,69,51,71],[50,61,51,68],[46,61,47,68],[41,69,42,71],[43,69,43,71],[44,61,44,66],[44,67,44,68],[24,61,24,66],[24,67,24,68],[24,69,24,71],[25,69,26,71],[27,69,27,71],[32,69,32,71],[33,69,34,71],[35,69,35,71],[32,61,32,66],[57,69,58,71],[59,69,59,71],[52,61,52,66],[52,67,52,68],[54,61,55,68],[58,61,59,68],[52,69,52,71],[53,69,54,71],[55,69,55,71],[56,61,56,66],[56,67,56,68],[56,69,56,71],[32,67,32,68],[44,69,44,71],[28,61,28,66],[28,67,28,68],[40,61,40,66],[40,67,40,68],[28,69,28,71],[29,69,30,71],[31,69,31,71],[36,61,36,66],[36,67,36,68],[36,69,36,71],[37,69,38,71],[39,69,39,71],[40,69,40,71],[37,65,37,68],[41,61,41,64],[41,65,41,68],[36,8,39,19],[36,20,39,38],[36,51,36,58],[36,59,36,60],[37,51,39,55],[36,39,39,48],[36,49,36,50],[37,49,39,50],[37,56,39,60],[32,20,35,38],[32,51,32,58],[24,8,27,19],[24,20,27,38],[24,51,24,58],[24,59,24,60],[32,59,32,60],[33,51,35,55],[32,39,35,48],[32,49,32,50],[33,49,35,50],[28,8,31,19],[28,20,31,38],[28,51,28,58],[28,59,28,60],[29,51,31,55],[25,56,27,60],[29,56,31,60],[33,56,35,60],[28,49,28,50],[29,49,31,50],[16,0,19,1],[16,2,19,7],[15,0,15,1],[20,39,23,48],[20,49,20,50],[48,0,51,1],[48,2,51,7],[56,0,59,1],[56,2,59,7],[52,0,55,1],[52,2,55,7],[52,8,55,19],[52,20,55,38],[56,8,59,19],[56,20,59,38],[48,8,51,19],[48,20,51,38],[44,0,47,1],[44,2,47,7],[40,0,43,1],[40,2,43,7],[24,0,27,1],[24,2,27,7],[32,8,35,19],[20,0,23,1],[20,2,23,7],[28,0,31,1],[28,2,31,7],[36,0,39,1],[36,2,39,7],[32,0,35,1],[32,2,35,7],[2,36,3,41],[4,0,4,5],[4,6,4,23],[4,24,4,29],[4,30,4,47],[2,42,3,64],[0,0,3,5],[0,30,0,35],[0,6,3,29],[0,36,1,41],[0,42,1,64],[20,59,20,60],[24,39,27,48],[24,49,24,50],[25,49,27,50],[28,39,31,48],[0,65,0,71],[1,30,3,35],[1,65,3,67],[1,68,3,68],[1,69,3,71],[4,48,4,53],[7,16,8,17],[9,8,10,9],[7,0,8,1],[7,18,8,23],[7,24,8,25],[7,26,8,31],[9,16,10,17],[9,18,10,23],[9,24,10,25],[9,26,10,31],[9,10,10,15],[9,0,10,1],[9,2,10,7],[5,0,6,23],[5,24,6,31],[7,2,8,7],[7,8,8,9],[7,10,8,15],[21,65,21,68],[17,69,19,71],[16,51,16,71],[16,20,19,38],[16,8,19,19],[17,61,18,68],[19,61,19,68],[17,51,18,60],[19,51,19,55],[19,56,19,60],[16,39,18,50],[19,39,19,50],[20,8,23,19],[56,51,56,58],[53,56,55,60],[57,56,59,60],[57,51,59,55],[40,8,43,19],[40,20,43,38],[40,51,40,58],[40,59,40,60],[41,51,43,55],[44,8,47,19],[44,20,47,38],[48,51,48,58],[48,59,48,60],[49,51,51,55],[44,51,44,58],[44,59,44,60],[52,51,52,58],[52,59,52,60],[53,51,55,55],[45,49,47,50],[56,39,59,48],[56,49,56,50],[57,49,59,50],[45,51,47,55],[53,49,55,50],[40,39,43,48],[40,49,40,50],[41,49,43,50],[44,39,47,48],[44,49,44,50],[41,56,43,60],[52,39,55,48],[52,49,52,50],[45,61,45,64],[45,65,45,68],[49,61,49,64],[56,59,56,60],[21,56,23,60],[21,61,21,64],[53,61,53,64],[53,65,53,68],[57,61,57,64],[57,65,57,68],[45,56,47,60],[22,61,23,68],[26,61,27,68],[30,61,31,68],[34,61,35,68],[38,61,39,68],[42,61,43,68],[25,61,25,64],[25,65,25,68],[29,61,29,64],[29,65,29,68],[33,61,33,64],[33,65,33,68],[37,61,37,64],[15,24,15,25],[12,18,12,23],[13,18,14,23],[15,18,15,23],[11,24,11,31],[12,26,12,31],[13,26,14,31],[15,26,15,31],[11,0,11,7],[12,2,14,7],[15,2,15,7],[11,8,11,15],[12,8,12,9],[13,8,14,9],[15,8,15,9],[12,10,12,15],[13,10,14,15],[15,10,15,15],[12,0,14,1],[5,32,6,51],[5,52,6,71],[7,32,15,71],[49,65,49,68],[25,51,27,55],[49,56,51,60],[48,39,51,48],[48,49,48,50],[49,49,51,50],[20,67,20,68],[20,61,20,66],[20,51,20,58],[20,20,23,38],[20,69,20,71],[21,69,22,71],[23,69,23,71],[21,51,23,55],[21,49,23,50],[11,16,11,23],[12,16,12,17],[13,16,14,17],[15,16,15,17],[12,24,12,25],[13,24,14,25]]}
[4,null,null,null,null,null,"特殊変換作業",null,null,null,null,null,null,null,null,null,null,null,null,null,null,null,null,null,null,null,null,null,null,null,"受付店",null,null,null,null,null,"受付番号",null,null,null,null,null,{"$f":"INDEX('(0)作業受付票'!$AQ$1,)","v":""},null,null,null,null,null,null,null,null,null,null,null,null,null,null,null,null,null,null,null,null,null,null,"受付枚数"]
[null,null,null,null,null,null,null,null,null,null,null,null,null,null,null,null,null,null,null,null,null,null,null,null,null,null,null,null,null,null,{"$f":"INDEX('(0)作業受付票'!$AE$2,)","v":"　"}]
[null,null,null,null,null,null,null,null,null,null,null,null,null,null,null,null,null,null,null,null,null,null,null,null,null,null,null,null,null,null,null,null,null,null,null,null,"受付日時",null,null,null,null,null,{"$f":"NOW()","v":"2021-06-01T11:04:59.900"}]
[]
["会社名",null,null,null,null,null,{"$f":"INDEX('(0)作業受付票'!$K$5,)","v":""},null,null,null,null,null,null,null,null,null,null,null,null,null,null,null,null,null,"番組名",null,null,null,null,null,{"$f":"INDEX('(0)作業受付票'!$K$9,)","v":""},null,null,null,null,null,null,null,null,null,null,null,null,null,null,null,null,null,"担当者名",null,null,null,null,null,{"$f":"INDEX('(0)作業受付票'!$AV$11,)","v":""},null,null,null,null,null,null,null,null,null,null,null,null,null,null,null,"様"]
["ご依頼内容(A作業)",null,null,null,null,null,null,null,null,null,null,null,null,null,null,null,null,null,null,null,null,null,null,null,"ご依頼内容(B作業)",null,null,null,null,null,null,null,"その他設定・備考 (※この作業はSSD割の対象外です)",null,null,null,null,null,null,null,null,null,null,null,null,null,null,null,null,null,null,null,"お預かり品"]
[]
[null,null,"4K以上への\n変換",null,null,null,null,null,null,null,"納品用データ変換",null,null,null,null,null,null,null,"ProRes\n4444変換",null,null,null,null,null,null,null,"プレビュー用\nデータ変換"]
[]
[null,null,"映像の反転・回転",null,null,null,null,null,null,null,"360度(VR)カメラ素材の変換",null,null,null,null,null,null,null,"音声ファイルの抜き出し",null,null,null,null,null,null,null,"ネット動画からのムービー変換"]
[]
["メディアバックアップ",null,null,null,null,null,null,null,"受けSSD/HDD",null,null,null,null,null,null,null,"フォーマット形式",null,null,null,null,null,null,null,"TOCレンタル\nメディアの処理"]
[null,null,"取る\n(推奨)",null,null,null,null,null,null,null,"新規レンタル",null,null,null,null,null,null,null,"Mac(HFS+)",null,null,null,null,null,null,null,"作業後返却"]
[null,null,null,null,null,null,null,null,null,null,"消去NG(持込)",null,null,null,null,null,null,null,"Win(NTFS)",null,null,null,null,null,null,null,"レンタル継続"]
[]
[null,null,"不要",null,null,null,null,null,null,null,"消去OK(持込)",null,null,null,null,null,null,null,"exFAT",null,null,null,null,null,null,null,"不明"]
[null,null,"メディア・テープの種類",null,null,null,null,null,"フォルダ名・媒体名 など",null,null,null,null,null,null,null,null,null,null,null,"対象ファイル名 など",null,null,null,null,null,null,null,null,null,null,null,null,null,null,null,null,null,null,"備考",null,null,null,null,null,null,null,null,null,null,null,"▼　▼　▼　弊社使用欄　▼　▼　▼"]
[null,null,null,null,null,null,null,null,null,null,null,null,null,null,null,null,null,null,null,null,null,null,null,null,null,null,null,null,null,null,null,null,null,null,null,null,null,null,null,null,null,null,null,null,null,null,null,null,null,null,null,"尺(分)",null,null,null,null,null,null,null,null,null,"メディアバックアップ",null,null,null,null,null,null,null,"作業者"]
[]
[null,null,null,null,null,null,null,null,null,null,null,null,null,null,null,null,null,null,null,null,null,null,null,null,null,null,null,null,null,null,null,null,null,null,null,null,null,null,null,"(MBU実施時の実容量)",null,null,null,null,null,null,null,null,null,null,null,"一時保存先",null,null,null,null,"最終保存先",null,null,null,null,"作業料金(係数)"]
[1,null,null,null,null,null,null,null,null,null,null,null,null,null,null,null,null,null,null,null,null,null,null,null,null,null,null,null,null,null,null,null,null,null,null,null,null,null,null,null,null,null,null,null,null,null,null,null,null,"GB",null,null,null,null,null,null,null,null,null,"分",null,null,null,null,null,null,null,"GB"]
[null,null,null,null,null,null,null,null,null,null,null,null,null,null,null,null,null,null,null,null,null,null,null,null,null,null,null,null,null,null,null,null,null,null,null,null,null,null,null,null,null,null,null,null,null,null,null,null,null,null,null,null,null,null,null,null,null,null,null,null,null,"A",null,null,null,"B"]
[]
[]
[2,null,null,null,null,null,null,null,null,null,null,null,null,null,null,null,null,null,null,null,null,null,null,null,null,null,null,null,null,null,null,null,null,null,null,null,null,null,null,null,null,null,null,null,null,null,null,null,null,"GB",null,null,null,null,null,null,null,null,null,"分",null,null,null,null,null,null,null,"GB"]
[null,null,null,null,null,null,null,null,null,null,null,null,null,null,null,null,null,null,null,null,null,null,null,null,null,null,null,null,null,null,null,null,null,null,null,null,null,null,null,null,null,null,null,null,null,null,null,null,null,null,null,null,null,null,null,null,null,null,null,null,null,"A",null,null,null,"B"]
[]
[]
[3,null,null,null,null,null,null,null,null,null,null,null,null,null,null,null,null,null,null,null,null,null,null,null,null,null,null,null,null,null,null,null,null,null,null,null,null,null,null,null,null,null,null,null,null,null,null,null,null,"GB",null,null,null,null,null,null,null,null,null,"分",null,null,null,null,null,null,null,"GB"]
[null,null,null,null,null,null,null,null,null,null,null,null,null,null,null,null,null,null,null,null,null,null,null,null,null,null,null,null,null,null,null,null,null,null,null,null,null,null,null,null,null,null,null,null,null,null,null,null,null,null,null,null,null,null,null,null,null,null,null,null,null,"A",null,null,null,"B"]
[]
[]
[4,null,null,null,null,null,null,null,null,null,null,null,null,null,null,null,null,null,null,null,null,null,null,null,null,null,null,null,null,null,null,null,null,null,null,null,null,null,null,null,null,null,null,null,null,null,null,null,null,"GB",null,null,null,null,null,null,null,null,null,"分",null,null,null,null,null,null,null,"GB"]
[null,null,null,null,null,null,null,null,null,null,null,null,null,null,null,null,null,null,null,null,null,null,null,null,null,null,null,null,null,null,null,null,null,null,null,null,null,null,null,null,null,null,null,null,null,null,null,null,null,null,null,null,null,null,null,null,null,null,null,null,null,"A",null,null,null,"B"]
[]
[]
[5,null,null,null,null,null,null,null,null,null,null,null,null,null,null,null,null,null,null,null,null,null,null,null,null,null,null,null,null,null,null,null,null,null,null,null,null,null,null,null,null,null,null,null,null,null,null,null,null,"GB",null,null,null,null,null,null,null,null,null,"分",null,null,null,null,null,null,null,"GB"]
[null,null,null,null,null,null,null,null,null,null,null,null,null,null,null,null,null,null,null,null,null,null,null,null,null,null,null,null,null,null,null,null,null,null,null,null,null,null,null,null,null,null,null,null,null,null,null,null,null,null,null,null,null,null,null,null,null,null,null,null,null,"A",null,null,null,"B"]
[]
[]
[6,null,null,null,null,null,null,null,null,null,null,null,null,null,null,null,null,null,null,null,null,null,null,null,null,null,null,null,null,null,null,null,null,null,null,null,null,null,null,null,null,null,null,null,null,null,null,null,null,"GB",null,null,null,null,null,null,null,null,null,"分",null,null,null,null,null,null,null,"GB"]
[null,null,null,null,null,null,null,null,null,null,null,null,null,null,null,null,null,null,null,null,null,null,null,null,null,null,null,null,null,null,null,null,null,null,null,null,null,null,null,null,null,null,null,null,null,null,null,null,null,null,null,null,null,null,null,null,null,null,null,null,null,"A",null,null,null,"B"]
[]
[]
[7,null,null,null,null,null,null,null,null,null,null,null,null,null,null,null,null,null,null,null,null,null,null,null,null,null,null,null,null,null,null,null,null,null,null,null,null,null,null,null,null,null,null,null,null,null,null,null,null,"GB",null,null,null,null,null,null,null,null,null,"分",null,null,null,null,null,null,null,"GB"]
[null,null,null,null,null,null,null,null,null,null,null,null,null,null,null,null,null,null,null,null,null,null,null,null,null,null,null,null,null,null,null,null,null,null,null,null,null,null,null,null,null,null,null,null,null,null,null,null,null,null,null,null,null,null,null,null,null,null,null,null,null,"A",null,null,null,"B"]
[]
[]
[8,null,null,null,null,null,null,null,null,null,null,null,null,null,null,null,null,null,null,null,null,null,null,null,null,null,null,null,null,null,null,null,null,null,null,null,null,null,null,null,null,null,null,null,null,null,null,null,null,"GB",null,null,null,null,null,null,null,null,null,"分",null,null,null,null,null,null,null,"GB"]
[null,null,null,null,null,null,null,null,null,null,null,null,null,null,null,null,null,null,null,null,null,null,null,null,null,null,null,null,null,null,null,null,null,null,null,null,null,null,null,null,null,null,null,null,null,null,null,null,null,null,null,null,null,null,null,null,null,null,null,null,null,"A",null,null,null,"B"]
[]
[]
[9,null,null,null,null,null,null,null,null,null,null,null,null,null,null,null,null,null,null,null,null,null,null,null,null,null,null,null,null,null,null,null,null,null,null,null,null,null,null,null,null,null,null,null,null,null,null,null,null,"GB",null,null,null,null,null,null,null,null,null,"分",null,null,null,null,null,null,null,"GB"]
[null,null,null,null,null,null,null,null,null,null,null,null,null,null,null,null,null,null,null,null,null,null,null,null,null,null,null,null,null,null,null,null,null,null,null,null,null,null,null,null,null,null,null,null,null,null,null,null,null,null,null,null,null,null,null,null,null,null,null,null,null,"A",null,null,null,"B"]
[]
[]
[10,null,null,null,null,null,null,null,null,null,null,null,null,null,null,null,null,null,null,null,null,null,null,null,null,null,null,null,null,null,null,null,null,null,null,null,null,null,null,null,null,null,null,null,null,null,null,null,null,"GB",null,null,null,null,null,null,null,null,null,"分",null,null,null,null,null,null,null,"GB"]
[null,null,null,null,null,null,null,null,null,null,null,null,null,null,null,null,null,null,null,null,null,null,null,null,null,null,null,null,null,null,null,null,null,null,null,null,null,null,null,null,null,null,null,null,null,null,null,null,null,null,null,null,null,null,null,null,null,null,null,null,null,"A",null,null,null,"B"]

{"sheet":"(5)ダビング","index":6,"n_rows":53,"n_cols":71,"rows_kept":53,"cut":false,"hidden":false,"merged":[[10,69,12,71],[12,51,12,55],[13,51,13,55],[14,51,14,55],[17,56,17,60],[17,61,17,66],[18,56,18,60],[19,56,19,60],[17,69,17,71],[16,51,16,55],[41,69,41,71],[41,67,41,68],[29,69,29,71],[29,67,29,68],[21,69,21,71],[33,69,33,71],[25,69,25,71],[37,69,37,71],[17,67,17,68],[37,67,37,68],[35,61,36,68],[21,67,21,68],[25,67,25,68],[49,0,52,1],[46,69,47,71],[45,0,48,1],[42,69,43,71],[44,69,44,71],[41,0,44,1],[52,69,52,71],[50,69,51,71],[48,69,48,71],[45,69,45,71],[49,69,49,71],[45,67,45,68],[49,67,49,68],[49,56,49,60],[49,61,49,66],[50,56,50,60],[51,56,51,60],[45,61,45,66],[46,56,46,60],[47,56,47,60],[48,56,48,60],[41,56,41,60],[41,61,41,66],[42,56,42,60],[37,0,40,1],[34,69,35,71],[32,69,32,71],[33,0,36,1],[30,69,31,71],[29,0,32,1],[40,69,40,71],[38,69,39,71],[36,69,36,71],[29,61,29,66],[33,67,33,68],[33,56,33,60],[33,61,33,66],[34,56,34,60],[35,56,35,60],[36,56,36,60],[33,28,36,29],[29,56,29,60],[30,56,30,60],[31,56,31,60],[32,56,32,60],[29,51,29,55],[30,51,30,55],[29,36,32,48],[4,70,4,71],[2,36,3,41],[9,0,12,1],[25,0,28,1],[22,69,23,71],[20,69,20,71],[21,0,24,1],[18,69,19,71],[16,69,16,71],[17,0,20,1],[14,69,15,71],[13,0,16,1],[26,69,27,71],[28,69,28,71],[24,69,24,71],[21,56,21,60],[21,61,21,66],[22,56,22,60],[23,56,23,60],[24,56,24,60],[25,56,25,60],[25,61,25,66],[26,56,26,60],[27,56,27,60],[5,13,5,18],[5,8,5,12],[0,36,1,41],[0,42,1,64],[6,40,6,41],[8,0,8,1],[7,0,7,1],[0,65,0,71],[1,30,3,35],[1,65,3,67],[1,68,3,68],[6,57,8,71],[5,49,5,56],[5,57,5,71],[5,40,5,48],[2,42,3,64],[7,42,7,48],[7,49,7,50],[7,51,7,56],[7,40,7,41],[6,42,6,48],[6,49,6,50],[6,51,6,56],[4,54,4,69],[6,0,6,1],[8,51,8,56],[1,69,3,71],[8,2,8,8],[7,2,7,8],[6,2,6,8],[6,9,8,32],[4,0,4,5],[4,6,4,23],[4,24,4,29],[4,30,4,47],[4,48,4,53],[5,19,5,32],[5,33,5,39],[6,33,7,34],[6,35,7,39],[8,33,8,34],[8,35,8,39],[0,0,3,5],[0,30,0,35],[0,6,3,29],[8,40,8,41],[8,42,8,48],[5,0,5,7],[37,36,40,48],[37,49,37,50],[38,49,40,50],[40,56,40,60],[38,61,38,68],[39,61,40,68],[42,61,42,68],[8,49,8,50],[13,69,13,71],[13,67,13,68],[13,61,13,66],[13,56,13,60],[14,56,14,60],[15,56,15,60],[16,56,16,60],[12,61,12,68],[10,56,11,60],[12,56,12,60],[9,51,9,71],[10,51,11,55],[10,61,11,68],[14,61,14,68],[15,51,15,55],[15,61,16,68],[49,2,52,7],[9,2,9,7],[10,2,12,7],[13,30,16,35],[9,30,9,35],[10,30,12,35],[17,30,20,35],[21,30,24,35],[25,30,28,35],[29,30,32,35],[33,30,36,35],[37,30,40,35],[41,30,44,35],[45,30,48,35],[49,30,52,35],[9,28,12,29],[13,28,16,29],[17,28,20,29],[21,28,24,29],[25,28,28,29],[29,28,32,29],[13,2,16,7],[17,2,20,7],[21,2,24,7],[49,28,52,29],[9,8,9,27],[10,8,12,27],[13,8,16,27],[17,8,20,27],[21,8,24,27],[25,8,28,27],[29,8,32,27],[33,8,36,27],[37,8,40,27],[41,8,44,27],[45,8,48,27],[49,8,52,27],[37,28,40,29],[41,28,44,29],[45,28,48,29],[37,56,37,60],[37,61,37,66],[38,56,38,60],[39,56,39,60],[30,49,32,50],[31,61,32,68],[32,51,32,55],[33,51,33,55],[34,51,34,55],[34,61,34,68],[35,51,35,55],[36,51,36,55],[30,61,30,68],[31,51,31,55],[33,36,36,48],[18,61,18,68],[19,51,19,55],[19,61,20,68],[20,51,20,55],[22,61,22,68],[23,51,23,55],[23,61,24,68],[24,51,24,55],[25,51,25,55],[20,56,20,60],[25,36,28,48],[25,49,25,50],[26,49,28,50],[29,49,29,50],[26,61,26,68],[27,51,27,55],[27,61,28,68],[21,51,21,55],[22,51,22,55],[28,56,28,60],[25,2,28,7],[29,2,32,7],[33,2,36,7],[37,2,40,7],[41,2,44,7],[45,2,48,7],[17,51,17,55],[18,51,18,55],[26,51,26,55],[37,51,37,55],[38,51,38,55],[39,51,39,55],[40,51,40,55],[41,51,41,55],[42,51,42,55],[43,51,43,55],[44,51,44,55],[45,51,45,55],[41,36,44,48],[41,49,41,50],[42,49,44,50],[28,51,28,55],[33,49,33,50],[34,49,36,50],[11,36,12,50],[9,36,10,50],[13,49,13,50],[14,49,16,50],[13,36,16,48],[17,36,20,48],[17,49,17,50],[18,49,20,50],[21,36,24,48],[21,49,21,50],[22,49,24,50],[49,36,52,48],[49,49,49,50],[50,49,52,50],[46,61,46,68],[47,51,47,55],[47,61,48,68],[48,51,48,55],[44,56,44,60],[45,56,45,60],[49,51,49,55],[50,51,50,55],[50,61,50,68],[51,51,51,55],[51,61,52,68],[52,51,52,55],[52,56,52,60],[46,51,46,55],[43,61,44,68],[43,56,43,60],[45,36,48,48],[45,49,45,50],[46,49,48,50]]}
[5,null,null,null,null,null,"ダビング(ワーク)",null,null,null,null,null,null,null,null,null,null,null,null,null,null,null,null,null,null,null,null,null,null,null,"受付店",null,null,null,null,null,"受付番号",null,null,null,null,null,{"$f":"INDEX('(0)作業受付票'!$AQ$1,)","v":""},null,null,null,null,null,null,null,null,null,null,null,null,null,null,null,null,null,null,null,null,null,null,"受付枚数"]
[null,null,null,null,null,null,null,null,null,null,null,null,null,null,null,null,null,null,null,null,null,null,null,null,null,null,null,null,null,null,{"$f":"INDEX('(0)作業受付票'!$AE$2,)","v":"　"}]
[null,null,null,null,null,null,null,null,null,null,null,null,null,null,null,null,null,null,null,null,null,null,null,null,null,null,null,null,null,null,null,null,null,null,null,null,"受付日時",null,null,null,null,null,{"$f":"NOW()","v":"2021-06-01T11:04:59.900"}]
[]
["会社名",null,null,null,null,null,{"$f":"INDEX('(0)作業受付票'!$K$5,)","v":""},null,null,null,null,null,null,null,null,null,null,null,null,null,null,null,null,null,"番組名",null,null,null,null,null,{"$f":"INDEX('(0)作業受付票'!$K$9,)","v":""},null,null,null,null,null,null,null,null,null,null,null,null,null,null,null,null,null,"担当者名",null,null,null,null,null,{"$f":"INDEX('(0)作業受付票'!$AV$11,)","v":""},null,null,null,null,null,null,null,null,null,null,null,null,null,null,null,"様"]
["タイムコード",null,null,null,null,null,null,null,null,null,null,null,null,"設定",null,null,null,null,null,"その他設定・形式・ch数など",null,null,null,null,null,null,null,null,null,null,null,null,null,"メディア\nバックアップ",null,null,null,null,null,null,"受けメディア・テープ",null,null,null,null,null,null,null,null,"TOCレンタル\nメディアの処理",null,null,null,null,null,null,null,"備考・お預かり品"]
[null,null,"生かし",null,null,null,null,null,null,null,null,null,null,null,null,null,null,null,null,null,null,null,null,null,null,null,null,null,null,null,null,null,null,null,null,"取る\n(推奨)",null,null,null,null,null,null,"出庫(販売)",null,null,null,null,null,null,null,null,"作業後返却"]
[null,null,"引き直し(DF)",null,null,null,null,null,null,null,null,null,null,null,null,null,null,null,null,null,null,null,null,null,null,null,null,null,null,null,null,null,null,null,null,null,null,null,null,null,null,null,"消去NG(持込)",null,null,null,null,null,null,null,null,"レンタル継続"]
[null,null,"引き直し(NDF)",null,null,null,null,null,null,null,null,null,null,null,null,null,null,null,null,null,null,null,null,null,null,null,null,null,null,null,null,null,null,null,null,"不要",null,null,null,null,null,null,"消去OK(持込)",null,null,null,null,null,null,null,null,"不明"]
[null,null,"【出し】",null,null,null,null,null,"【出し】",null,null,null,null,null,null,null,null,null,null,null,null,null,null,null,null,null,null,null,"⇒",null,"【受け】",null,null,null,null,null,"備考(抜き指示など)",null,null,null,null,null,null,null,null,null,null,null,null,null,null,"▼　▼　▼　弊社使用欄　▼　▼　▼"]
[null,null,"メディア・\nテープの種類",null,null,null,null,null,"ラベル名 など",null,null,null,null,null,null,null,null,null,null,null,null,null,null,null,null,null,null,null,null,null,"メディア・\nテープの種類",null,null,null,null,null,null,null,null,null,null,null,null,null,null,null,null,null,null,null,null,"開始TC",null,null,null,null,"DVD複製",null,null,null,null,"メディアバックアップ(係数)",null,null,null,null,null,null,null,"作業者"]
[null,null,null,null,null,null,null,null,null,null,null,null,null,null,null,null,null,null,null,null,null,null,null,null,null,null,null,null,null,null,null,null,null,null,null,null,"(MBU実施時の実容量)"]
[null,null,null,null,null,null,null,null,null,null,null,null,null,null,null,null,null,null,null,null,null,null,null,null,null,null,null,null,null,null,null,null,null,null,null,null,null,null,null,null,null,null,null,null,null,null,null,null,null,null,null,"実尺(分)",null,null,null,null,"Blu-ray複製",null,null,null,null,"作業料金(係数)"]
[1,null,null,null,null,null,null,null,null,null,null,null,null,null,null,null,null,null,null,null,null,null,null,null,null,null,null,null,"⇒",null,null,null,null,null,null,null,null,null,null,null,null,null,null,null,null,null,null,null,null,"GB",null,null,null,null,null,null,"DVD複製",null,null,null,null,null,null,null,null,null,null,"GB"]
[null,null,null,null,null,null,null,null,null,null,null,null,null,null,null,null,null,null,null,null,null,null,null,null,null,null,null,null,null,null,null,null,null,null,null,null,null,null,null,null,null,null,null,null,null,null,null,null,null,null,null,"h",null,null,null,null,"枚",null,null,null,null,"料金係数で記入する"]
[null,null,null,null,null,null,null,null,null,null,null,null,null,null,null,null,null,null,null,null,null,null,null,null,null,null,null,null,null,null,null,null,null,null,null,null,null,null,null,null,null,null,null,null,null,null,null,null,null,null,null,null,null,null,null,null,"Blu-ray複製",null,null,null,null,"分"]
[null,null,null,null,null,null,null,null,null,null,null,null,null,null,null,null,null,null,null,null,null,null,null,null,null,null,null,null,null,null,null,null,null,null,null,null,null,null,null,null,null,null,null,null,null,null,null,null,null,null,null,"分",null,null,null,null,"枚"]
[2,null,null,null,null,null,null,null,null,null,null,null,null,null,null,null,null,null,null,null,null,null,null,null,null,null,null,null,"⇒",null,null,null,null,null,null,null,null,null,null,null,null,null,null,null,null,null,null,null,null,"GB",null,null,null,null,null,null,"DVD複製",null,null,null,null,null,null,null,null,null,null,"GB"]
[null,null,null,null,null,null,null,null,null,null,null,null,null,null,null,null,null,null,null,null,null,null,null,null,null,null,null,null,null,null,null,null,null,null,null,null,null,null,null,null,null,null,null,null,null,null,null,null,null,null,null,"h",null,null,null,null,"枚",null,null,null,null,"料金係数で記入する"]
[null,null,null,null,null,null,null,null,null,null,null,null,null,null,null,null,null,null,null,null,null,null,null,null,null,null,null,null,null,null,null,null,null,null,null,null,null,null,null,null,null,null,null,null,null,null,null,null,null,null,null,null,null,null,null,null,"Blu-ray複製",null,null,null,null,"分"]
[null,null,null,null,null,null,null,null,null,null,null,null,null,null,null,null,null,null,null,null,null,null,null,null,null,null,null,null,null,null,null,null,null,null,null,null,null,null,null,null,null,null,null,null,null,null,null,null,null,null,null,"分",null,null,null,null,"枚"]
[3,null,null,null,null,null,null,null,null,null,null,null,null,null,null,null,null,null,null,null,null,null,null,null,null,null,null,null,"⇒",null,null,null,null,null,null,null,null,null,null,null,null,null,null,null,null,null,null,null,null,"GB",null,null,null,null,null,null,"DVD複製",null,null,null,null,null,null,null,null,null,null,"GB"]
[null,null,null,null,null,null,null,null,null,null,null,null,null,null,null,null,null,null,null,null,null,null,null,null,null,null,null,null,null,null,null,null,null,null,null,null,null,null,null,null,null,null,null,null,null,null,null,null,null,null,null,"h",null,null,null,null,"枚",null,null,null,null,"料金係数で記入する"]
[null,null,null,null,null,null,null,null,null,null,null,null,null,null,null,null,null,null,null,null,null,null,null,null,null,null,null,null,null,null,null,null,null,null,null,null,null,null,null,null,null,null,null,null,null,null,null,null,null,null,null,null,null,null,null,null,"Blu-ray複製",null,null,null,null,"分"]
[null,null,null,null,null,null,null,null,null,null,null,null,null,null,null,null,null,null,null,null,null,null,null,null,null,null,null,null,null,null,null,null,null,null,null,null,null,null,null,null,null,null,null,null,null,null,null,null,null,null,null,"分",null,null,null,null,"枚"]
[4,null,null,null,null,null,null,null,null,null,null,null,null,null,null,null,null,null,null,null,null,null,null,null,null,null,null,null,"⇒",null,null,null,null,null,null,null,null,null,null,null,null,null,null,null,null,null,null,null,null,"GB",null,null,null,null,null,null,"DVD複製",null,null,null,null,null,null,null,null,null,null,"GB"]
[null,null,null,null,null,null,null,null,null,null,null,null,null,null,null,null,null,null,null,null,null,null,null,null,null,null,null,null,null,null,null,null,null,null,null,null,null,null,null,null,null,null,null,null,null,null,null,null,null,null,null,"h",null,null,null,null,"枚",null,null,null,null,"料金係数で記入する"]
[null,null,null,null,null,null,null,null,null,null,null,null,null,null,null,null,null,null,null,null,null,null,null,null,null,null,null,null,null,null,null,null,null,null,null,null,null,null,null,null,null,null,null,null,null,null,null,null,null,null,null,null,null,null,null,null,"Blu-ray複製",null,null,null,null,"分"]
[null,null,null,null,null,null,null,null,null,null,null,null,null,null,null,null,null,null,null,null,null,null,null,null,null,null,null,null,null,null,null,null,null,null,null,null,null,null,null,null,null,null,null,null,null,null,null,null,null,null,null,"分",null,null,null,null,"枚"]
[5,null,null,null,null,null,null,null,null,null,null,null,null,null,null,null,null,null,null,null,null,null,null,null,null,null,null,null,"⇒",null,null,null,null,null,null,null,null,null,null,null,null,null,null,null,null,null,null,null,null,"GB",null,null,null,null,null,null,"DVD複製",null,null,null,null,null,null,null,null,null,null,"GB"]
[null,null,null,null,null,null,null,null,null,null,null,null,null,null,null,null,null,null,null,null,null,null,null,null,null,null,null,null,null,null,null,null,null,null,null,null,null,null,null,null,null,null,null,null,null,null,null,null,null,null,null,"h",null,null,null,null,"枚",null,null,null,null,"料金係数で記入する"]
[null,null,null,null,null,null,null,null,null,null,null,null,null,null,null,null,null,null,null,null,null,null,null,null,null,null,null,null,null,null,null,null,null,null,null,null,null,null,null,null,null,null,null,null,null,null,null,null,null,null,null,null,null,null,null,null,"Blu-ray複製",null,null,null,null,"分"]
[null,null,null,null,null,null,null,null,null,null,null,null,null,null,null,null,null,null,null,null,null,null,null,null,null,null,null,null,null,null,null,null,null,null,null,null,null,null,null,null,null,null,null,null,null,null,null,null,null,null,null,"分",null,null,null,null,"枚"]
[6,null,null,null,null,null,null,null,null,null,null,null,null,null,null,null,null,null,null,null,null,null,null,null,null,null,null,null,"⇒",null,null,null,null,null,null,null,null,null,null,null,null,null,null,null,null,null,null,null,null,"GB",null,null,null,null,null,null,"DVD複製",null,null,null,null,null,null,null,null,null,null,"GB"]
[null,null,null,null,null,null,null,null,null,null,null,null,null,null,null,null,null,null,null,null,null,null,null,null,null,null,null,null,null,null,null,null,null,null,null,null,null,null,null,null,null,null,null,null,null,null,null,null,null,null,null,"h",null,null,null,null,"枚",null,null,null,null,"料金係数で記入する"]
[null,null,null,null,null,null,null,null,null,null,null,null,null,null,null,null,null,null,null,null,null,null,null,null,null,null,null,null,null,null,null,null,null,null,null,null,null,null,null,null,null,null,null,null,null,null,null,null,null,null,null,null,null,null,null,null,"Blu-ray複製",null,null,null,null,"分"]
[null,null,null,null,null,null,null,null,null,null,null,null,null,null,null,null,null,null,null,null,null,null,null,null,null,null,null,null,null,null,null,null,null,null,null,null,null,null,null,null,null,null,null,null,null,null,null,null,null,null,null,"分",null,null,null,null,"枚"]
[7,null,null,null,null,null,null,null,null,null,null,null,null,null,null,null,null,null,null,null,null,null,null,null,null,null,null,null,"⇒",null,null,null,null,null,null,null,null,null,null,null,null,null,null,null,null,null,null,null,null,"GB",null,null,null,null,null,null,"DVD複製",null,null,null,null,null,null,null,null,null,null,"GB"]
[null,null,null,null,null,null,null,null,null,null,null,null,null,null,null,null,null,null,null,null,null,null,null,null,null,null,null,null,null,null,null,null,null,null,null,null,null,null,null,null,null,null,null,null,null,null,null,null,null,null,null,"h",null,null,null,null,"枚",null,null,null,null,"料金係数で記入する"]
[null,null,null,null,null,null,null,null,null,null,null,null,null,null,null,null,null,null,null,null,null,null,null,null,null,null,null,null,null,null,null,null,null,null,null,null,null,null,null,null,null,null,null,null,null,null,null,null,null,null,null,null,null,null,null,null,"Blu-ray複製",null,null,null,null,"分"]
[null,null,null,null,null,null,null,null,null,null,null,null,null,null,null,null,null,null,null,null,null,null,null,null,null,null,null,null,null,null,null,null,null,null,null,null,null,null,null,null,null,null,null,null,null,null,null,null,null,null,null,"分",null,null,null,null,"枚"]
[8,null,null,null,null,null,null,null,null,null,null,null,null,null,null,null,null,null,null,null,null,null,null,null,null,null,null,null,"⇒",null,null,null,null,null,null,null,null,null,null,null,null,null,null,null,null,null,null,null,null,"GB",null,null,null,null,null,null,"DVD複製",null,null,null,null,null,null,null,null,null,null,"GB"]
[null,null,null,null,null,null,null,null,null,null,null,null,null,null,null,null,null,null,null,null,null,null,null,null,null,null,null,null,null,null,null,null,null,null,null,null,null,null,null,null,null,null,null,null,null,null,null,null,null,null,null,"h",null,null,null,null,"枚",null,null,null,null,"料金係数で記入する"]
[null,null,null,null,null,null,null,null,null,null,null,null,null,null,null,null,null,null,null,null,null,null,null,null,null,null,null,null,null,null,null,null,null,null,null,null,null,null,null,null,null,null,null,null,null,null,null,null,null,null,null,null,null,null,null,null,"Blu-ray複製",null,null,null,null,"分"]
[null,null,null,null,null,null,null,null,null,null,null,null,null,null,null,null,null,null,null,null,null,null,null,null,null,null,null,null,null,null,null,null,null,null,null,null,null,null,null,null,null,null,null,null,null,null,null,null,null,null,null,"分",null,null,null,null,"枚"]
[9,null,null,null,null,null,null,null,null,null,null,null,null,null,null,null,null,null,null,null,null,null,null,null,null,null,null,null,"⇒",null,null,null,null,null,null,null,null,null,null,null,null,null,null,null,null,null,null,null,null,"GB",null,null,null,null,null,null,"DVD複製",null,null,null,null,null,null,null,null,null,null,"GB"]
[null,null,null,null,null,null,null,null,null,null,null,null,null,null,null,null,null,null,null,null,null,null,null,null,null,null,null,null,null,null,null,null,null,null,null,null,null,null,null,null,null,null,null,null,null,null,null,null,null,null,null,"h",null,null,null,null,"枚",null,null,null,null,"料金係数で記入する"]
[null,null,null,null,null,null,null,null,null,null,null,null,null,null,null,null,null,null,null,null,null,null,null,null,null,null,null,null,null,null,null,null,null,null,null,null,null,null,null,null,null,null,null,null,null,null,null,null,null,null,null,null,null,null,null,null,"Blu-ray複製",null,null,null,null,"分"]
[null,null,null,null,null,null,null,null,null,null,null,null,null,null,null,null,null,null,null,null,null,null,null,null,null,null,null,null,null,null,null,null,null,null,null,null,null,null,null,null,null,null,null,null,null,null,null,null,null,null,null,"分",null,null,null,null,"枚"]
[10,null,null,null,null,null,null,null,null,null,null,null,null,null,null,null,null,null,null,null,null,null,null,null,null,null,null,null,"⇒",null,null,null,null,null,null,null,null,null,null,null,null,null,null,null,null,null,null,null,null,"GB",null,null,null,null,null,null,"DVD複製",null,null,null,null,null,null,null,null,null,null,"GB"]
[null,null,null,null,null,null,null,null,null,null,null,null,null,null,null,null,null,null,null,null,null,null,null,null,null,null,null,null,null,null,null,null,null,null,null,null,null,null,null,null,null,null,null,null,null,null,null,null,null,null,null,"h",null,null,null,null,"枚",null,null,null,null,"料金係数で記入する"]
[null,null,null,null,null,null,null,null,null,null,null,null,null,null,null,null,null,null,null,null,null,null,null,null,null,null,null,null,null,null,null,null,null,null,null,null,null,null,null,null,null,null,null,null,null,null,null,null,null,null,null,null,null,null,null,null,"Blu-ray複製",null,null,null,null,"分"]
[null,null,null,null,null,null,null,null,null,null,null,null,null,null,null,null,null,null,null,null,null,null,null,null,null,null,null,null,null,null,null,null,null,null,null,null,null,null,null,null,null,null,null,null,null,null,null,null,null,null,null,"分",null,null,null,null,"枚"]

{"sheet":"(6)データコピー","index":7,"n_rows":46,"n_cols":71,"rows_kept":46,"cut":false,"hidden":false,"merged":[[43,0,46,1],[43,60,43,61],[43,62,43,68],[43,69,44,71],[44,60,44,68],[45,2,46,4],[45,60,46,66],[45,67,46,68],[45,69,46,71],[43,2,43,3],[43,4,43,7],[44,2,44,3],[44,4,44,7],[43,8,44,25],[43,26,44,27],[43,28,43,29],[43,30,43,33],[43,34,44,51],[44,28,44,29],[44,30,44,33],[45,5,46,51],[43,52,46,59],[39,0,42,1],[39,60,39,61],[39,62,39,68],[39,69,40,71],[40,60,40,68],[41,2,42,4],[41,60,42,66],[41,67,42,68],[41,69,42,71],[39,2,39,3],[39,4,39,7],[40,2,40,3],[40,4,40,7],[39,8,40,25],[39,26,40,27],[39,28,39,29],[39,30,39,33],[39,34,40,51],[40,28,40,29],[40,30,40,33],[41,5,42,51],[39,52,42,59],[35,0,38,1],[35,60,35,61],[35,62,35,68],[35,69,36,71],[36,60,36,68],[37,2,38,4],[37,60,38,66],[37,67,38,68],[37,69,38,71],[35,2,35,3],[35,4,35,7],[36,2,36,3],[36,4,36,7],[37,5,38,51],[35,8,36,25],[35,26,36,27],[35,28,35,29],[35,30,35,33],[35,34,36,51],[36,28,36,29],[36,30,36,33],[35,52,38,59],[29,2,30,4],[29,60,30,66],[29,67,30,68],[31,60,31,61],[31,62,31,68],[32,60,32,68],[33,2,34,4],[33,60,34,66],[33,67,34,68],[31,2,31,3],[31,4,31,7],[32,2,32,3],[32,4,32,7],[29,5,30,51],[31,8,32,25],[31,26,32,27],[31,28,31,29],[31,30,31,33],[31,34,32,51],[32,28,32,29],[32,30,32,33],[33,5,34,51],[31,52,34,59],[24,2,24,3],[24,4,24,7],[27,2,27,3],[27,4,27,7],[28,60,28,68],[28,2,28,3],[21,5,22,51],[21,60,22,66],[21,67,22,68],[25,5,26,51],[27,8,28,25],[27,26,28,27],[27,28,27,29],[27,30,27,33],[27,34,28,51],[28,28,28,29],[28,30,28,33],[23,52,26,59],[27,52,30,59],[23,8,24,25],[23,26,24,27],[23,28,23,29],[23,30,23,33],[23,34,24,51],[23,60,23,61],[23,62,23,68],[24,60,24,68],[19,60,19,61],[19,62,19,68],[20,60,20,68],[25,60,26,66],[25,67,26,68],[27,60,27,61],[27,62,27,68],[31,0,34,1],[27,0,30,1],[23,0,26,1],[7,0,10,1],[23,69,24,71],[11,69,12,71],[13,69,14,71],[15,69,16,71],[17,69,18,71],[19,69,20,71],[19,0,22,1],[15,0,18,1],[31,69,32,71],[33,69,34,71],[28,4,28,7],[21,2,22,4],[25,2,26,4],[23,2,23,3],[23,4,23,7],[15,60,15,61],[7,69,8,71],[25,69,26,71],[27,69,28,71],[29,69,30,71],[7,2,7,3],[7,62,7,68],[8,60,8,68],[9,2,10,4],[8,2,8,3],[1,69,3,71],[2,36,3,41],[2,42,3,64],[4,0,4,5],[4,6,4,23],[4,24,4,29],[4,30,4,47],[4,48,4,53],[0,0,3,5],[0,30,0,35],[0,36,1,41],[0,42,1,64],[0,65,0,71],[1,30,3,35],[1,65,3,67],[1,68,3,68],[4,54,4,69],[4,70,4,71],[0,6,3,29],[7,60,7,61],[15,62,15,68],[16,60,16,68],[13,60,14,66],[13,67,14,68],[15,52,18,59],[11,0,14,1],[6,60,6,68],[5,0,6,1],[11,2,11,3],[11,4,11,7],[12,2,12,3],[12,4,12,7],[11,60,11,61],[11,62,11,68],[12,60,12,68],[7,52,10,59],[11,52,14,59],[7,8,8,25],[7,28,7,29],[7,30,7,33],[7,34,8,51],[8,28,8,29],[8,30,8,33],[19,2,19,3],[19,4,19,7],[20,2,20,3],[20,4,20,7],[15,2,15,3],[15,4,15,7],[16,2,16,3],[16,4,16,7],[13,5,14,51],[15,8,16,25],[15,26,16,27],[15,28,15,29],[15,30,15,33],[15,34,16,51],[16,28,16,29],[16,30,16,33],[17,2,18,4],[17,5,18,51],[13,2,14,4],[19,52,22,59],[5,28,6,51],[9,5,10,51],[11,8,12,25],[11,26,12,27],[11,28,11,29],[11,30,11,33],[11,34,12,51],[12,28,12,29],[12,30,12,33],[5,52,5,71],[6,52,6,59],[6,69,6,71],[21,69,22,71],[9,69,10,71],[8,4,8,7],[7,4,7,7],[5,2,6,25],[5,26,6,27],[7,26,8,27],[17,60,18,66],[17,67,18,68],[9,67,10,68],[9,60,10,66],[24,28,24,29],[24,30,24,33],[19,8,20,25],[19,26,20,27],[19,28,19,29],[19,30,19,33],[19,34,20,51],[20,28,20,29],[20,30,20,33]]}
[6,null,null,null,null,null,"データコピー",null,null,null,null,null,null,null,null,null,null,null,null,null,null,null,null,null,null,null,null,null,null,null,"受付店",null,null,null,null,null,"受付番号",null,null,null,null,null,{"$f":"INDEX('(0)作業受付票'!$AQ$1,)","v":""},null,null,null,null,null,null,null,null,null,null,null,null,null,null,null,null,null,null,null,null,null,null,"受付枚数"]
[null,null,null,null,null,null,null,null,null,null,null,null,null,null,null,null,null,null,null,null,null,null,null,null,null,null,null,null,null,null,{"$f":"INDEX('(0)作業受付票'!$AE$2,)","v":"　"}]
[null,null,null,null,null,null,null,null,null,null,null,null,null,null,null,null,null,null,null,null,null,null,null,null,null,null,null,null,null,null,null,null,null,null,null,null,"受付日時",null,null,null,null,null,{"$f":"NOW()","v":"2021-06-01T11:04:59.900"}]
[]
["会社名",null,null,null,null,null,{"$f":"INDEX('(0)作業受付票'!$K$5,)","v":""},null,null,null,null,null,null,null,null,null,null,null,null,null,null,null,null,null,"番組名",null,null,null,null,null,{"$f":"INDEX('(0)作業受付票'!$K$9,)","v":""},null,null,null,null,null,null,null,null,null,null,null,null,null,null,null,null,null,"担当者名",null,null,null,null,null,{"$f":"INDEX('(0)作業受付票'!$AV$11,)","v":""},null,null,null,null,null,null,null,null,null,null,null,null,null,null,null,"様"]
[null,null,"【出し】\nHDD管理番号・複製内容など",null,null,null,null,null,null,null,null,null,null,null,null,null,null,null,null,null,null,null,null,null,null,null,"⇒",null,"【受け】\nHDD管理番号など",null,null,null,null,null,null,null,null,null,null,null,null,null,null,null,null,null,null,null,null,null,null,null,"▼ ▼ ▼　弊社使用欄　▼ ▼ ▼"]
[null,null,null,null,null,null,null,null,null,null,null,null,null,null,null,null,null,null,null,null,null,null,null,null,null,null,null,null,null,null,null,null,null,null,null,null,null,null,null,null,null,null,null,null,null,null,null,null,null,null,null,null,"実容量(GB)",null,null,null,null,null,null,null,"作業料金(係数)",null,null,null,null,null,null,null,null,"作業者"]
[1,null,"□",null,"SSD",null,null,null,null,null,null,null,null,null,null,null,null,null,null,null,null,null,null,null,null,null,"⇒",null,"□",null,"SSD",null,null,null,null,null,null,null,null,null,null,null,null,null,null,null,null,null,null,null,null,null,"GB",null,null,null,null,null,null,null,"□",null,"SSD割引適用"]
[null,null,"□",null,"HDD等",null,null,null,null,null,null,null,null,null,null,null,null,null,null,null,null,null,null,null,null,null,null,null,"□",null,"HDD等",null,null,null,null,null,null,null,null,null,null,null,null,null,null,null,null,null,null,null,null,null,null,null,null,null,null,null,null,null,"出し受け両方ともに\nSSDの場合チェックする"]
[null,null,"備考",null,null,null,null,null,null,null,null,null,null,null,null,null,null,null,null,null,null,null,null,null,null,null,null,null,null,null,null,null,null,null,null,null,null,null,null,null,null,null,null,null,null,null,null,null,null,null,null,null,null,null,null,null,null,null,null,null,null,null,null,null,null,null,null,"GB"]
[]
[2,null,"□",null,"SSD",null,null,null,null,null,null,null,null,null,null,null,null,null,null,null,null,null,null,null,null,null,"⇒",null,"□",null,"SSD",null,null,null,null,null,null,null,null,null,null,null,null,null,null,null,null,null,null,null,null,null,"GB",null,null,null,null,null,null,null,"□",null,"SSD割引適用"]
[null,null,"□",null,"HDD等",null,null,null,null,null,null,null,null,null,null,null,null,null,null,null,null,null,null,null,null,null,null,null,"□",null,"HDD等",null,null,null,null,null,null,null,null,null,null,null,null,null,null,null,null,null,null,null,null,null,null,null,null,null,null,null,null,null,"出し受け両方ともに\nSSDの場合チェックする"]
[null,null,"備考",null,null,null,null,null,null,null,null,null,null,null,null,null,null,null,null,null,null,null,null,null,null,null,null,null,null,null,null,null,null,null,null,null,null,null,null,null,null,null,null,null,null,null,null,null,null,null,null,null,null,null,null,null,null,null,null,null,null,null,null,null,null,null,null,"GB"]
[]
[3,null,"□",null,"SSD",null,null,null,null,null,null,null,null,null,null,null,null,null,null,null,null,null,null,null,null,null,"⇒",null,"□",null,"SSD",null,null,null,null,null,null,null,null,null,null,null,null,null,null,null,null,null,null,null,null,null,"GB",null,null,null,null,null,null,null,"□",null,"SSD割引適用"]
[null,null,"□",null,"HDD等",null,null,null,null,null,null,null,null,null,null,null,null,null,null,null,null,null,null,null,null,null,null,null,"□",null,"HDD等",null,null,null,null,null,null,null,null,null,null,null,null,null,null,null,null,null,null,null,null,null,null,null,null,null,null,null,null,null,"出し受け両方ともに\nSSDの場合チェックする"]
[null,null,"備考",null,null,null,null,null,null,null,null,null,null,null,null,null,null,null,null,null,null,null,null,null,null,null,null,null,null,null,null,null,null,null,null,null,null,null,null,null,null,null,null,null,null,null,null,null,null,null,null,null,null,null,null,null,null,null,null,null,null,null,null,null,null,null,null,"GB"]
[]
[4,null,"□",null,"SSD",null,null,null,null,null,null,null,null,null,null,null,null,null,null,null,null,null,null,null,null,null,"⇒",null,"□",null,"SSD",null,null,null,null,null,null,null,null,null,null,null,null,null,null,null,null,null,null,null,null,null,"GB",null,null,null,null,null,null,null,"□",null,"SSD割引適用"]
[null,null,"□",null,"HDD等",null,null,null,null,null,null,null,null,null,null,null,null,null,null,null,null,null,null,null,null,null,null,null,"□",null,"HDD等",null,null,null,null,null,null,null,null,null,null,null,null,null,null,null,null,null,null,null,null,null,null,null,null,null,null,null,null,null,"出し受け両方ともに\nSSDの場合チェックする"]
[null,null,"備考",null,null,null,null,null,null,null,null,null,null,null,null,null,null,null,null,null,null,null,null,null,null,null,null,null,null,null,null,null,null,null,null,null,null,null,null,null,null,null,null,null,null,null,null,null,null,null,null,null,null,null,null,null,null,null,null,null,null,null,null,null,null,null,null,"GB"]
[]
[5,null,"□",null,"SSD",null,null,null,null,null,null,null,null,null,null,null,null,null,null,null,null,null,null,null,null,null,"⇒",null,"□",null,"SSD",null,null,null,null,null,null,null,null,null,null,null,null,null,null,null,null,null,null,null,null,null,"GB",null,null,null,null,null,null,null,"□",null,"SSD割引適用"]
[null,null,"□",null,"HDD等",null,null,null,null,null,null,null,null,null,null,null,null,null,null,null,null,null,null,null,null,null,null,null,"□",null,"HDD等",null,null,null,null,null,null,null,null,null,null,null,null,null,null,null,null,null,null,null,null,null,null,null,null,null,null,null,null,null,"出し受け両方ともに\nSSDの場合チェックする"]
[null,null,"備考",null,null,null,null,null,null,null,null,null,null,null,null,null,null,null,null,null,null,null,null,null,null,null,null,null,null,null,null,null,null,null,null,null,null,null,null,null,null,null,null,null,null,null,null,null,null,null,null,null,null,null,null,null,null,null,null,null,null,null,null,null,null,null,null,"GB"]
[]
[6,null,"□",null,"SSD",null,null,null,null,null,null,null,null,null,null,null,null,null,null,null,null,null,null,null,null,null,"⇒",null,"□",null,"SSD",null,null,null,null,null,null,null,null,null,null,null,null,null,null,null,null,null,null,null,null,null,"GB",null,null,null,null,null,null,null,"□",null,"SSD割引適用"]
[null,null,"□",null,"HDD等",null,null,null,null,null,null,null,null,null,null,null,null,null,null,null,null,null,null,null,null,null,null,null,"□",null,"HDD等",null,null,null,null,null,null,null,null,null,null,null,null,null,null,null,null,null,null,null,null,null,null,null,null,null,null,null,null,null,"出し受け両方ともに\nSSDの場合チェックする"]
[null,null,"備考",null,null,null,null,null,null,null,null,null,null,null,null,null,null,null,null,null,null,null,null,null,null,null,null,null,null,null,null,null,null,null,null,null,null,null,null,null,null,null,null,null,null,null,null,null,null,null,null,null,null,null,null,null,null,null,null,null,null,null,null,null,null,null,null,"GB"]
[]
[7,null,"□",null,"SSD",null,null,null,null,null,null,null,null,null,null,null,null,null,null,null,null,null,null,null,null,null,"⇒",null,"□",null,"SSD",null,null,null,null,null,null,null,null,null,null,null,null,null,null,null,null,null,null,null,null,null,"GB",null,null,null,null,null,null,null,"□",null,"SSD割引適用"]
[null,null,"□",null,"HDD等",null,null,null,null,null,null,null,null,null,null,null,null,null,null,null,null,null,null,null,null,null,null,null,"□",null,"HDD等",null,null,null,null,null,null,null,null,null,null,null,null,null,null,null,null,null,null,null,null,null,null,null,null,null,null,null,null,null,"出し受け両方ともに\nSSDの場合チェックする"]
[null,null,"備考",null,null,null,null,null,null,null,null,null,null,null,null,null,null,null,null,null,null,null,null,null,null,null,null,null,null,null,null,null,null,null,null,null,null,null,null,null,null,null,null,null,null,null,null,null,null,null,null,null,null,null,null,null,null,null,null,null,null,null,null,null,null,null,null,"GB"]
[]
[8,null,"□",null,"SSD",null,null,null,null,null,null,null,null,null,null,null,null,null,null,null,null,null,null,null,null,null,"⇒",null,"□",null,"SSD",null,null,null,null,null,null,null,null,null,null,null,null,null,null,null,null,null,null,null,null,null,"GB",null,null,null,null,null,null,null,"□",null,"SSD割引適用"]
[null,null,"□",null,"HDD等",null,null,null,null,null,null,null,null,null,null,null,null,null,null,null,null,null,null,null,null,null,null,null,"□",null,"HDD等",null,null,null,null,null,null,null,null,null,null,null,null,null,null,null,null,null,null,null,null,null,null,null,null,null,null,null,null,null,"出し受け両方ともに\nSSDの場合チェックする"]
[null,null,"備考",null,null,null,null,null,null,null,null,null,null,null,null,null,null,null,null,null,null,null,null,null,null,null,null,null,null,null,null,null,null,null,null,null,null,null,null,null,null,null,null,null,null,null,null,null,null,null,null,null,null,null,null,null,null,null,null,null,null,null,null,null,null,null,null,"GB"]
[]
[9,null,"□",null,"SSD",null,null,null,null,null,null,null,null,null,null,null,null,null,null,null,null,null,null,null,null,null,"⇒",null,"□",null,"SSD",null,null,null,null,null,null,null,null,null,null,null,null,null,null,null,null,null,null,null,null,null,"GB",null,null,null,null,null,null,null,"□",null,"SSD割引適用"]
[null,null,"□",null,"HDD等",null,null,null,null,null,null,null,null,null,null,null,null,null,null,null,null,null,null,null,null,null,null,null,"□",null,"HDD等",null,null,null,null,null,null,null,null,null,null,null,null,null,null,null,null,null,null,null,null,null,null,null,null,null,null,null,null,null,"出し受け両方ともに\nSSDの場合チェックする"]
[null,null,"備考",null,null,null,null,null,null,null,null,null,null,null,null,null,null,null,null,null,null,null,null,null,null,null,null,null,null,null,null,null,null,null,null,null,null,null,null,null,null,null,null,null,null,null,null,null,null,null,null,null,null,null,null,null,null,null,null,null,null,null,null,null,null,null,null,"GB"]
[]
[10,null,"□",null,"SSD",null,null,null,null,null,null,null,null,null,null,null,null,null,null,null,null,null,null,null,null,null,"⇒",null,"□",null,"SSD",null,null,null,null,null,null,null,null,null,null,null,null,null,null,null,null,null,null,null,null,null,"GB",null,null,null,null,null,null,null,"□",null,"SSD割引適用"]
[null,null,"□",null,"HDD等",null,null,null,null,null,null,null,null,null,null,null,null,null,null,null,null,null,null,null,null,null,null,null,"□",null,"HDD等",null,null,null,null,null,null,null,null,null,null,null,null,null,null,null,null,null,null,null,null,null,null,null,null,null,null,null,null,null,"出し受け両方ともに\nSSDの場合チェックする"]
[null,null,"備考",null,null,null,null,null,null,null,null,null,null,null,null,null,null,null,null,null,null,null,null,null,null,null,null,null,null,null,null,null,null,null,null,null,null,null,null,null,null,null,null,null,null,null,null,null,null,null,null,null,null,null,null,null,null,null,null,null,null,null,null,null,null,null,null,"GB"]

{"sheet":"(7)素材用デジタルカット","index":8,"n_rows":53,"n_cols":71,"rows_kept":53,"cut":false,"hidden":false,"merged":[[4,54,4,69],[4,70,4,71],[21,67,21,68],[13,0,16,1],[25,0,28,1],[21,0,24,1],[17,0,20,1],[9,0,12,1],[17,67,17,68],[18,66,19,68],[13,59,13,66],[14,59,15,60],[14,61,15,65],[16,59,16,60],[17,69,17,71],[16,61,16,65],[14,66,15,68],[16,66,16,68],[10,59,11,71],[28,69,28,71],[21,69,21,71],[22,69,23,71],[26,69,27,71],[6,68,6,71],[36,59,36,60],[36,61,36,65],[36,66,36,68],[37,54,37,58],[37,59,37,66],[38,54,38,58],[38,59,39,60],[38,61,39,65],[38,66,39,68],[49,0,52,1],[42,69,43,71],[44,69,44,71],[45,0,48,1],[41,0,44,1],[41,69,41,71],[49,69,49,71],[50,69,51,71],[52,69,52,71],[49,67,49,68],[46,69,47,71],[48,69,48,71],[45,69,45,71],[42,54,42,58],[42,59,43,60],[42,61,43,65],[42,66,43,68],[43,54,43,58],[44,54,44,58],[44,59,44,60],[41,49,41,53],[42,47,44,48],[42,49,42,53],[43,49,43,53],[37,69,37,71],[38,69,39,71],[40,69,40,71],[30,54,30,58],[30,59,31,60],[30,61,31,65],[30,66,31,68],[31,54,31,58],[32,54,32,58],[32,59,32,60],[32,61,32,65],[32,66,32,68],[33,54,33,58],[33,59,33,66],[34,54,34,58],[34,59,35,60],[34,61,35,65],[34,66,35,68],[33,69,33,71],[34,69,35,71],[36,69,36,71],[40,66,40,68],[35,54,35,58],[36,54,36,58],[25,69,25,71],[13,69,13,71],[14,69,15,71],[16,69,16,71],[18,69,19,71],[20,69,20,71],[24,69,24,71],[30,69,31,71],[32,69,32,71],[29,69,29,71],[0,0,3,5],[0,6,3,29],[0,30,0,35],[0,36,1,41],[0,42,1,64],[0,65,0,71],[1,30,3,35],[1,65,3,67],[1,68,3,68],[1,69,3,71],[2,36,3,41],[2,42,3,64],[49,2,52,7],[17,8,20,15],[13,2,16,7],[17,2,20,7],[21,2,24,7],[25,2,28,7],[29,2,32,7],[33,2,36,7],[37,2,40,7],[41,2,44,7],[33,67,33,68],[37,67,37,68],[25,67,25,68],[29,67,29,68],[45,67,45,68],[4,0,4,5],[4,6,4,23],[4,24,4,29],[4,30,4,47],[4,48,4,53],[10,2,12,7],[13,67,13,68],[37,0,40,1],[33,0,36,1],[29,0,32,1],[41,67,41,68],[41,54,41,58],[41,59,41,66],[21,59,21,66],[22,59,23,60],[22,61,23,65],[22,66,23,68],[24,59,24,60],[24,61,24,65],[45,2,48,7],[13,8,16,15],[25,8,28,15],[33,8,36,15],[41,8,44,15],[29,8,32,15],[45,8,48,15],[41,16,44,27],[37,8,40,15],[29,16,32,27],[33,16,36,27],[37,16,40,27],[45,16,48,27],[17,16,20,27],[41,47,41,48],[24,54,24,58],[25,36,28,46],[29,36,32,46],[29,47,29,48],[29,49,29,53],[29,54,29,58],[37,36,40,46],[37,47,37,48],[37,49,37,53],[38,47,40,48],[38,49,38,53],[33,36,36,46],[33,47,33,48],[33,49,33,53],[34,47,36,48],[34,49,34,53],[9,36,10,48],[11,36,12,48],[17,36,20,46],[17,47,17,48],[17,49,17,53],[23,49,23,53],[29,28,32,29],[29,30,32,35],[33,28,36,29],[33,30,36,35],[35,49,35,53],[36,49,36,53],[10,49,11,53],[9,2,9,27],[41,28,44,29],[41,30,44,35],[30,47,32,48],[17,28,20,29],[17,30,20,35],[21,8,24,15],[21,16,24,27],[21,28,24,29],[21,30,24,35],[13,16,16,27],[12,8,12,15],[13,36,16,46],[21,36,24,46],[21,47,21,48],[21,49,21,53],[22,47,24,48],[22,49,22,53],[10,16,12,27],[13,28,16,29],[13,30,16,35],[25,16,28,27],[25,28,28,29],[18,47,20,48],[18,49,18,53],[18,54,18,58],[49,30,52,35],[45,28,48,29],[45,30,48,35],[37,28,40,29],[37,30,40,35],[49,8,52,15],[49,16,52,27],[49,28,52,29],[39,49,39,53],[40,49,40,53],[49,36,52,46],[49,47,49,48],[49,49,49,53],[39,54,39,58],[40,54,40,58],[21,54,21,58],[22,54,22,58],[25,30,28,35],[25,47,25,48],[25,49,25,53],[26,47,28,48],[13,47,13,48],[13,49,13,53],[13,54,13,58],[14,47,16,48],[14,49,14,53],[14,54,14,58],[15,49,15,53],[15,54,15,58],[16,49,16,53],[29,59,29,66],[30,49,30,53],[31,49,31,53],[32,49,32,53],[24,66,24,68],[25,54,25,58],[26,66,27,68],[27,49,27,53],[27,54,27,58],[26,54,26,58],[26,59,27,60],[26,61,27,65],[24,49,24,53],[26,49,26,53],[17,59,17,66],[20,66,20,68],[12,66,12,68],[12,59,12,65],[28,49,28,53],[28,54,28,58],[28,59,28,60],[28,61,28,65],[28,66,28,68],[16,54,16,58],[25,59,25,66],[18,59,19,60],[18,61,19,65],[19,49,19,53],[19,54,19,58],[20,49,20,53],[20,54,20,58],[20,59,20,60],[20,61,20,65],[23,54,23,58],[17,54,17,58],[40,59,40,60],[40,61,40,65],[44,61,44,65],[44,66,44,68],[45,36,48,46],[45,47,45,48],[45,49,45,53],[45,54,45,58],[45,59,45,66],[46,47,48,48],[46,49,46,53],[46,54,46,58],[46,59,47,60],[46,61,47,65],[46,66,47,68],[47,49,47,53],[47,54,47,58],[48,49,48,53],[48,54,48,58],[48,59,48,60],[48,61,48,65],[48,66,48,68],[44,49,44,53],[41,36,44,46],[49,54,49,58],[49,59,49,66],[50,47,52,48],[50,49,50,53],[50,54,50,58],[50,59,51,60],[50,61,51,65],[50,66,51,68],[51,49,51,53],[51,54,51,58],[52,49,52,53],[52,54,52,58],[52,59,52,60],[52,61,52,65],[52,66,52,68],[12,69,12,71],[9,49,9,71],[5,0,5,6],[6,0,7,1],[6,2,7,6],[8,0,8,1],[8,2,8,6],[8,7,8,8],[5,7,5,15],[5,16,5,23],[12,49,12,53],[10,54,11,58],[12,54,12,58],[9,28,12,29],[9,30,9,35],[10,30,12,35],[10,8,11,15],[6,64,6,67],[6,60,6,63],[7,68,7,71],[7,64,7,67],[7,60,7,63],[6,52,6,55],[6,56,6,59],[5,24,5,71],[6,28,6,31],[6,32,6,35],[6,36,6,39],[7,28,7,31],[7,32,7,35],[7,36,7,39],[6,40,6,43],[6,44,6,47],[6,48,6,51],[7,40,7,43],[7,44,7,47],[7,48,7,51],[7,52,7,55],[7,56,7,59],[6,26,6,27],[7,26,7,27],[6,24,7,25],[6,18,6,23],[7,7,7,8],[7,9,7,15],[7,16,7,17],[7,18,7,23],[8,9,8,15],[8,16,8,17],[8,18,8,23],[8,24,8,71],[6,7,6,8],[6,9,6,15],[6,16,6,17]]}
[7,null,null,null,null,null,"素材用デジタルカット",null,null,null,null,null,null,null,null,null,null,null,null,null,null,null,null,null,null,null,null,null,null,null,"受付店",null,null,null,null,null,"受付番号",null,null,null,null,null,{"$f":"INDEX('(0)作業受付票'!$AQ$1,)","v":""},null,null,null,null,null,null,null,null,null,null,null,null,null,null,null,null,null,null,null,null,null,null,"受付枚数"]
[null,null,null,null,null,null,null,null,null,null,null,null,null,null,null,null,null,null,null,null,null,null,null,null,null,null,null,null,null,null,{"$f":"INDEX('(0)作業受付票'!$AE$2,)","v":"　"}]
[null,null,null,null,null,null,null,null,null,null,null,null,null,null,null,null,null,null,null,null,null,null,null,null,null,null,null,null,null,null,null,null,null,null,null,null,"受付日時",null,null,null,null,null,{"$f":"NOW()","v":"2021-06-01T11:04:59.900"}]
[]
["会社名",null,null,null,null,null,{"$f":"INDEX('(0)作業受付票'!$K$5,)","v":""},null,null,null,null,null,null,null,null,null,null,null,null,null,null,null,null,null,"番組名",null,null,null,null,null,{"$f":"INDEX('(0)作業受付票'!$K$9,)","v":""},null,null,null,null,null,null,null,null,null,null,null,null,null,null,null,null,null,"担当者名",null,null,null,null,null,{"$f":"INDEX('(0)作業受付票'!$AV$11,)","v":""},null,null,null,null,null,null,null,null,null,null,null,null,null,null,null,"様"]
["メディア\nバックアップ",null,null,null,null,null,null,"受けテープ・メディア",null,null,null,null,null,null,null,null,"TOCレンタル\nメディアの処理",null,null,null,null,null,null,null,"作業料金【税込】"]
[null,null,"取る\n(推奨)",null,null,null,null,null,null,"出庫(販売)",null,null,null,null,null,null,null,null,"作業後返却",null,null,null,null,null,"A",null,"実尺",null,"～10分",null,null,null,"～20分",null,null,null,"～30分",null,null,null,"～60分",null,null,null,"～90分",null,null,null,"～120分",null,null,null,"～150分",null,null,null,"～180分",null,null,null,"～210分",null,null,null,"～240分",null,null,null,"以降\n30分ごと"]
[null,null,null,null,null,null,null,null,null,"消去NG(持込)",null,null,null,null,null,null,null,null,"レンタル継続",null,null,null,null,null,null,null,"料金",null,"1,100円",null,null,null,"2,200円",null,null,null,"3,300円",null,null,null,"4,400円",null,null,null,"5,500円",null,null,null,"6,600円",null,null,null,"7,700円",null,null,null,"8,800円",null,null,null,"9,900円",null,null,null,"11,000円",null,null,null,"＋1,100円"]
[null,null,"不要",null,null,null,null,null,null,"消去OK(持込)",null,null,null,null,null,null,null,null,"不明",null,null,null,null,null,"デジタルカットは 【A】 で計上する。デジタルカットに際し変換が必要な場合は、変換した素材尺に合わせて 【B】 を計上する。"]
[null,null,"【出し】",null,null,null,null,null,null,null,null,null,null,null,null,null,null,null,null,null,null,null,null,null,null,null,null,null,"⇒",null,"【受け】",null,null,null,null,null,"備考(設定など)",null,null,null,null,null,null,null,null,null,null,null,null,"▼　▼　▼　弊社使用欄　▼　▼　▼"]
[null,null,"メディアの\n種類名",null,null,null,null,null,"メディアの名称など",null,null,null,null,null,null,null,"書き出し内容など",null,null,null,null,null,null,null,null,null,null,null,null,null,"メディア・\nテープの種類",null,null,null,null,null,null,null,null,null,null,null,null,null,null,null,null,null,null,"開始TC",null,null,null,null,"DVD複製",null,null,null,null,"メディアバックアップ(係数)"]
[null,null,null,null,null,null,null,null,null,null,null,null,null,null,null,null,null,null,null,null,null,null,null,null,null,null,null,null,null,null,null,null,null,null,null,null,"(MBU実施時の実容量)"]
[null,null,null,null,null,null,null,null,"(作業者が判別できる範囲で)",null,null,null,null,null,null,null,null,null,null,null,null,null,null,null,null,null,null,null,null,null,null,null,null,null,null,null,null,null,null,null,null,null,null,null,null,null,null,null,null,"実尺(分)",null,null,null,null,"Blu-ray複製",null,null,null,null,"作業料金(係数)",null,null,null,null,null,null,"B作業者",null,null,"A作業者"]
[1,null,null,null,null,null,null,null,null,null,null,null,null,null,null,null,null,null,null,null,null,null,null,null,null,null,null,null,"⇒",null,null,null,null,null,null,null,null,null,null,null,null,null,null,null,null,null,null,"GB",null,null,null,null,null,null,"DVD複製",null,null,null,null,null,null,null,null,null,null,null,null,"GB"]
[null,null,null,null,null,null,null,null,null,null,null,null,null,null,null,null,null,null,null,null,null,null,null,null,null,null,null,null,null,null,null,null,null,null,null,null,null,null,null,null,null,null,null,null,null,null,null,null,null,"h",null,null,null,null,"枚",null,null,null,null,"A",null,null,null,null,null,null,"B開始",null,null,"A開始"]
[null,null,null,null,null,null,null,null,null,null,null,null,null,null,null,null,null,null,null,null,null,null,null,null,null,null,null,null,null,null,null,null,null,null,null,null,null,null,null,null,null,null,null,null,null,null,null,null,null,null,null,null,null,null,"Blu-ray複製"]
[null,null,null,null,null,null,null,null,null,null,null,null,null,null,null,null,null,null,null,null,null,null,null,null,null,null,null,null,null,null,null,null,null,null,null,null,null,null,null,null,null,null,null,null,null,null,null,null,null,"分",null,null,null,null,"枚",null,null,null,null,"B",null,null,null,null,null,null,"B〆",null,null,"A〆"]
[2,null,null,null,null,null,null,null,null,null,null,null,null,null,null,null,null,null,null,null,null,null,null,null,null,null,null,null,"⇒",null,null,null,null,null,null,null,null,null,null,null,null,null,null,null,null,null,null,"GB",null,null,null,null,null,null,"DVD複製",null,null,null,null,null,null,null,null,null,null,null,null,"GB"]
[null,null,null,null,null,null,null,null,null,null,null,null,null,null,null,null,null,null,null,null,null,null,null,null,null,null,null,null,null,null,null,null,null,null,null,null,null,null,null,null,null,null,null,null,null,null,null,null,null,"h",null,null,null,null,"枚",null,null,null,null,"A",null,null,null,null,null,null,"B開始",null,null,"A開始"]
[null,null,null,null,null,null,null,null,null,null,null,null,null,null,null,null,null,null,null,null,null,null,null,null,null,null,null,null,null,null,null,null,null,null,null,null,null,null,null,null,null,null,null,null,null,null,null,null,null,null,null,null,null,null,"Blu-ray複製"]
[null,null,null,null,null,null,null,null,null,null,null,null,null,null,null,null,null,null,null,null,null,null,null,null,null,null,null,null,null,null,null,null,null,null,null,null,null,null,null,null,null,null,null,null,null,null,null,null,null,"分",null,null,null,null,"枚",null,null,null,null,"B",null,null,null,null,null,null,"B〆",null,null,"A〆"]
[3,null,null,null,null,null,null,null,null,null,null,null,null,null,null,null,null,null,null,null,null,null,null,null,null,null,null,null,"⇒",null,null,null,null,null,null,null,null,null,null,null,null,null,null,null,null,null,null,"GB",null,null,null,null,null,null,"DVD複製",null,null,null,null,null,null,null,null,null,null,null,null,"GB"]
[null,null,null,null,null,null,null,null,null,null,null,null,null,null,null,null,null,null,null,null,null,null,null,null,null,null,null,null,null,null,null,null,null,null,null,null,null,null,null,null,null,null,null,null,null,null,null,null,null,"h",null,null,null,null,"枚",null,null,null,null,"A",null,null,null,null,null,null,"B開始",null,null,"A開始"]
[null,null,null,null,null,null,null,null,null,null,null,null,null,null,null,null,null,null,null,null,null,null,null,null,null,null,null,null,null,null,null,null,null,null,null,null,null,null,null,null,null,null,null,null,null,null,null,null,null,null,null,null,null,null,"Blu-ray複製"]
[null,null,null,null,null,null,null,null,null,null,null,null,null,null,null,null,null,null,null,null,null,null,null,null,null,null,null,null,null,null,null,null,null,null,null,null,null,null,null,null,null,null,null,null,null,null,null,null,null,"分",null,null,null,null,"枚",null,null,null,null,"B",null,null,null,null,null,null,"B〆",null,null,"A〆"]
[4,null,null,null,null,null,null,null,null,null,null,null,null,null,null,null,null,null,null,null,null,null,null,null,null,null,null,null,"⇒",null,null,null,null,null,null,null,null,null,null,null,null,null,null,null,null,null,null,"GB",null,null,null,null,null,null,"DVD複製",null,null,null,null,null,null,null,null,null,null,null,null,"GB"]
[null,null,null,null,null,null,null,null,null,null,null,null,null,null,null,null,null,null,null,null,null,null,null,null,null,null,null,null,null,null,null,null,null,null,null,null,null,null,null,null,null,null,null,null,null,null,null,null,null,"h",null,null,null,null,"枚",null,null,null,null,"A",null,null,null,null,null,null,"B開始",null,null,"A開始"]
[null,null,null,null,null,null,null,null,null,null,null,null,null,null,null,null,null,null,null,null,null,null,null,null,null,null,null,null,null,null,null,null,null,null,null,null,null,null,null,null,null,null,null,null,null,null,null,null,null,null,null,null,null,null,"Blu-ray複製"]
[null,null,null,null,null,null,null,null,null,null,null,null,null,null,null,null,null,null,null,null,null,null,null,null,null,null,null,null,null,null,null,null,null,null,null,null,null,null,null,null,null,null,null,null,null,null,null,null,null,"分",null,null,null,null,"枚",null,null,null,null,"B",null,null,null,null,null,null,"B〆",null,null,"A〆"]
[5,null,null,null,null,null,null,null,null,null,null,null,null,null,null,null,null,null,null,null,null,null,null,null,null,null,null,null,"⇒",null,null,null,null,null,null,null,null,null,null,null,null,null,null,null,null,null,null,"GB",null,null,null,null,null,null,"DVD複製",null,null,null,null,null,null,null,null,null,null,null,null,"GB"]
[null,null,null,null,null,null,null,null,null,null,null,null,null,null,null,null,null,null,null,null,null,null,null,null,null,null,null,null,null,null,null,null,null,null,null,null,null,null,null,null,null,null,null,null,null,null,null,null,null,"h",null,null,null,null,"枚",null,null,null,null,"A",null,null,null,null,null,null,"B開始",null,null,"A開始"]
[null,null,null,null,null,null,null,null,null,null,null,null,null,null,null,null,null,null,null,null,null,null,null,null,null,null,null,null,null,null,null,null,null,null,null,null,null,null,null,null,null,null,null,null,null,null,null,null,null,null,null,null,null,null,"Blu-ray複製"]
[null,null,null,null,null,null,null,null,null,null,null,null,null,null,null,null,null,null,null,null,null,null,null,null,null,null,null,null,null,null,null,null,null,null,null,null,null,null,null,null,null,null,null,null,null,null,null,null,null,"分",null,null,null,null,"枚",null,null,null,null,"B",null,null,null,null,null,null,"B〆",null,null,"A〆"]
[6,null,null,null,null,null,null,null,null,null,null,null,null,null,null,null,null,null,null,null,null,null,null,null,null,null,null,null,"⇒",null,null,null,null,null,null,null,null,null,null,null,null,null,null,null,null,null,null,"GB",null,null,null,null,null,null,"DVD複製",null,null,null,null,null,null,null,null,null,null,null,null,"GB"]
[null,null,null,null,null,null,null,null,null,null,null,null,null,null,null,null,null,null,null,null,null,null,null,null,null,null,null,null,null,null,null,null,null,null,null,null,null,null,null,null,null,null,null,null,null,null,null,null,null,"h",null,null,null,null,"枚",null,null,null,null,"A",null,null,null,null,null,null,"B開始",null,null,"A開始"]
[null,null,null,null,null,null,null,null,null,null,null,null,null,null,null,null,null,null,null,null,null,null,null,null,null,null,null,null,null,null,null,null,null,null,null,null,null,null,null,null,null,null,null,null,null,null,null,null,null,null,null,null,null,null,"Blu-ray複製"]
[null,null,null,null,null,null,null,null,null,null,null,null,null,null,null,null,null,null,null,null,null,null,null,null,null,null,null,null,null,null,null,null,null,null,null,null,null,null,null,null,null,null,null,null,null,null,null,null,null,"分",null,null,null,null,"枚",null,null,null,null,"B",null,null,null,null,null,null,"B〆",null,null,"A〆"]
[7,null,null,null,null,null,null,null,null,null,null,null,null,null,null,null,null,null,null,null,null,null,null,null,null,null,null,null,"⇒",null,null,null,null,null,null,null,null,null,null,null,null,null,null,null,null,null,null,"GB",null,null,null,null,null,null,"DVD複製",null,null,null,null,null,null,null,null,null,null,null,null,"GB"]
[null,null,null,null,null,null,null,null,null,null,null,null,null,null,null,null,null,null,null,null,null,null,null,null,null,null,null,null,null,null,null,null,null,null,null,null,null,null,null,null,null,null,null,null,null,null,null,null,null,"h",null,null,null,null,"枚",null,null,null,null,"A",null,null,null,null,null,null,"B開始",null,null,"A開始"]
[null,null,null,null,null,null,null,null,null,null,null,null,null,null,null,null,null,null,null,null,null,null,null,null,null,null,null,null,null,null,null,null,null,null,null,null,null,null,null,null,null,null,null,null,null,null,null,null,null,null,null,null,null,null,"Blu-ray複製"]
[null,null,null,null,null,null,null,null,null,null,null,null,null,null,null,null,null,null,null,null,null,null,null,null,null,null,null,null,null,null,null,null,null,null,null,null,null,null,null,null,null,null,null,null,null,null,null,null,null,"分",null,null,null,null,"枚",null,null,null,null,"B",null,null,null,null,null,null,"B〆",null,null,"A〆"]
[8,null,null,null,null,null,null,null,null,null,null,null,null,null,null,null,null,null,null,null,null,null,null,null,null,null,null,null,"⇒",null,null,null,null,null,null,null,null,null,null,null,null,null,null,null,null,null,null,"GB",null,null,null,null,null,null,"DVD複製",null,null,null,null,null,null,null,null,null,null,null,null,"GB"]
[null,null,null,null,null,null,null,null,null,null,null,null,null,null,null,null,null,null,null,null,null,null,null,null,null,null,null,null,null,null,null,null,null,null,null,null,null,null,null,null,null,null,null,null,null,null,null,null,null,"h",null,null,null,null,"枚",null,null,null,null,"A",null,null,null,null,null,null,"B開始",null,null,"A開始"]
[null,null,null,null,null,null,null,null,null,null,null,null,null,null,null,null,null,null,null,null,null,null,null,null,null,null,null,null,null,null,null,null,null,null,null,null,null,null,null,null,null,null,null,null,null,null,null,null,null,null,null,null,null,null,"Blu-ray複製"]
[null,null,null,null,null,null,null,null,null,null,null,null,null,null,null,null,null,null,null,null,null,null,null,null,null,null,null,null,null,null,null,null,null,null,null,null,null,null,null,null,null,null,null,null,null,null,null,null,null,"分",null,null,null,null,"枚",null,null,null,null,"B",null,null,null,null,null,null,"B〆",null,null,"A〆"]
[9,null,null,null,null,null,null,null,null,null,null,null,null,null,null,null,null,null,null,null,null,null,null,null,null,null,null,null,"⇒",null,null,null,null,null,null,null,null,null,null,null,null,null,null,null,null,null,null,"GB",null,null,null,null,null,null,"DVD複製",null,null,null,null,null,null,null,null,null,null,null,null,"GB"]
[null,null,null,null,null,null,null,null,null,null,null,null,null,null,null,null,null,null,null,null,null,null,null,null,null,null,null,null,null,null,null,null,null,null,null,null,null,null,null,null,null,null,null,null,null,null,null,null,null,"h",null,null,null,null,"枚",null,null,null,null,"A",null,null,null,null,null,null,"B開始",null,null,"A開始"]
[null,null,null,null,null,null,null,null,null,null,null,null,null,null,null,null,null,null,null,null,null,null,null,null,null,null,null,null,null,null,null,null,null,null,null,null,null,null,null,null,null,null,null,null,null,null,null,null,null,null,null,null,null,null,"Blu-ray複製"]
[null,null,null,null,null,null,null,null,null,null,null,null,null,null,null,null,null,null,null,null,null,null,null,null,null,null,null,null,null,null,null,null,null,null,null,null,null,null,null,null,null,null,null,null,null,null,null,null,null,"分",null,null,null,null,"枚",null,null,null,null,"B",null,null,null,null,null,null,"B〆",null,null,"A〆"]
[10,null,null,null,null,null,null,null,null,null,null,null,null,null,null,null,null,null,null,null,null,null,null,null,null,null,null,null,"⇒",null,null,null,null,null,null,null,null,null,null,null,null,null,null,null,null,null,null,"GB",null,null,null,null,null,null,"DVD複製",null,null,null,null,null,null,null,null,null,null,null,null,"GB"]
[null,null,null,null,null,null,null,null,null,null,null,null,null,null,null,null,null,null,null,null,null,null,null,null,null,null,null,null,null,null,null,null,null,null,null,null,null,null,null,null,null,null,null,null,null,null,null,null,null,"h",null,null,null,null,"枚",null,null,null,null,"A",null,null,null,null,null,null,"B開始",null,null,"A開始"]
[null,null,null,null,null,null,null,null,null,null,null,null,null,null,null,null,null,null,null,null,null,null,null,null,null,null,null,null,null,null,null,null,null,null,null,null,null,null,null,null,null,null,null,null,null,null,null,null,null,null,null,null,null,null,"Blu-ray複製"]
[null,null,null,null,null,null,null,null,null,null,null,null,null,null,null,null,null,null,null,null,null,null,null,null,null,null,null,null,null,null,null,null,null,null,null,null,null,null,null,null,null,null,null,null,null,null,null,null,null,"分",null,null,null,null,"枚",null,null,null,null,"B",null,null,null,null,null,null,"B〆",null,null,"A〆"]

{"sheet":"(8)納品用デジタルカット","index":9,"n_rows":64,"n_cols":71,"rows_kept":64,"cut":false,"hidden":false,"merged":[[63,52,63,71],[58,2,63,51],[61,56,62,59],[61,60,62,63],[61,64,62,67],[61,68,62,71],[55,66,56,71],[31,0,31,71],[44,0,44,71],[35,2,36,9],[58,0,63,1],[52,2,56,9],[54,60,54,65],[54,66,54,71],[50,2,51,9],[45,2,47,9],[48,2,49,9],[57,0,57,71],[45,0,56,1],[55,60,56,65],[32,10,34,43],[32,44,35,49],[32,50,35,51],[32,52,35,59],[24,2,25,9],[13,2,17,9],[18,0,18,71],[6,0,17,1],[37,2,38,9],[41,66,41,71],[39,2,43,9],[42,60,43,65],[42,66,43,71],[39,10,43,59],[26,2,30,9],[22,2,23,9],[32,0,43,1],[32,2,34,9],[19,0,30,1],[19,2,21,9],[41,60,41,65],[16,66,17,71],[9,2,10,9],[11,2,12,9],[15,66,15,71],[29,66,30,71],[15,60,15,65],[16,60,17,65],[26,10,30,59],[20,60,20,65],[21,60,22,61],[23,60,24,61],[21,62,22,65],[23,62,24,65],[21,66,22,68],[23,66,24,68],[20,66,20,68],[26,66,27,71],[6,2,8,9],[0,65,0,71],[1,30,3,35],[0,0,3,5],[0,6,3,29],[0,30,0,35],[0,36,1,41],[0,42,1,64],[4,0,4,5],[4,6,4,23],[4,24,4,29],[4,30,4,47],[4,48,4,53],[1,65,3,67],[1,68,3,68],[1,69,3,71],[2,36,3,41],[2,42,3,64],[5,0,5,71],[6,60,6,71],[4,54,4,69],[4,70,4,71],[7,60,7,65],[7,66,7,68],[33,69,33,71],[29,60,30,65],[13,10,17,59],[6,44,9,49],[6,50,9,51],[6,52,9,59],[10,44,12,49],[10,50,12,51],[10,52,12,59],[6,10,8,43],[9,10,10,43],[11,10,12,43],[28,60,28,65],[28,66,28,71],[19,52,22,59],[19,60,19,71],[22,10,23,43],[23,44,25,49],[23,50,25,51],[23,52,25,59],[24,10,25,43],[19,10,21,43],[19,44,22,49],[19,50,22,51],[45,52,48,59],[48,10,49,43],[49,44,51,49],[49,50,51,51],[49,52,51,59],[50,10,51,43],[47,69,48,71],[32,60,32,71],[35,10,36,43],[36,44,38,49],[36,50,38,51],[36,52,38,59],[37,10,38,43],[51,60,51,65],[51,66,51,71],[36,60,37,61],[36,62,37,65],[36,66,37,68],[46,60,46,65],[46,66,46,68],[49,60,50,61],[49,62,50,65],[49,66,50,68],[49,69,50,71],[52,10,56,59],[7,69,7,71],[12,60,12,65],[12,66,12,71],[8,69,9,71],[10,69,11,71],[13,60,14,65],[13,66,14,71],[20,69,20,71],[21,69,22,71],[23,69,24,71],[25,60,25,65],[25,66,25,71],[26,60,27,65],[45,10,47,43],[45,44,48,49],[45,50,48,51],[39,60,40,65],[39,66,40,71],[46,69,46,71],[45,60,45,71],[47,60,48,61],[47,62,48,65],[47,66,48,68],[58,52,58,71],[59,68,60,71],[59,64,60,67],[59,60,60,63],[59,56,60,59],[59,52,60,55],[61,52,62,55],[8,60,9,61],[8,62,9,65],[8,66,9,68],[10,60,11,61],[10,62,11,65],[10,66,11,68],[33,60,33,65],[33,66,33,68],[34,60,35,61],[34,62,35,65],[34,66,35,68],[52,60,53,65],[52,66,53,71],[34,69,35,71],[36,69,37,71],[38,60,38,65],[38,66,38,71]]}
[8,null,null,null,null,null,"納品用デジタルカット",null,null,null,null,null,null,null,null,null,null,null,null,null,null,null,null,null,null,null,null,null,null,null,"受付店",null,null,null,null,null,"受付番号",null,null,null,null,null,{"$f":"INDEX('(0)作業受付票'!$AQ$1,)","v":""},null,null,null,null,null,null,null,null,null,null,null,null,null,null,null,null,null,null,null,null,null,null,"受付枚数"]
[null,null,null,null,null,null,null,null,null,null,null,null,null,null,null,null,null,null,null,null,null,null,null,null,null,null,null,null,null,null,{"$f":"INDEX('(0)作業受付票'!$AE$2,)","v":"　"}]
[null,null,null,null,null,null,null,null,null,null,null,null,null,null,null,null,null,null,null,null,null,null,null,null,null,null,null,null,null,null,null,null,null,null,null,null,"受付日時",null,null,null,null,null,{"$f":"NOW()","v":"2021-06-01T11:04:59.900"}]
[]
["会社名",null,null,null,null,null,{"$f":"INDEX('(0)作業受付票'!$K$5,)","v":""},null,null,null,null,null,null,null,null,null,null,null,null,null,null,null,null,null,"番組名",null,null,null,null,null,{"$f":"INDEX('(0)作業受付票'!$K$9,)","v":""},null,null,null,null,null,null,null,null,null,null,null,null,null,null,null,null,null,"担当者名",null,null,null,null,null,{"$f":"INDEX('(0)作業受付票'!$AV$11,)","v":""},null,null,null,null,null,null,null,null,null,null,null,null,null,null,null,"様"]
[]
[1,null,"受けテープ・メディアの種類名",null,null,null,null,null,null,null,"",null,null,null,null,null,null,null,null,null,null,null,null,null,null,null,null,null,null,null,null,null,null,null,null,null,null,null,null,null,null,null,null,null,"受け\n消去確認",null,null,null,null,null,"□\n□\n□",null,"出庫(販売)\n持込(消去NG)\n持込(消去OK)",null,null,null,null,null,null,null,"▼　▼　弊社使用欄　▼　▼"]
[null,null,null,null,null,null,null,null,null,null,null,null,null,null,null,null,null,null,null,null,null,null,null,null,null,null,null,null,null,null,null,null,null,null,null,null,null,null,null,null,null,null,null,null,null,null,null,null,null,null,null,null,null,null,null,null,null,null,null,null,"作業料金(係数)",null,null,null,null,null,"B作業者",null,null,"A作業者"]
[null,null,null,null,null,null,null,null,null,null,null,null,null,null,null,null,null,null,null,null,null,null,null,null,null,null,null,null,null,null,null,null,null,null,null,null,null,null,null,null,null,null,null,null,null,null,null,null,null,null,null,null,null,null,null,null,null,null,null,null,"A",null,null,null,null,null,"B開始",null,null,"A開始"]
[null,null,"プロジェクト名"]
[null,null,null,null,null,null,null,null,null,null,null,null,null,null,null,null,null,null,null,null,null,null,null,null,null,null,null,null,null,null,null,null,null,null,null,null,null,null,null,null,null,null,null,null,"キューシート",null,null,null,null,null,"□\n□",null,"不要\n必要(1,100円)",null,null,null,null,null,null,null,"B",null,null,null,null,null,"B〆",null,null,"A〆"]
[null,null,"シーケンス名\n(ファイル名)"]
[null,null,null,null,null,null,null,null,null,null,null,null,null,null,null,null,null,null,null,null,null,null,null,null,null,null,null,null,null,null,null,null,null,null,null,null,null,null,null,null,null,null,null,null,null,null,null,null,null,null,null,null,null,null,null,null,null,null,null,null,"DVD複製",null,null,null,null,null,"Blu-ray複製"]
[null,null,"設定内容・備考\n貼付ラベル名\nTC生かし・引き直し\n音声 / のりしろ\nダウンコンバート形式\nTC焼付",null,null,null,null,null,null,null,null,null,null,null,null,null,null,null,null,null,null,null,null,null,null,null,null,null,null,null,null,null,null,null,null,null,null,null,null,null,null,null,null,null,null,null,null,null,null,null,null,null,null,null,null,null,null,null,null,null,"枚",null,null,null,null,null,"枚"]
[]
[null,null,null,null,null,null,null,null,null,null,null,null,null,null,null,null,null,null,null,null,null,null,null,null,null,null,null,null,null,null,null,null,null,null,null,null,null,null,null,null,null,null,null,null,null,null,null,null,null,null,null,null,null,null,null,null,null,null,null,null,"映像尺(分)",null,null,null,null,null,"キューシート作成"]
[null,null,null,null,null,null,null,null,null,null,null,null,null,null,null,null,null,null,null,null,null,null,null,null,null,null,null,null,null,null,null,null,null,null,null,null,null,null,null,null,null,null,null,null,null,null,null,null,null,null,null,null,null,null,null,null,null,null,null,null,"分",null,null,null,null,null,"枚"]
[]
[]
[2,null,"受けテープ・メディアの種類名",null,null,null,null,null,null,null,"",null,null,null,null,null,null,null,null,null,null,null,null,null,null,null,null,null,null,null,null,null,null,null,null,null,null,null,null,null,null,null,null,null,"受け\n消去確認",null,null,null,null,null,"□\n□\n□",null,"出庫(販売)\n持込(消去NG)\n持込(消去OK)",null,null,null,null,null,null,null,"▼　▼　弊社使用欄　▼　▼"]
[null,null,null,null,null,null,null,null,null,null,null,null,null,null,null,null,null,null,null,null,null,null,null,null,null,null,null,null,null,null,null,null,null,null,null,null,null,null,null,null,null,null,null,null,null,null,null,null,null,null,null,null,null,null,null,null,null,null,null,null,"作業料金(係数)",null,null,null,null,null,"B作業者",null,null,"A作業者"]
[null,null,null,null,null,null,null,null,null,null,null,null,null,null,null,null,null,null,null,null,null,null,null,null,null,null,null,null,null,null,null,null,null,null,null,null,null,null,null,null,null,null,null,null,null,null,null,null,null,null,null,null,null,null,null,null,null,null,null,null,"A",null,null,null,null,null,"B開始",null,null,"A開始"]
[null,null,"プロジェクト名"]
[null,null,null,null,null,null,null,null,null,null,null,null,null,null,null,null,null,null,null,null,null,null,null,null,null,null,null,null,null,null,null,null,null,null,null,null,null,null,null,null,null,null,null,null,"キューシート",null,null,null,null,null,"□\n□",null,"不要\n必要(1,100円)",null,null,null,null,null,null,null,"B",null,null,null,null,null,"B〆",null,null,"A〆"]
[null,null,"シーケンス名\n(ファイル名)"]
[null,null,null,null,null,null,null,null,null,null,null,null,null,null,null,null,null,null,null,null,null,null,null,null,null,null,null,null,null,null,null,null,null,null,null,null,null,null,null,null,null,null,null,null,null,null,null,null,null,null,null,null,null,null,null,null,null,null,null,null,"DVD複製",null,null,null,null,null,"Blu-ray複製"]
[null,null,"設定内容・備考\n貼付ラベル名\nTC生かし・引き直し\n音声 / のりしろ\nダウンコンバート形式\nTC焼付",null,null,null,null,null,null,null,null,null,null,null,null,null,null,null,null,null,null,null,null,null,null,null,null,null,null,null,null,null,null,null,null,null,null,null,null,null,null,null,null,null,null,null,null,null,null,null,null,null,null,null,null,null,null,null,null,null,"枚",null,null,null,null,null,"枚"]
[]
[null,null,null,null,null,null,null,null,null,null,null,null,null,null,null,null,null,null,null,null,null,null,null,null,null,null,null,null,null,null,null,null,null,null,null,null,null,null,null,null,null,null,null,null,null,null,null,null,null,null,null,null,null,null,null,null,null,null,null,null,"映像尺(分)",null,null,null,null,null,"キューシート作成"]
[null,null,null,null,null,null,null,null,null,null,null,null,null,null,null,null,null,null,null,null,null,null,null,null,null,null,null,null,null,null,null,null,null,null,null,null,null,null,null,null,null,null,null,null,null,null,null,null,null,null,null,null,null,null,null,null,null,null,null,null,"分",null,null,null,null,null,"枚"]
[]
[]
[3,null,"受けテープ・メディアの種類名",null,null,null,null,null,null,null,"",null,null,null,null,null,null,null,null,null,null,null,null,null,null,null,null,null,null,null,null,null,null,null,null,null,null,null,null,null,null,null,null,null,"受け\n消去確認",null,null,null,null,null,"□\n□\n□",null,"出庫(販売)\n持込(消去NG)\n持込(消去OK)",null,null,null,null,null,null,null,"▼　▼　弊社使用欄　▼　▼"]
[null,null,null,null,null,null,null,null,null,null,null,null,null,null,null,null,null,null,null,null,null,null,null,null,null,null,null,null,null,null,null,null,null,null,null,null,null,null,null,null,null,null,null,null,null,null,null,null,null,null,null,null,null,null,null,null,null,null,null,null,"作業料金(係数)",null,null,null,null,null,"B作業者",null,null,"A作業者"]
[null,null,null,null,null,null,null,null,null,null,null,null,null,null,null,null,null,null,null,null,null,null,null,null,null,null,null,null,null,null,null,null,null,null,null,null,null,null,null,null,null,null,null,null,null,null,null,null,null,null,null,null,null,null,null,null,null,null,null,null,"A",null,null,null,null,null,"B開始",null,null,"A開始"]
[null,null,"プロジェクト名"]
[null,null,null,null,null,null,null,null,null,null,null,null,null,null,null,null,null,null,null,null,null,null,null,null,null,null,null,null,null,null,null,null,null,null,null,null,null,null,null,null,null,null,null,null,"キューシート",null,null,null,null,null,"□\n□",null,"不要\n必要(1,100円)",null,null,null,null,null,null,null,"B",null,null,null,null,null,"B〆",null,null,"A〆"]
[null,null,"シーケンス名\n(ファイル名)"]
[null,null,null,null,null,null,null,null,null,null,null,null,null,null,null,null,null,null,null,null,null,null,null,null,null,null,null,null,null,null,null,null,null,null,null,null,null,null,null,null,null,null,null,null,null,null,null,null,null,null,null,null,null,null,null,null,null,null,null,null,"DVD複製",null,null,null,null,null,"Blu-ray複製"]
[null,null,"設定内容・備考\n貼付ラベル名\nTC生かし・引き直し\n音声 / のりしろ\nダウンコンバート形式\nTC焼付",null,null,null,null,null,null,null,null,null,null,null,null,null,null,null,null,null,null,null,null,null,null,null,null,null,null,null,null,null,null,null,null,null,null,null,null,null,null,null,null,null,null,null,null,null,null,null,null,null,null,null,null,null,null,null,null,null,"枚",null,null,null,null,null,"枚"]
[]
[null,null,null,null,null,null,null,null,null,null,null,null,null,null,null,null,null,null,null,null,null,null,null,null,null,null,null,null,null,null,null,null,null,null,null,null,null,null,null,null,null,null,null,null,null,null,null,null,null,null,null,null,null,null,null,null,null,null,null,null,"映像尺(分)",null,null,null,null,null,"キューシート作成"]
[null,null,null,null,null,null,null,null,null,null,null,null,null,null,null,null,null,null,null,null,null,null,null,null,null,null,null,null,null,null,null,null,null,null,null,null,null,null,null,null,null,null,null,null,null,null,null,null,null,null,null,null,null,null,null,null,null,null,null,null,"分",null,null,null,null,null,"枚"]
[]
[]
[4,null,"受けテープ・メディアの種類名",null,null,null,null,null,null,null,"",null,null,null,null,null,null,null,null,null,null,null,null,null,null,null,null,null,null,null,null,null,null,null,null,null,null,null,null,null,null,null,null,null,"受け\n消去確認",null,null,null,null,null,"□\n□\n□",null,"出庫(販売)\n持込(消去NG)\n持込(消去OK)",null,null,null,null,null,null,null,"▼　▼　弊社使用欄　▼　▼"]
[null,null,null,null,null,null,null,null,null,null,null,null,null,null,null,null,null,null,null,null,null,null,null,null,null,null,null,null,null,null,null,null,null,null,null,null,null,null,null,null,null,null,null,null,null,null,null,null,null,null,null,null,null,null,null,null,null,null,null,null,"作業料金(係数)",null,null,null,null,null,"B作業者",null,null,"A作業者"]
[null,null,null,null,null,null,null,null,null,null,null,null,null,null,null,null,null,null,null,null,null,null,null,null,null,null,null,null,null,null,null,null,null,null,null,null,null,null,null,null,null,null,null,null,null,null,null,null,null,null,null,null,null,null,null,null,null,null,null,null,"A",null,null,null,null,null,"B開始",null,null,"A開始"]
[null,null,"プロジェクト名"]
[null,null,null,null,null,null,null,null,null,null,null,null,null,null,null,null,null,null,null,null,null,null,null,null,null,null,null,null,null,null,null,null,null,null,null,null,null,null,null,null,null,null,null,null,"キューシート",null,null,null,null,null,"□\n□",null,"不要\n必要(1,100円)",null,null,null,null,null,null,null,"B",null,null,null,null,null,"B〆",null,null,"A〆"]
[null,null,"シーケンス名\n(ファイル名)"]
[null,null,null,null,null,null,null,null,null,null,null,null,null,null,null,null,null,null,null,null,null,null,null,null,null,null,null,null,null,null,null,null,null,null,null,null,null,null,null,null,null,null,null,null,null,null,null,null,null,null,null,null,null,null,null,null,null,null,null,null,"DVD複製",null,null,null,null,null,"Blu-ray複製"]
[null,null,"設定内容・備考\n貼付ラベル名\nTC生かし・引き直し\n音声 / のりしろ\nダウンコンバート形式\nTC焼付",null,null,null,null,null,null,null,null,null,null,null,null,null,null,null,null,null,null,null,null,null,null,null,null,null,null,null,null,null,null,null,null,null,null,null,null,null,null,null,null,null,null,null,null,null,null,null,null,null,null,null,null,null,null,null,null,null,"枚",null,null,null,null,null,"枚"]
[]
[null,null,null,null,null,null,null,null,null,null,null,null,null,null,null,null,null,null,null,null,null,null,null,null,null,null,null,null,null,null,null,null,null,null,null,null,null,null,null,null,null,null,null,null,null,null,null,null,null,null,null,null,null,null,null,null,null,null,null,null,"映像尺(分)",null,null,null,null,null,"キューシート作成"]
[null,null,null,null,null,null,null,null,null,null,null,null,null,null,null,null,null,null,null,null,null,null,null,null,null,null,null,null,null,null,null,null,null,null,null,null,null,null,null,null,null,null,null,null,null,null,null,null,null,null,null,null,null,null,null,null,null,null,null,null,"分",null,null,null,null,null,"枚"]
[]
[]
["備考",null,null,null,null,null,null,null,null,null,null,null,null,null,null,null,null,null,null,null,null,null,null,null,null,null,null,null,null,null,null,null,null,null,null,null,null,null,null,null,null,null,null,null,null,null,null,null,null,null,null,null,"作業料金【税込】"]
[null,null,null,null,null,null,null,null,null,null,null,null,null,null,null,null,null,null,null,null,null,null,null,null,null,null,null,null,null,null,null,null,null,null,null,null,null,null,null,null,null,null,null,null,null,null,null,null,null,null,null,null,"実尺",null,null,null,"～10分",null,null,null,"～20分",null,null,null,"～30分",null,null,null,"以降\n10分ごと"]
[]
[null,null,null,null,null,null,null,null,null,null,null,null,null,null,null,null,null,null,null,null,null,null,null,null,null,null,null,null,null,null,null,null,null,null,null,null,null,null,null,null,null,null,null,null,null,null,null,null,null,null,null,null,"料金",null,null,null,"1,100円\n(A10)",null,null,null,"2,200円\n(A20)",null,null,null,"3,300円\n(A30)",null,null,null,"＋1,100円\n(A10)"]
[]
[null,null,null,null,null,null,null,null,null,null,null,null,null,null,null,null,null,null,null,null,null,null,null,null,null,null,null,null,null,null,null,null,null,null,null,null,null,null,null,null,null,null,null,null,null,null,null,null,null,null,null,null,"変換が必要な場合は、変換した素材尺に合わせて【B】を計上する"]

{"sheet":"(9)オプション作業","index":10,"n_rows":41,"n_cols":71,"rows_kept":41,"cut":false,"hidden":false,"merged":[[29,69,29,71],[21,0,21,11],[21,12,21,23],[21,24,21,35],[40,0,55,1],[40,2,55,71],[39,0,39,71],[32,0,32,71],[31,69,31,71],[37,0,38,6],[37,7,38,13],[37,14,38,20],[37,21,38,27],[35,69,35,71],[36,36,36,37],[36,38,36,42],[36,69,36,71],[34,36,34,60],[30,46,31,60],[31,36,31,45],[34,0,34,35],[37,28,38,35],[35,36,35,37],[38,36,38,37],[10,0,10,71],[12,0,12,5],[25,0,25,35],[26,0,26,35],[25,61,26,66],[25,67,26,68],[25,69,26,71],[12,46,12,60],[12,6,12,35],[19,61,19,68],[19,69,19,71],[19,0,19,35],[20,61,21,62],[20,63,21,68],[15,6,15,12],[15,13,15,19],[20,0,20,11],[20,12,20,23],[20,24,20,35],[13,6,13,12],[13,13,13,19],[13,20,13,26],[21,69,21,71],[15,20,15,26],[0,42,1,64],[0,65,0,71],[5,0,5,71],[2,36,3,41],[2,42,3,64],[4,0,4,5],[4,6,4,23],[4,24,4,29],[4,30,4,47],[4,48,4,53],[0,0,3,5],[0,6,3,29],[0,30,0,35],[0,36,1,41],[1,30,3,35],[1,65,3,67],[1,68,3,68],[1,69,3,71],[4,54,4,69],[4,70,4,71],[8,36,8,45],[8,46,9,60],[8,61,9,62],[8,63,9,68],[8,69,8,71],[9,0,9,17],[9,18,9,35],[9,36,9,45],[9,69,9,71],[38,38,38,42],[38,69,38,71],[37,61,38,62],[37,63,38,68],[37,36,37,37],[37,38,37,42],[37,43,38,60],[37,69,37,71],[35,38,35,42],[35,43,36,60],[35,61,36,62],[35,63,36,68],[35,0,36,6],[35,7,36,13],[35,14,36,20],[35,21,36,27],[35,28,36,35],[15,0,16,5],[15,69,16,71],[15,46,16,60],[15,61,16,62],[15,63,16,68],[15,36,15,45],[30,61,31,62],[30,63,31,68],[30,69,30,71],[25,36,26,60],[20,36,20,45],[20,46,21,60],[19,36,19,45],[34,61,34,68],[34,69,34,71],[16,36,16,45],[17,0,17,71],[19,46,19,60],[22,0,22,71],[6,0,6,35],[6,36,6,71],[11,0,11,35],[11,36,11,71],[18,0,18,35],[18,36,18,71],[23,0,23,35],[23,36,23,71],[28,0,28,35],[28,36,28,71],[13,0,14,5],[12,69,12,71],[13,69,14,71],[12,61,12,68],[13,61,14,62],[13,63,14,68],[20,69,20,71],[7,0,7,35],[7,36,7,45],[7,46,7,60],[7,61,7,68],[7,69,7,71],[8,0,8,17],[8,18,8,35],[13,46,14,60],[12,36,12,45],[13,27,13,35],[14,6,14,12],[14,13,14,19],[14,20,14,26],[14,27,14,35],[33,0,33,35],[33,36,33,71],[30,36,30,45],[27,0,27,71],[15,27,15,35],[16,6,16,12],[16,13,16,19],[16,20,16,26],[16,27,16,35],[24,36,24,60],[24,0,24,35],[24,61,24,68],[24,69,24,71],[29,0,29,35],[29,36,29,45],[29,46,29,60],[29,61,29,68],[30,0,30,11],[30,12,30,23],[30,24,30,35],[31,0,31,11],[31,12,31,23],[31,24,31,35],[21,36,21,45],[13,36,13,45],[14,36,14,45]]}
[9,null,null,null,null,null,"オプション作業",null,null,null,null,null,null,null,null,null,null,null,null,null,null,null,null,null,null,null,null,null,null,null,"受付店",null,null,null,null,null,"受付番号",null,null,null,null,null,{"$f":"INDEX('(0)作業受付票'!$AQ$1,)","v":""},null,null,null,null,null,null,null,null,null,null,null,null,null,null,null,null,null,null,null,null,null,null,"受付枚数"]
[null,null,null,null,null,null,null,null,null,null,null,null,null,null,null,null,null,null,null,null,null,null,null,null,null,null,null,null,null,null,{"$f":"INDEX('(0)作業受付票'!$AE$2,)","v":"　"}]
[null,null,null,null,null,null,null,null,null,null,null,null,null,null,null,null,null,null,null,null,null,null,null,null,null,null,null,null,null,null,null,null,null,null,null,null,"受付日時",null,null,null,null,null,{"$f":"NOW()","v":"2021-06-01T11:04:59.900"}]
[]
["会社名",null,null,null,null,null,{"$f":"INDEX('(0)作業受付票'!$K$5,)","v":""},null,null,null,null,null,null,null,null,null,null,null,null,null,null,null,null,null,"番組名",null,null,null,null,null,{"$f":"INDEX('(0)作業受付票'!$K$9,)","v":""},null,null,null,null,null,null,null,null,null,null,null,null,null,null,null,null,null,"担当者名",null,null,null,null,null,{"$f":"INDEX('(0)作業受付票'!$AV$11,)","v":""},null,null,null,null,null,null,null,null,null,null,null,null,null,null,null,"様"]
[]
["段積み作業 ／ 指示内容は下記備考欄にご記入ください"]
["料金区分 (総尺計算) 【税込】",null,null,null,null,null,null,null,null,null,null,null,null,null,null,null,null,null,null,null,null,null,null,null,null,null,null,null,null,null,null,null,null,null,null,null,"合計時間数",null,null,null,null,null,null,null,null,null,"備考／保存先HDD",null,null,null,null,null,null,null,null,null,null,null,null,null,null,"作業料金(係数)",null,null,null,null,null,null,null,"作業者"]
["20hまで",null,null,null,null,null,null,null,null,null,null,null,null,null,null,null,null,null,"以降10時間ごと",null,null,null,null,null,null,null,null,null,null,null,null,null,null,null,null,null,null,null,null,null,null,null,null,null,null,null,null,null,null,null,null,null,null,null,null,null,null,null,null,null,null,"A"]
["\\5,500 (A50)",null,null,null,null,null,null,null,null,null,null,null,null,null,null,null,null,null,"\\1,100 (＋A10)",null,null,null,null,null,null,null,null,null,null,null,null,null,null,null,null,null,"h"]
[]
["抜き作業 ／ 指示内容は下記備考欄にご記入ください"]
["素材区分",null,null,null,null,null,"抜き箇所及び料金 【税込】",null,null,null,null,null,null,null,null,null,null,null,null,null,null,null,null,null,null,null,null,null,null,null,null,null,null,null,null,null,"合計抜き箇所",null,null,null,null,null,null,null,null,null,"備考／保存先HDD",null,null,null,null,null,null,null,null,null,null,null,null,null,null,"作業料金(係数)",null,null,null,null,null,null,null,"作業者"]
["TCあり",null,null,null,null,null,"1～2",null,null,null,null,null,null,"3～5",null,null,null,null,null,null,"6～10",null,null,null,null,null,null,"以降5箇所毎",null,null,null,null,null,null,null,null,"TCあり",null,null,null,null,null,null,null,null,null,null,null,null,null,null,null,null,null,null,null,null,null,null,null,null,"A"]
[null,null,null,null,null,null,"サービス",null,null,null,null,null,null,"\\1,100 (A10)",null,null,null,null,null,null,"\\2,200 (A20)",null,null,null,null,null,null,"\\1,100 (＋A10)",null,null,null,null,null,null,null,null,"箇所"]
["TCなし",null,null,null,null,null,"1～2",null,null,null,null,null,null,"3～5",null,null,null,null,null,null,"6～10",null,null,null,null,null,null,"以降5箇所毎",null,null,null,null,null,null,null,null,"TCなし",null,null,null,null,null,null,null,null,null,null,null,null,null,null,null,null,null,null,null,null,null,null,null,null,"A"]
[null,null,null,null,null,null,"サービス",null,null,null,null,null,null,"\\2,200 (A20)",null,null,null,null,null,null,"\\3,300 (A30)",null,null,null,null,null,null,"\\1,100 (＋A10)",null,null,null,null,null,null,null,null,"箇所"]
[]
["静止画書き出し作業 ／ 指示内容は下記備考欄にご記入ください"]
["料金区分 (枚数) 【税込】",null,null,null,null,null,null,null,null,null,null,null,null,null,null,null,null,null,null,null,null,null,null,null,null,null,null,null,null,null,null,null,null,null,null,null,"合計枚数",null,null,null,null,null,null,null,null,null,"備考／保存先HDD",null,null,null,null,null,null,null,null,null,null,null,null,null,null,"作業料金(係数)",null,null,null,null,null,null,null,"作業者"]
["1～5",null,null,null,null,null,null,null,null,null,null,null,"6～10",null,null,null,null,null,null,null,null,null,null,null,"以降5枚ごと",null,null,null,null,null,null,null,null,null,null,null,null,null,null,null,null,null,null,null,null,null,null,null,null,null,null,null,null,null,null,null,null,null,null,null,null,"A"]
["\\2,200 (A20)",null,null,null,null,null,null,null,null,null,null,null,"\\3,300 (A30)",null,null,null,null,null,null,null,null,null,null,null,"\\1,100 (＋A10)",null,null,null,null,null,null,null,null,null,null,null,"箇所"]
[]
["記録表(Qシート)作成作業 ／ 指示内容は下記備考欄にご記入ください"]
["料金区分 (枚数) 【税込】",null,null,null,null,null,null,null,null,null,null,null,null,null,null,null,null,null,null,null,null,null,null,null,null,null,null,null,null,null,null,null,null,null,null,null,"備考",null,null,null,null,null,null,null,null,null,null,null,null,null,null,null,null,null,null,null,null,null,null,null,null,"作業料金(係数)",null,null,null,null,null,null,null,"作業者"]
["作成",null,null,null,null,null,null,null,null,null,null,null,null,null,null,null,null,null,null,null,null,null,null,null,null,null,null,null,null,null,null,null,null,null,null,null,null,null,null,null,null,null,null,null,null,null,null,null,null,null,null,null,null,null,null,null,null,null,null,null,null,"作成",null,null,null,null,null,"枚"]
["\\1,100 (A10)"]
[]
["チャプター ・ メニュー作成作業 ／ 指示内容は下記備考欄にご記入ください"]
["料金区分 (実質作業時間) 【税込】",null,null,null,null,null,null,null,null,null,null,null,null,null,null,null,null,null,null,null,null,null,null,null,null,null,null,null,null,null,null,null,null,null,null,null,"作業時間数",null,null,null,null,null,null,null,null,null,"備考／保存先HDD",null,null,null,null,null,null,null,null,null,null,null,null,null,null,"作業料金(係数)",null,null,null,null,null,null,null,"作業者"]
["10分まで",null,null,null,null,null,null,null,null,null,null,null,"20分まで",null,null,null,null,null,null,null,null,null,null,null,"以降10分ごと",null,null,null,null,null,null,null,null,null,null,null,null,null,null,null,null,null,null,null,null,null,null,null,null,null,null,null,null,null,null,null,null,null,null,null,null,"A"]
["\\1,100 (A10)",null,null,null,null,null,null,null,null,null,null,null,"\\2,200 (A20)",null,null,null,null,null,null,null,null,null,null,null,"\\1,100 (＋A10)",null,null,null,null,null,null,null,null,null,null,null,"分"]
[]
["ダウンロード ・ アップロード ／ 指示内容は下記備考欄にご記入ください"]
["料金区分 (容量計算) 【税込】",null,null,null,null,null,null,null,null,null,null,null,null,null,null,null,null,null,null,null,null,null,null,null,null,null,null,null,null,null,null,null,null,null,null,null,"転送容量など",null,null,null,null,null,null,null,null,null,null,null,null,null,null,null,null,null,null,null,null,null,null,null,null,"作業料金(係数)",null,null,null,null,null,null,null,"作業者"]
["10GBまで",null,null,null,null,null,null,"11～20GB",null,null,null,null,null,null,"21～30GB",null,null,null,null,null,null,"31～40GB",null,null,null,null,null,null,"以降10GBごと",null,null,null,null,null,null,null,"□",null,"アップロード",null,null,null,null,null,null,null,null,null,null,null,null,null,null,null,null,null,null,null,null,null,null,"B"]
[null,null,null,null,null,null,null,null,null,null,null,null,null,null,null,null,null,null,null,null,null,null,null,null,null,null,null,null,null,null,null,null,null,null,null,null,"□",null,"ダウンロード"]
["サービス",null,null,null,null,null,null,"\\900 (B30)",null,null,null,null,null,null,"\\1,700 (B60)",null,null,null,null,null,null,"\\2,500 (B90)",null,null,null,null,null,null,"\\800 (+B30)",null,null,null,null,null,null,null,"□",null,"アップロード",null,null,null,null,null,null,null,null,null,null,null,null,null,null,null,null,null,null,null,null,null,null,"B"]
[null,null,null,null,null,null,null,null,null,null,null,null,null,null,null,null,null,null,null,null,null,null,null,null,null,null,null,null,null,null,null,null,null,null,null,null,"□",null,"ダウンロード"]
[]
["備考"]

{"sheet":"(10)その他","index":11,"n_rows":11,"n_cols":71,"rows_kept":11,"cut":false,"hidden":false,"merged":[[4,54,4,69],[4,70,4,71],[0,0,3,5],[5,0,5,71],[11,0,60,71],[10,0,10,35],[10,36,10,71],[8,69,8,71],[6,58,6,68],[7,60,8,68],[6,0,8,57],[7,69,7,71],[7,58,8,59],[9,0,9,71],[6,69,6,71],[0,6,3,29],[0,30,0,35],[0,36,1,41],[0,42,1,64],[0,65,0,71],[1,30,3,35],[1,65,3,67],[1,68,3,68],[1,69,3,71],[2,36,3,41],[2,42,3,64],[4,0,4,5],[4,6,4,23],[4,24,4,29],[4,30,4,47],[4,48,4,53]]}
[10,null,null,null,null,null,"その他",null,null,null,null,null,null,null,null,null,null,null,null,null,null,null,null,null,null,null,null,null,null,null,"受付店",null,null,null,null,null,"受付番号",null,null,null,null,null,{"$f":"INDEX('(0)作業受付票'!$AQ$1,)","v":""},null,null,null,null,null,null,null,null,null,null,null,null,null,null,null,null,null,null,null,null,null,null,"受付枚数"]
[null,null,null,null,null,null,null,null,null,null,null,null,null,null,null,null,null,null,null,null,null,null,null,null,null,null,null,null,null,null,{"$f":"INDEX('(0)作業受付票'!$AE$2,)","v":"　"}]
[null,null,null,null,null,null,null,null,null,null,null,null,null,null,null,null,null,null,null,null,null,null,null,null,null,null,null,null,null,null,null,null,null,null,null,null,"受付日時",null,null,null,null,null,{"$f":"NOW()","v":"2021-06-01T11:04:59.900"}]
[]
["会社名",null,null,null,null,null,{"$f":"INDEX('(0)作業受付票'!$K$5,)","v":""},null,null,null,null,null,null,null,null,null,null,null,null,null,null,null,null,null,"番組名",null,null,null,null,null,{"$f":"INDEX('(0)作業受付票'!$K$9,)","v":""},null,null,null,null,null,null,null,null,null,null,null,null,null,null,null,null,null,"担当者名",null,null,null,null,null,{"$f":"INDEX('(0)作業受付票'!$AV$11,)","v":""},null,null,null,null,null,null,null,null,null,null,null,null,null,null,null,"様"]
[]
["Webサイトに記載がない作業についても、お気軽にお問い合わせください！",null,null,null,null,null,null,null,null,null,null,null,null,null,null,null,null,null,null,null,null,null,null,null,null,null,null,null,null,null,null,null,null,null,null,null,null,null,null,null,null,null,null,null,null,null,null,null,null,null,null,null,null,null,null,null,null,null,"作業料金(係数)",null,null,null,null,null,null,null,null,null,null,"作業者"]
[null,null,null,null,null,null,null,null,null,null,null,null,null,null,null,null,null,null,null,null,null,null,null,null,null,null,null,null,null,null,null,null,null,null,null,null,null,null,null,null,null,null,null,null,null,null,null,null,null,null,null,null,null,null,null,null,null,null,"A\n\nB"]
[]
[]
["指示内容をご記入ください"]

{"sheet":"(11)アーカイブ","index":12,"n_rows":51,"n_cols":71,"rows_kept":51,"cut":false,"hidden":false,"merged":[[46,69,47,71],[49,0,52,1],[49,67,49,68],[49,69,49,71],[50,67,52,68],[50,69,51,71],[52,69,52,71],[48,69,48,71],[45,0,48,1],[46,59,48,60],[46,61,48,66],[49,36,52,58],[49,59,49,60],[49,61,49,66],[50,59,52,60],[45,67,45,68],[45,69,45,71],[50,61,52,66],[49,2,52,7],[49,8,52,27],[49,28,52,29],[49,30,52,35],[41,59,41,60],[41,61,41,66],[42,59,44,60],[42,61,44,66],[45,59,45,60],[45,61,45,66],[41,0,44,1],[37,67,37,68],[45,36,48,58],[45,2,48,7],[45,8,48,27],[45,28,48,29],[45,30,48,35],[46,67,48,68],[37,69,37,71],[38,67,40,68],[38,69,39,71],[40,69,40,71],[37,0,40,1],[41,69,41,71],[42,67,44,68],[42,69,43,71],[44,69,44,71],[37,2,40,7],[37,8,40,27],[37,28,40,29],[37,30,40,35],[41,2,44,7],[37,36,40,58],[37,59,37,60],[37,61,37,66],[38,59,40,60],[38,61,40,66],[41,36,44,58],[41,8,44,27],[41,28,44,29],[41,30,44,35],[41,67,41,68],[33,0,36,1],[33,67,33,68],[33,69,33,71],[34,67,36,68],[34,69,35,71],[36,69,36,71],[33,2,36,7],[33,8,36,27],[33,28,36,29],[33,30,36,35],[33,36,36,58],[33,59,33,60],[33,61,33,66],[34,59,36,60],[34,61,36,66],[25,36,28,58],[29,36,32,58],[25,69,25,71],[26,67,28,68],[26,69,27,71],[28,69,28,71],[29,67,29,68],[29,69,29,71],[25,67,25,68],[25,59,25,60],[25,61,25,66],[26,59,28,60],[26,61,28,66],[29,59,29,60],[29,61,29,66],[30,67,32,68],[30,69,31,71],[32,69,32,71],[30,59,32,60],[30,61,32,66],[21,0,24,1],[21,2,24,7],[21,8,24,27],[21,28,24,29],[21,30,24,35],[29,0,32,1],[25,0,28,1],[25,2,28,7],[25,8,28,27],[25,28,28,29],[25,30,28,35],[29,2,32,7],[29,8,32,27],[29,28,32,29],[29,30,32,35],[21,67,21,68],[21,69,21,71],[22,67,24,68],[22,69,23,71],[24,69,24,71],[21,36,24,58],[21,59,21,60],[21,61,21,66],[22,59,24,60],[22,61,24,66],[17,0,20,1],[17,67,17,68],[17,36,20,58],[17,59,17,60],[17,61,17,66],[18,59,20,60],[18,61,20,66],[17,69,17,71],[18,67,20,68],[18,69,19,71],[20,69,20,71],[17,2,20,7],[17,8,20,27],[17,28,20,29],[17,30,20,35],[13,61,13,66],[14,61,16,66],[9,61,9,71],[10,61,11,71],[12,61,12,68],[13,59,13,60],[9,36,10,60],[11,36,12,60],[12,69,12,71],[13,67,13,68],[13,69,13,71],[14,67,16,68],[14,69,15,71],[13,36,16,58],[14,59,16,60],[16,69,16,71],[7,0,7,1],[7,2,7,8],[7,40,7,41],[7,42,7,48],[7,49,7,50],[7,51,7,56],[8,0,8,1],[8,2,8,8],[13,0,16,1],[9,0,12,1],[9,2,9,7],[9,8,9,27],[9,28,12,29],[9,30,9,35],[10,2,12,7],[10,8,12,27],[10,30,12,35],[13,2,16,7],[13,8,16,27],[13,28,16,29],[13,30,16,35],[5,49,5,56],[5,57,5,71],[6,0,6,1],[6,2,6,8],[6,9,8,32],[6,33,7,34],[6,35,7,39],[6,40,6,41],[6,42,6,48],[6,49,6,50],[5,0,5,7],[5,8,5,12],[5,13,5,18],[5,19,5,32],[5,33,5,39],[5,40,5,48],[8,33,8,34],[8,35,8,39],[8,40,8,41],[8,42,8,48],[8,49,8,50],[8,51,8,56],[6,51,6,56],[6,57,8,71],[4,0,4,5],[4,6,4,23],[4,24,4,29],[4,30,4,47],[4,48,4,53],[0,0,3,5],[0,6,3,29],[0,30,0,35],[0,36,1,41],[0,42,1,64],[0,65,0,71],[1,30,3,35],[1,65,3,67],[1,68,3,68],[1,69,3,71],[4,54,4,69],[4,70,4,71],[2,36,3,41],[2,42,3,64]]}
[11,null,null,null,null,null,"アーカイブ",null,null,null,null,null,null,null,null,null,null,null,null,null,null,null,null,null,null,null,null,null,null,null,"受付店",null,null,null,null,null,"受付番号",null,null,null,null,null,{"$f":"INDEX('(0)作業受付票'!$AQ$1,)","v":""},null,null,null,null,null,null,null,null,null,null,null,null,null,null,null,null,null,null,null,null,null,null,"受付枚数"]
[null,null,null,null,null,null,null,null,null,null,null,null,null,null,null,null,null,null,null,null,null,null,null,null,null,null,null,null,null,null,{"$f":"INDEX('(0)作業受付票'!$AE$2,)","v":"　"}]
[null,null,null,null,null,null,null,null,null,null,null,null,null,null,null,null,null,null,null,null,null,null,null,null,null,null,null,null,null,null,null,null,null,null,null,null,"受付日時",null,null,null,null,null,{"$f":"NOW()","v":"2021-06-01T11:04:59.900"}]
[]
["会社名",null,null,null,null,null,{"$f":"INDEX('(0)作業受付票'!$K$5,)","v":""},null,null,null,null,null,null,null,null,null,null,null,null,null,null,null,null,null,"番組名",null,null,null,null,null,{"$f":"INDEX('(0)作業受付票'!$K$9,)","v":""},null,null,null,null,null,null,null,null,null,null,null,null,null,null,null,null,null,"担当者名",null,null,null,null,null,{"$f":"INDEX('(0)作業受付票'!$AV$11,)","v":""},null,null,null,null,null,null,null,null,null,null,null,null,null,null,null,"様"]
["タイムコード",null,null,null,null,null,null,null,null,null,null,null,null,"設定",null,null,null,null,null,"その他設定・形式・ch数など",null,null,null,null,null,null,null,null,null,null,null,null,null,"メディア\nバックアップ",null,null,null,null,null,null,"受けメディア・テープ",null,null,null,null,null,null,null,null,"TOCレンタル\nメディアの処理",null,null,null,null,null,null,null,"備考・お預かり品"]
[null,null,"生かし",null,null,null,null,null,null,null,null,null,null,null,null,null,null,null,null,null,null,null,null,null,null,null,null,null,null,null,null,null,null,null,null,"取る\n(推奨)",null,null,null,null,null,null,"出庫(販売)",null,null,null,null,null,null,null,null,"作業後返却"]
[null,null,"引き直し(DF)",null,null,null,null,null,null,null,null,null,null,null,null,null,null,null,null,null,null,null,null,null,null,null,null,null,null,null,null,null,null,null,null,null,null,null,null,null,null,null,"消去NG(持込)",null,null,null,null,null,null,null,null,"レンタル継続"]
[null,null,"引き直し(NDF)",null,null,null,null,null,null,null,null,null,null,null,null,null,null,null,null,null,null,null,null,null,null,null,null,null,null,null,null,null,null,null,null,"不要",null,null,null,null,null,null,"消去OK(持込)",null,null,null,null,null,null,null,null,"不明"]
[null,null,"【出し】",null,null,null,null,null,"【出し】",null,null,null,null,null,null,null,null,null,null,null,null,null,null,null,null,null,null,null,"⇒",null,"【受け】",null,null,null,null,null,"備考",null,null,null,null,null,null,null,null,null,null,null,null,null,null,null,null,null,null,null,null,null,null,null,null,"▼　弊社使用欄　▼"]
[null,null,"メディア・\nテープの種類",null,null,null,null,null,"ラベル名 など",null,null,null,null,null,null,null,null,null,null,null,null,null,null,null,null,null,null,null,null,null,"メディア・\nテープの種類",null,null,null,null,null,null,null,null,null,null,null,null,null,null,null,null,null,null,null,null,null,null,null,null,null,null,null,null,null,null,"メディアバックアップ(係数)"]
[null,null,null,null,null,null,null,null,null,null,null,null,null,null,null,null,null,null,null,null,null,null,null,null,null,null,null,null,null,null,null,null,null,null,null,null,"(MBU実施時の実容量)"]
[null,null,null,null,null,null,null,null,null,null,null,null,null,null,null,null,null,null,null,null,null,null,null,null,null,null,null,null,null,null,null,null,null,null,null,null,null,null,null,null,null,null,null,null,null,null,null,null,null,null,null,null,null,null,null,null,null,null,null,null,null,"作業料金(係数)",null,null,null,null,null,null,null,"作業者"]
[1,null,null,null,null,null,null,null,null,null,null,null,null,null,null,null,null,null,null,null,null,null,null,null,null,null,null,null,"⇒",null,null,null,null,null,null,null,null,null,null,null,null,null,null,null,null,null,null,null,null,null,null,null,null,null,null,null,null,null,null,"GB",null,null,null,null,null,null,null,"GB"]
[null,null,null,null,null,null,null,null,null,null,null,null,null,null,null,null,null,null,null,null,null,null,null,null,null,null,null,null,null,null,null,null,null,null,null,null,null,null,null,null,null,null,null,null,null,null,null,null,null,null,null,null,null,null,null,null,null,null,null,null,null,null,null,null,null,null,null,"分"]
[]
[]
[2,null,null,null,null,null,null,null,null,null,null,null,null,null,null,null,null,null,null,null,null,null,null,null,null,null,null,null,"⇒",null,null,null,null,null,null,null,null,null,null,null,null,null,null,null,null,null,null,null,null,null,null,null,null,null,null,null,null,null,null,"GB",null,null,null,null,null,null,null,"GB"]
[null,null,null,null,null,null,null,null,null,null,null,null,null,null,null,null,null,null,null,null,null,null,null,null,null,null,null,null,null,null,null,null,null,null,null,null,null,null,null,null,null,null,null,null,null,null,null,null,null,null,null,null,null,null,null,null,null,null,null,null,null,null,null,null,null,null,null,"分"]
[]
[]
[3,null,null,null,null,null,null,null,null,null,null,null,null,null,null,null,null,null,null,null,null,null,null,null,null,null,null,null,"⇒",null,null,null,null,null,null,null,null,null,null,null,null,null,null,null,null,null,null,null,null,null,null,null,null,null,null,null,null,null,null,"GB",null,null,null,null,null,null,null,"GB"]
[null,null,null,null,null,null,null,null,null,null,null,null,null,null,null,null,null,null,null,null,null,null,null,null,null,null,null,null,null,null,null,null,null,null,null,null,null,null,null,null,null,null,null,null,null,null,null,null,null,null,null,null,null,null,null,null,null,null,null,null,null,null,null,null,null,null,null,"分"]
[]
[]
[4,null,null,null,null,null,null,null,null,null,null,null,null,null,null,null,null,null,null,null,null,null,null,null,null,null,null,null,"⇒",null,null,null,null,null,null,null,null,null,null,null,null,null,null,null,null,null,null,null,null,null,null,null,null,null,null,null,null,null,null,"GB",null,null,null,null,null,null,null,"GB"]
[null,null,null,null,null,null,null,null,null,null,null,null,null,null,null,null,null,null,null,null,null,null,null,null,null,null,null,null,null,null,null,null,null,null,null,null,null,null,null,null,null,null,null,null,null,null,null,null,null,null,null,null,null,null,null,null,null,null,null,null,null,null,null,null,null,null,null,"分"]
[]
[]
[5,null,null,null,null,null,null,null,null,null,null,null,null,null,null,null,null,null,null,null,null,null,null,null,null,null,null,null,"⇒",null,null,null,null,null,null,null,null,null,null,null,null,null,null,null,null,null,null,null,null,null,null,null,null,null,null,null,null,null,null,"GB",null,null,null,null,null,null,null,"GB"]
[null,null,null,null,null,null,null,null,null,null,null,null,null,null,null,null,null,null,null,null,null,null,null,null,null,null,null,null,null,null,null,null,null,null,null,null,null,null,null,null,null,null,null,null,null,null,null,null,null,null,null,null,null,null,null,null,null,null,null,null,null,null,null,null,null,null,null,"分"]
[]
[]
[6,null,null,null,null,null,null,null,null,null,null,null,null,null,null,null,null,null,null,null,null,null,null,null,null,null,null,null,"⇒",null,null,null,null,null,null,null,null,null,null,null,null,null,null,null,null,null,null,null,null,null,null,null,null,null,null,null,null,null,null,"GB",null,null,null,null,null,null,null,"GB"]
[null,null,null,null,null,null,null,null,null,null,null,null,null,null,null,null,null,null,null,null,null,null,null,null,null,null,null,null,null,null,null,null,null,null,null,null,null,null,null,null,null,null,null,null,null,null,null,null,null,null,null,null,null,null,null,null,null,null,null,null,null,null,null,null,null,null,null,"分"]
[]
[]
[7,null,null,null,null,null,null,null,null,null,null,null,null,null,null,null,null,null,null,null,null,null,null,null,null,null,null,null,"⇒",null,null,null,null,null,null,null,null,null,null,null,null,null,null,null,null,null,null,null,null,null,null,null,null,null,null,null,null,null,null,"GB",null,null,null,null,null,null,null,"GB"]
[null,null,null,null,null,null,null,null,null,null,null,null,null,null,null,null,null,null,null,null,null,null,null,null,null,null,null,null,null,null,null,null,null,null,null,null,null,null,null,null,null,null,null,null,null,null,null,null,null,null,null,null,null,null,null,null,null,null,null,null,null,null,null,null,null,null,null,"分"]
[]
[]
[8,null,null,null,null,null,null,null,null,null,null,null,null,null,null,null,null,null,null,null,null,null,null,null,null,null,null,null,"⇒",null,null,null,null,null,null,null,null,null,null,null,null,null,null,null,null,null,null,null,null,null,null,null,null,null,null,null,null,null,null,"GB",null,null,null,null,null,null,null,"GB"]
[null,null,null,null,null,null,null,null,null,null,null,null,null,null,null,null,null,null,null,null,null,null,null,null,null,null,null,null,null,null,null,null,null,null,null,null,null,null,null,null,null,null,null,null,null,null,null,null,null,null,null,null,null,null,null,null,null,null,null,null,null,null,null,null,null,null,null,"分"]
[]
[]
[9,null,null,null,null,null,null,null,null,null,null,null,null,null,null,null,null,null,null,null,null,null,null,null,null,null,null,null,"⇒",null,null,null,null,null,null,null,null,null,null,null,null,null,null,null,null,null,null,null,null,null,null,null,null,null,null,null,null,null,null,"GB",null,null,null,null,null,null,null,"GB"]
[null,null,null,null,null,null,null,null,null,null,null,null,null,null,null,null,null,null,null,null,null,null,null,null,null,null,null,null,null,null,null,null,null,null,null,null,null,null,null,null,null,null,null,null,null,null,null,null,null,null,null,null,null,null,null,null,null,null,null,null,null,null,null,null,null,null,null,"分"]
[]
[]
[10,null,null,null,null,null,null,null,null,null,null,null,null,null,null,null,null,null,null,null,null,null,null,null,null,null,null,null,"⇒",null,null,null,null,null,null,null,null,null,null,null,null,null,null,null,null,null,null,null,null,null,null,null,null,null,null,null,null,null,null,"GB",null,null,null,null,null,null,null,"GB"]
[null,null,null,null,null,null,null,null,null,null,null,null,null,null,null,null,null,null,null,null,null,null,null,null,null,null,null,null,null,null,null,null,null,null,null,null,null,null,null,null,null,null,null,null,null,null,null,null,null,null,null,null,null,null,null,null,null,null,null,null,null,null,null,null,null,null,null,"分"]